{"text_format":"1","workbook":"xlsx","n_sheets":1,"sheets":["Zongozotla-Final-3550"],"not_rendered":{"charts":0,"images":0,"macros":1,"external_links":0,"defined_names":1,"comments":0,"pivot_tables":0},"unopened":[],"bounds":{"document_bytes":16777216,"sheet_cells":100000,"rows_first":2000,"rows_last":500,"rows_between":2000,"halvings":0,"cell_chars":16384,"cell_head_chars":4096},"cells_cut":0,"cells_raw":0,"read":"whole","date_system":"1900"}

{"sheet":"Zongozotla-Final-3550","index":0,"n_rows":600,"n_cols":12,"rows_kept":600,"cut":false,"hidden":false,"merged":[]}
["Community","Folder","Filename","Full path","Collection","Photographer","Descripción","Description",null,null,"Descripción lista","Description list"]
["Xochiapulco","http://www.balsas-nahuatl.org/DEMCA-Images/Xochiapulco","30494o_IMG_2554_ed-300nr_mgs.jpg","http://www.balsas-nahuatl.org/DEMCA-Images/Xochiapulco/30494o_IMG_2554_ed-300nr_mgs.jpg",{"$f":"LEFT(C2,5)","v":"30494"},"Mariano Gorostiza Salazar","Hoja; Inflorescencia; Planta entera",null,null,null,"Cáliz","Branch or stem"]
["Xochiapulco","http://www.balsas-nahuatl.org/DEMCA-Images/Xochiapulco","30494o_IMG_2560_ed-300nr_mgs.jpg","http://www.balsas-nahuatl.org/DEMCA-Images/Xochiapulco/30494o_IMG_2560_ed-300nr_mgs.jpg","30494","Mariano Gorostiza Salazar","Inflorescencia; Rama o tallo",null,null,null,"Esporangios","Calyx"]
["Xochiapulco","http://www.balsas-nahuatl.org/DEMCA-Images/Xochiapulco","30494o_IMG_2571_ed-300nr_mgs.jpg","http://www.balsas-nahuatl.org/DEMCA-Images/Xochiapulco/30494o_IMG_2571_ed-300nr_mgs.jpg","30494","Mariano Gorostiza Salazar","Hoja; Rama o tallo",null,null,null,"Estípula","Flower"]
["Xochiapulco","http://www.balsas-nahuatl.org/DEMCA-Images/Xochiapulco","30495o_IMG_2577_ed-cr-300nr_mgs.jpg","http://www.balsas-nahuatl.org/DEMCA-Images/Xochiapulco/30495o_IMG_2577_ed-cr-300nr_mgs.jpg","30495","Mariano Gorostiza Salazar","Cáliz; Flor",null,null,null,"Flor","Fruit"]
["Xochiapulco","http://www.balsas-nahuatl.org/DEMCA-Images/Xochiapulco","30495o_IMG_2581_ed-cr-300nr_mgs.jpg","http://www.balsas-nahuatl.org/DEMCA-Images/Xochiapulco/30495o_IMG_2581_ed-cr-300nr_mgs.jpg","30495","Mariano Gorostiza Salazar","Flor; Fruto; Rama o tallo",null,null,null,"Fruto","Inflorescence"]
["Xochiapulco","http://www.balsas-nahuatl.org/DEMCA-Images/Xochiapulco","30495o_IMG_2595_ed-300nr_mgs.jpg","http://www.balsas-nahuatl.org/DEMCA-Images/Xochiapulco/30495o_IMG_2595_ed-300nr_mgs.jpg","30495","Mariano Gorostiza Salazar","Hoja; Planta entera",null,null,null,"Hoja","Leaf"]
["Xochiapulco","http://www.balsas-nahuatl.org/DEMCA-Images/Xochiapulco","30496o_IMG_2623_ed-cr-300nr_mgs.jpg","http://www.balsas-nahuatl.org/DEMCA-Images/Xochiapulco/30496o_IMG_2623_ed-cr-300nr_mgs.jpg","30496","Mariano Gorostiza Salazar","Inflorescencia; Rama o tallo",null,null,null,"Inflorescencia","Root system"]
["Xochiapulco","http://www.balsas-nahuatl.org/DEMCA-Images/Xochiapulco","30496o_IMG_2632_ed-cr-300nr_mgs.jpg","http://www.balsas-nahuatl.org/DEMCA-Images/Xochiapulco/30496o_IMG_2632_ed-cr-300nr_mgs.jpg","30496","Mariano Gorostiza Salazar","Hoja; Rama o tallo",null,null,null,"Planta entera","Sporangia"]
["Xochiapulco","http://www.balsas-nahuatl.org/DEMCA-Images/Xochiapulco","30497o_IMG_2647_ed-300nr_mgs.jpg","http://www.balsas-nahuatl.org/DEMCA-Images/Xochiapulco/30497o_IMG_2647_ed-300nr_mgs.jpg","30497","Mariano Gorostiza Salazar","Fruto; Rama o tallo",null,null,null,"Rama o tallo","Stipule"]
["Xochiapulco","http://www.balsas-nahuatl.org/DEMCA-Images/Xochiapulco","30497o_IMG_2655_ed-300nr_mgs.jpg","http://www.balsas-nahuatl.org/DEMCA-Images/Xochiapulco/30497o_IMG_2655_ed-300nr_mgs.jpg","30497","Mariano Gorostiza Salazar","Hoja; Planta entera",null,null,null,"Sistema de raíces","Trunk"]
["Xochiapulco","http://www.balsas-nahuatl.org/DEMCA-Images/Xochiapulco","30498o_IMG_2661_ed-300nr_mgs.jpg","http://www.balsas-nahuatl.org/DEMCA-Images/Xochiapulco/30498o_IMG_2661_ed-300nr_mgs.jpg","30498","Mariano Gorostiza Salazar","Hoja; Rama o tallo",null,null,null,"Tronco","Whole plant"]
["Xochiapulco","http://www.balsas-nahuatl.org/DEMCA-Images/Xochiapulco","30498o_IMG_2669_ed-300nr_mgs.jpg","http://www.balsas-nahuatl.org/DEMCA-Images/Xochiapulco/30498o_IMG_2669_ed-300nr_mgs.jpg","30498","Mariano Gorostiza Salazar","Esporangios; Hoja",null,null,null,"Voucher","Voucher"]
["Xochiapulco","http://www.balsas-nahuatl.org/DEMCA-Images/Xochiapulco","30499o_IMG_2681_ed-cr-300nr_mgs.jpg","http://www.balsas-nahuatl.org/DEMCA-Images/Xochiapulco/30499o_IMG_2681_ed-cr-300nr_mgs.jpg","30499","Mariano Gorostiza Salazar","Esporangios; Hoja"]
["Xochiapulco","http://www.balsas-nahuatl.org/DEMCA-Images/Xochiapulco","30499o_IMG_2687_ed-300nr_mgs.jpg","http://www.balsas-nahuatl.org/DEMCA-Images/Xochiapulco/30499o_IMG_2687_ed-300nr_mgs.jpg","30499","Mariano Gorostiza Salazar","Hoja; Rama o tallo"]
["Xochiapulco","http://www.balsas-nahuatl.org/DEMCA-Images/Xochiapulco","30500o_IMG_2707_ed-300nr_mgs.jpg","http://www.balsas-nahuatl.org/DEMCA-Images/Xochiapulco/30500o_IMG_2707_ed-300nr_mgs.jpg","30500","Mariano Gorostiza Salazar","Hoja; Inflorescencia; Rama o tallo"]
["Xochiapulco","http://www.balsas-nahuatl.org/DEMCA-Images/Xochiapulco","30500o_IMG_2717_ed-cr-300nr_mgs.jpg","http://www.balsas-nahuatl.org/DEMCA-Images/Xochiapulco/30500o_IMG_2717_ed-cr-300nr_mgs.jpg","30500","Mariano Gorostiza Salazar","Inflorescencia; Rama o tallo"]
["Xochiapulco","http://www.balsas-nahuatl.org/DEMCA-Images/Xochiapulco","30500o_IMG_2720_ed-cr-300nr_mgs.jpg","http://www.balsas-nahuatl.org/DEMCA-Images/Xochiapulco/30500o_IMG_2720_ed-cr-300nr_mgs.jpg","30500","Mariano Gorostiza Salazar","Inflorescencia; Rama o tallo"]
["Xochiapulco","http://www.balsas-nahuatl.org/DEMCA-Images/Xochiapulco","30501o_IMG_2732_ed-300nr_mgs.jpg","http://www.balsas-nahuatl.org/DEMCA-Images/Xochiapulco/30501o_IMG_2732_ed-300nr_mgs.jpg","30501","Mariano Gorostiza Salazar","Flor; Hoja; Planta entera"]
["Xochiapulco","http://www.balsas-nahuatl.org/DEMCA-Images/Xochiapulco","30501o_IMG_2737_ed-300nr_mgs.jpg","http://www.balsas-nahuatl.org/DEMCA-Images/Xochiapulco/30501o_IMG_2737_ed-300nr_mgs.jpg","30501","Mariano Gorostiza Salazar","Cáliz; Flor"]
["Xochiapulco","http://www.balsas-nahuatl.org/DEMCA-Images/Xochiapulco","30501o_IMG_2741_ed-cr-300nr_mgs.jpg","http://www.balsas-nahuatl.org/DEMCA-Images/Xochiapulco/30501o_IMG_2741_ed-cr-300nr_mgs.jpg","30501","Mariano Gorostiza Salazar","Cáliz; Flor"]
["Xochiapulco","http://www.balsas-nahuatl.org/DEMCA-Images/Xochiapulco","30511o_IMG_0016_ed-300nr_mgs.jpg","http://www.balsas-nahuatl.org/DEMCA-Images/Xochiapulco/30511o_IMG_0016_ed-300nr_mgs.jpg","30511","Mariano Gorostiza Salazar","Hoja; Rama o tallo"]
["Xochiapulco","http://www.balsas-nahuatl.org/DEMCA-Images/Xochiapulco","30511o_IMG_0018_ed-300nr_mgs.jpg","http://www.balsas-nahuatl.org/DEMCA-Images/Xochiapulco/30511o_IMG_0018_ed-300nr_mgs.jpg","30511","Mariano Gorostiza Salazar","Fruto; Hoja; Rama o tallo"]
["Xochiapulco","http://www.balsas-nahuatl.org/DEMCA-Images/Xochiapulco","30512o_IMG_0036_ed-cr-300nr_mgs.jpg","http://www.balsas-nahuatl.org/DEMCA-Images/Xochiapulco/30512o_IMG_0036_ed-cr-300nr_mgs.jpg","30512","Mariano Gorostiza Salazar","Hoja; Rama o tallo"]
["Xochiapulco","http://www.balsas-nahuatl.org/DEMCA-Images/Xochiapulco","30512o_IMG_0039_ed-cr-300nr_mgs.jpg","http://www.balsas-nahuatl.org/DEMCA-Images/Xochiapulco/30512o_IMG_0039_ed-cr-300nr_mgs.jpg","30512","Mariano Gorostiza Salazar","Fruto; Hoja"]
["Xochiapulco","http://www.balsas-nahuatl.org/DEMCA-Images/Xochiapulco","30513o_IMG_0027_ed-cr-300nr_mgs.jpg","http://www.balsas-nahuatl.org/DEMCA-Images/Xochiapulco/30513o_IMG_0027_ed-cr-300nr_mgs.jpg","30513","Mariano Gorostiza Salazar","Fruto; Hoja"]
["Xochiapulco","http://www.balsas-nahuatl.org/DEMCA-Images/Xochiapulco","30513o_IMG_0030_ed-300nr_mgs.jpg","http://www.balsas-nahuatl.org/DEMCA-Images/Xochiapulco/30513o_IMG_0030_ed-300nr_mgs.jpg","30513","Mariano Gorostiza Salazar","Hoja; Planta entera"]
["Xochiapulco","http://www.balsas-nahuatl.org/DEMCA-Images/Xochiapulco","30514o_IMG_0047_ed-300nr_mgs.jpg","http://www.balsas-nahuatl.org/DEMCA-Images/Xochiapulco/30514o_IMG_0047_ed-300nr_mgs.jpg","30514","Mariano Gorostiza Salazar","Hoja; Rama o tallo"]
["Xochiapulco","http://www.balsas-nahuatl.org/DEMCA-Images/Xochiapulco","30514o_IMG_0050_ed-300nr_mgs.jpg","http://www.balsas-nahuatl.org/DEMCA-Images/Xochiapulco/30514o_IMG_0050_ed-300nr_mgs.jpg","30514","Mariano Gorostiza Salazar","Fruto; Rama o tallo"]
["Xochiapulco","http://www.balsas-nahuatl.org/DEMCA-Images/Xochiapulco","30515o_IMG_0054_ed-cr-300nr_mgs.jpg","http://www.balsas-nahuatl.org/DEMCA-Images/Xochiapulco/30515o_IMG_0054_ed-cr-300nr_mgs.jpg","30515","Mariano Gorostiza Salazar","Hoja; Inflorescencia; Rama o tallo"]
["Xochiapulco","http://www.balsas-nahuatl.org/DEMCA-Images/Xochiapulco","30515o_IMG_0056_ed-cr-300nr_mgs.jpg","http://www.balsas-nahuatl.org/DEMCA-Images/Xochiapulco/30515o_IMG_0056_ed-cr-300nr_mgs.jpg","30515","Mariano Gorostiza Salazar","Hoja; Inflorescencia"]
["Xochiapulco","http://www.balsas-nahuatl.org/DEMCA-Images/Xochiapulco","30516o_IMG_0003_ed-cr-300nr_mgs.jpg","http://www.balsas-nahuatl.org/DEMCA-Images/Xochiapulco/30516o_IMG_0003_ed-cr-300nr_mgs.jpg","30516","Mariano Gorostiza Salazar","Flor; Hoja"]
["Xochiapulco","http://www.balsas-nahuatl.org/DEMCA-Images/Xochiapulco","30516o_IMG_0009_ed-cr-300nr_mgs.jpg","http://www.balsas-nahuatl.org/DEMCA-Images/Xochiapulco/30516o_IMG_0009_ed-cr-300nr_mgs.jpg","30516","Mariano Gorostiza Salazar","Flor; Hoja"]
["Xochiapulco","http://www.balsas-nahuatl.org/DEMCA-Images/Xochiapulco","30517o_IMG_0068_ed-cr-300nr_mgs.jpg","http://www.balsas-nahuatl.org/DEMCA-Images/Xochiapulco/30517o_IMG_0068_ed-cr-300nr_mgs.jpg","30517","Mariano Gorostiza Salazar","Cáliz; Flor; Rama o tallo"]
["Xochiapulco","http://www.balsas-nahuatl.org/DEMCA-Images/Xochiapulco","30517o_IMG_0069_ed-300nr_mgs.jpg","http://www.balsas-nahuatl.org/DEMCA-Images/Xochiapulco/30517o_IMG_0069_ed-300nr_mgs.jpg","30517","Mariano Gorostiza Salazar","Hoja; Rama o tallo"]
["Xochiapulco","http://www.balsas-nahuatl.org/DEMCA-Images/Xochiapulco","30517o_IMG_0071_ed-300nr_mgs.jpg","http://www.balsas-nahuatl.org/DEMCA-Images/Xochiapulco/30517o_IMG_0071_ed-300nr_mgs.jpg","30517","Mariano Gorostiza Salazar","Cáliz; Flor; Rama o tallo"]
["Xochiapulco","http://www.balsas-nahuatl.org/DEMCA-Images/Xochiapulco","30518o_IMG_0080_ed-cr-300nr_mgs.jpg","http://www.balsas-nahuatl.org/DEMCA-Images/Xochiapulco/30518o_IMG_0080_ed-cr-300nr_mgs.jpg","30518","Mariano Gorostiza Salazar","Flor; Hoja; Rama o tallo"]
["Xochiapulco","http://www.balsas-nahuatl.org/DEMCA-Images/Xochiapulco","30518o_IMG_0089_ed-cr-300nr_mgs.jpg","http://www.balsas-nahuatl.org/DEMCA-Images/Xochiapulco/30518o_IMG_0089_ed-cr-300nr_mgs.jpg","30518","Mariano Gorostiza Salazar","Hoja; Rama o tallo"]
["Xochiapulco","http://www.balsas-nahuatl.org/DEMCA-Images/Xochiapulco","30519o_IMG_0100_ed-300nr_mgs.jpg","http://www.balsas-nahuatl.org/DEMCA-Images/Xochiapulco/30519o_IMG_0100_ed-300nr_mgs.jpg","30519","Mariano Gorostiza Salazar","Inflorescencia; Rama o tallo"]
["Xochiapulco","http://www.balsas-nahuatl.org/DEMCA-Images/Xochiapulco","30519o_IMG_0106_ed-cr-300nr_mgs.jpg","http://www.balsas-nahuatl.org/DEMCA-Images/Xochiapulco/30519o_IMG_0106_ed-cr-300nr_mgs.jpg","30519","Mariano Gorostiza Salazar","Inflorescencia; Rama o tallo"]
["Xochiapulco","http://www.balsas-nahuatl.org/DEMCA-Images/Xochiapulco","30519o_IMG_0109_ed-cr-300nr_mgs.jpg","http://www.balsas-nahuatl.org/DEMCA-Images/Xochiapulco/30519o_IMG_0109_ed-cr-300nr_mgs.jpg","30519","Mariano Gorostiza Salazar","Hoja; Rama o tallo"]
["Xochiapulco","http://www.balsas-nahuatl.org/DEMCA-Images/Xochiapulco","30520o_IMG_0173_ed-cr-300nr_mgs.jpg","http://www.balsas-nahuatl.org/DEMCA-Images/Xochiapulco/30520o_IMG_0173_ed-cr-300nr_mgs.jpg","30520","Mariano Gorostiza Salazar","Hoja; Rama o tallo"]
["Xochiapulco","http://www.balsas-nahuatl.org/DEMCA-Images/Xochiapulco","30520o_IMG_0179_ed-300nr_mgs.jpg","http://www.balsas-nahuatl.org/DEMCA-Images/Xochiapulco/30520o_IMG_0179_ed-300nr_mgs.jpg","30520","Mariano Gorostiza Salazar","Inflorescencia; Rama o tallo"]
["Xochiapulco","http://www.balsas-nahuatl.org/DEMCA-Images/Xochiapulco","30520o_IMG_0183_ed-cr-300nr_mgs.jpg","http://www.balsas-nahuatl.org/DEMCA-Images/Xochiapulco/30520o_IMG_0183_ed-cr-300nr_mgs.jpg","30520","Mariano Gorostiza Salazar","Flor; Hoja; Rama o tallo"]
["Xochiapulco","http://www.balsas-nahuatl.org/DEMCA-Images/Xochiapulco","30521o_IMG_0139_ed-cr-300nr_mgs.jpg","http://www.balsas-nahuatl.org/DEMCA-Images/Xochiapulco/30521o_IMG_0139_ed-cr-300nr_mgs.jpg","30521","Mariano Gorostiza Salazar","Hoja; Rama o tallo"]
["Xochiapulco","http://www.balsas-nahuatl.org/DEMCA-Images/Xochiapulco","30521o_IMG_0143_ed-cr-300nr_mgs.jpg","http://www.balsas-nahuatl.org/DEMCA-Images/Xochiapulco/30521o_IMG_0143_ed-cr-300nr_mgs.jpg","30521","Mariano Gorostiza Salazar","Fruto; Rama o tallo"]
["Xochiapulco","http://www.balsas-nahuatl.org/DEMCA-Images/Xochiapulco","30521o_IMG_0157_ed-300nr_mgs.jpg","http://www.balsas-nahuatl.org/DEMCA-Images/Xochiapulco/30521o_IMG_0157_ed-300nr_mgs.jpg","30521","Mariano Gorostiza Salazar","Hoja; Rama o tallo"]
["Xochiapulco","http://www.balsas-nahuatl.org/DEMCA-Images/Xochiapulco","30522o_IMG_0266_ed-300nr_mgs.jpg","http://www.balsas-nahuatl.org/DEMCA-Images/Xochiapulco/30522o_IMG_0266_ed-300nr_mgs.jpg","30522","Mariano Gorostiza Salazar","Hoja; Inflorescencia"]
["Xochiapulco","http://www.balsas-nahuatl.org/DEMCA-Images/Xochiapulco","30522o_IMG_0284_ed-cr-300nr_mgs.jpg","http://www.balsas-nahuatl.org/DEMCA-Images/Xochiapulco/30522o_IMG_0284_ed-cr-300nr_mgs.jpg","30522","Mariano Gorostiza Salazar","Flor; Rama o tallo"]
["Xochiapulco","http://www.balsas-nahuatl.org/DEMCA-Images/Xochiapulco","30522o_IMG_0288_ed-cr-300nr_mgs.jpg","http://www.balsas-nahuatl.org/DEMCA-Images/Xochiapulco/30522o_IMG_0288_ed-cr-300nr_mgs.jpg","30522","Mariano Gorostiza Salazar","Flor; Rama o tallo"]
["Xochiapulco","http://www.balsas-nahuatl.org/DEMCA-Images/Xochiapulco","30522o_IMG_0295_ed-300nr_mgs.jpg","http://www.balsas-nahuatl.org/DEMCA-Images/Xochiapulco/30522o_IMG_0295_ed-300nr_mgs.jpg","30522","Mariano Gorostiza Salazar","Hoja; Rama o tallo"]
["Xochiapulco","http://www.balsas-nahuatl.org/DEMCA-Images/Xochiapulco","30523o_IMG_0205_ed-cr-300nr_mgs.jpg","http://www.balsas-nahuatl.org/DEMCA-Images/Xochiapulco/30523o_IMG_0205_ed-cr-300nr_mgs.jpg","30523","Mariano Gorostiza Salazar","Flor; Rama o tallo"]
["Xochiapulco","http://www.balsas-nahuatl.org/DEMCA-Images/Xochiapulco","30523o_IMG_0236_ed-cr-300nr_mgs.jpg","http://www.balsas-nahuatl.org/DEMCA-Images/Xochiapulco/30523o_IMG_0236_ed-cr-300nr_mgs.jpg","30523","Mariano Gorostiza Salazar","Flor; Hoja"]
["Xochiapulco","http://www.balsas-nahuatl.org/DEMCA-Images/Xochiapulco","30523o_IMG_0247_ed-300nr_mgs.jpg","http://www.balsas-nahuatl.org/DEMCA-Images/Xochiapulco/30523o_IMG_0247_ed-300nr_mgs.jpg","30523","Mariano Gorostiza Salazar","Hoja; Rama o tallo"]
["Xochiapulco","http://www.balsas-nahuatl.org/DEMCA-Images/Xochiapulco","30533o_IMG_0519_ed-300nr_mgs.jpg","http://www.balsas-nahuatl.org/DEMCA-Images/Xochiapulco/30533o_IMG_0519_ed-300nr_mgs.jpg","30533","Mariano Gorostiza Salazar","Inflorescencia; Rama o tallo"]
["Xochiapulco","http://www.balsas-nahuatl.org/DEMCA-Images/Xochiapulco","30533o_IMG_0528_ed-300nr_mgs.jpg","http://www.balsas-nahuatl.org/DEMCA-Images/Xochiapulco/30533o_IMG_0528_ed-300nr_mgs.jpg","30533","Mariano Gorostiza Salazar","Cáliz; Flor"]
["Xochiapulco","http://www.balsas-nahuatl.org/DEMCA-Images/Xochiapulco","30533o_IMG_0539_ed-300nr_mgs.jpg","http://www.balsas-nahuatl.org/DEMCA-Images/Xochiapulco/30533o_IMG_0539_ed-300nr_mgs.jpg","30533","Mariano Gorostiza Salazar","Flor; Rama o tallo"]
["Xochiapulco","http://www.balsas-nahuatl.org/DEMCA-Images/Xochiapulco","30534o_IMG_0576_ed-300nr_mgs.jpg","http://www.balsas-nahuatl.org/DEMCA-Images/Xochiapulco/30534o_IMG_0576_ed-300nr_mgs.jpg","30534","Mariano Gorostiza Salazar","Hoja; Planta entera"]
["Xochiapulco","http://www.balsas-nahuatl.org/DEMCA-Images/Xochiapulco","30534o_IMG_0579_ed-300nr_mgs.jpg","http://www.balsas-nahuatl.org/DEMCA-Images/Xochiapulco/30534o_IMG_0579_ed-300nr_mgs.jpg","30534","Mariano Gorostiza Salazar","Inflorescencia; Rama o tallo"]
["Xochiapulco","http://www.balsas-nahuatl.org/DEMCA-Images/Xochiapulco","30534o_IMG_0600_ed-300nr_mgs.jpg","http://www.balsas-nahuatl.org/DEMCA-Images/Xochiapulco/30534o_IMG_0600_ed-300nr_mgs.jpg","30534","Mariano Gorostiza Salazar","Inflorescencia; Rama o tallo"]
["Xochiapulco","http://www.balsas-nahuatl.org/DEMCA-Images/Xochiapulco","30535o_IMG_0544_ed-300nr_mgs.jpg","http://www.balsas-nahuatl.org/DEMCA-Images/Xochiapulco/30535o_IMG_0544_ed-300nr_mgs.jpg","30535","Mariano Gorostiza Salazar","Flor; Rama o tallo"]
["Xochiapulco","http://www.balsas-nahuatl.org/DEMCA-Images/Xochiapulco","30535o_IMG_0551_ed-300nr_mgs.jpg","http://www.balsas-nahuatl.org/DEMCA-Images/Xochiapulco/30535o_IMG_0551_ed-300nr_mgs.jpg","30535","Mariano Gorostiza Salazar","Flor; Rama o tallo"]
["Xochiapulco","http://www.balsas-nahuatl.org/DEMCA-Images/Xochiapulco","30535o_IMG_0567_ed-300nr_mgs.jpg","http://www.balsas-nahuatl.org/DEMCA-Images/Xochiapulco/30535o_IMG_0567_ed-300nr_mgs.jpg","30535","Mariano Gorostiza Salazar","Hoja; Rama o tallo"]
["Xochiapulco","http://www.balsas-nahuatl.org/DEMCA-Images/Xochiapulco","30536o_IMG_0621_ed-300nr_mgs.jpg","http://www.balsas-nahuatl.org/DEMCA-Images/Xochiapulco/30536o_IMG_0621_ed-300nr_mgs.jpg","30536","Mariano Gorostiza Salazar","Hoja; Inflorescencia; Rama o tallo"]
["Xochiapulco","http://www.balsas-nahuatl.org/DEMCA-Images/Xochiapulco","30536o_IMG_0623_ed-cr-300nr_mgs.jpg","http://www.balsas-nahuatl.org/DEMCA-Images/Xochiapulco/30536o_IMG_0623_ed-cr-300nr_mgs.jpg","30536","Mariano Gorostiza Salazar","Cáliz; Flor; Rama o tallo"]
["Xochiapulco","http://www.balsas-nahuatl.org/DEMCA-Images/Xochiapulco","30536o_IMG_0651_ed-300nr_mgs.jpg","http://www.balsas-nahuatl.org/DEMCA-Images/Xochiapulco/30536o_IMG_0651_ed-300nr_mgs.jpg","30536","Mariano Gorostiza Salazar","Hoja; Rama o tallo"]
["Xochiapulco","http://www.balsas-nahuatl.org/DEMCA-Images/Xochiapulco","30537o_IMG_0659_ed-cr-300nr_mgs.jpg","http://www.balsas-nahuatl.org/DEMCA-Images/Xochiapulco/30537o_IMG_0659_ed-cr-300nr_mgs.jpg",{"$f":"LEFT(C67,5)","v":"30537"},"Mariano Gorostiza Salazar","Inflorescencia; Rama o tallo"]
["Xochiapulco","http://www.balsas-nahuatl.org/DEMCA-Images/Xochiapulco","30537o_IMG_0678_ed-cr-300nr_mgs.jpg","http://www.balsas-nahuatl.org/DEMCA-Images/Xochiapulco/30537o_IMG_0678_ed-cr-300nr_mgs.jpg","30537","Mariano Gorostiza Salazar","Hoja; Rama o tallo"]
["Xochiapulco","http://www.balsas-nahuatl.org/DEMCA-Images/Xochiapulco","30537o_IMG_0680_ed-300nr_mgs.jpg","http://www.balsas-nahuatl.org/DEMCA-Images/Xochiapulco/30537o_IMG_0680_ed-300nr_mgs.jpg","30537","Mariano Gorostiza Salazar","Hoja; Rama o tallo"]
["Xochiapulco","http://www.balsas-nahuatl.org/DEMCA-Images/Xochiapulco","30538o_IMG_0705_ed-300nr_mgs.jpg","http://www.balsas-nahuatl.org/DEMCA-Images/Xochiapulco/30538o_IMG_0705_ed-300nr_mgs.jpg","30538","Mariano Gorostiza Salazar","Hoja; Rama o tallo"]
["Xochiapulco","http://www.balsas-nahuatl.org/DEMCA-Images/Xochiapulco","30538o_IMG_0706_ed-300nr_mgs.jpg","http://www.balsas-nahuatl.org/DEMCA-Images/Xochiapulco/30538o_IMG_0706_ed-300nr_mgs.jpg","30538","Mariano Gorostiza Salazar","Hoja; Rama o tallo"]
["Xochiapulco","http://www.balsas-nahuatl.org/DEMCA-Images/Xochiapulco","30539o_IMG_0720_ed-300nr_mgs.jpg","http://www.balsas-nahuatl.org/DEMCA-Images/Xochiapulco/30539o_IMG_0720_ed-300nr_mgs.jpg","30539","Mariano Gorostiza Salazar","Hoja; Rama o tallo"]
["Xochiapulco","http://www.balsas-nahuatl.org/DEMCA-Images/Xochiapulco","30539o_IMG_0721_ed-300nr_mgs.jpg","http://www.balsas-nahuatl.org/DEMCA-Images/Xochiapulco/30539o_IMG_0721_ed-300nr_mgs.jpg","30539","Mariano Gorostiza Salazar","Hoja; Rama o tallo"]
["Xochiapulco","http://www.balsas-nahuatl.org/DEMCA-Images/Xochiapulco","30540o_IMG_0741_ed-300nr_mgs.jpg","http://www.balsas-nahuatl.org/DEMCA-Images/Xochiapulco/30540o_IMG_0741_ed-300nr_mgs.jpg","30540","Mariano Gorostiza Salazar","Hoja; Rama o tallo"]
["Xochiapulco","http://www.balsas-nahuatl.org/DEMCA-Images/Xochiapulco","30540o_IMG_0749_ed-300nr_mgs.jpg","http://www.balsas-nahuatl.org/DEMCA-Images/Xochiapulco/30540o_IMG_0749_ed-300nr_mgs.jpg","30540","Mariano Gorostiza Salazar","Hoja; Rama o tallo"]
["Xochiapulco","http://www.balsas-nahuatl.org/DEMCA-Images/Xochiapulco","30541o_IMG_0757_ed-300nr_mgs.jpg","http://www.balsas-nahuatl.org/DEMCA-Images/Xochiapulco/30541o_IMG_0757_ed-300nr_mgs.jpg","30541","Mariano Gorostiza Salazar","Inflorescencia; Rama o tallo"]
["Xochiapulco","http://www.balsas-nahuatl.org/DEMCA-Images/Xochiapulco","30541o_IMG_0769_ed-cr-300nr_mgs.jpg","http://www.balsas-nahuatl.org/DEMCA-Images/Xochiapulco/30541o_IMG_0769_ed-cr-300nr_mgs.jpg","30541","Mariano Gorostiza Salazar","Cáliz; Inflorescencia; Rama o tallo"]
["Xochiapulco","http://www.balsas-nahuatl.org/DEMCA-Images/Xochiapulco","30541o_IMG_0776_ed-300nr_mgs.jpg","http://www.balsas-nahuatl.org/DEMCA-Images/Xochiapulco/30541o_IMG_0776_ed-300nr_mgs.jpg","30541","Mariano Gorostiza Salazar","Hoja; Inflorescencia"]
["Xochiapulco","http://www.balsas-nahuatl.org/DEMCA-Images/Xochiapulco","30542o_IMG_0784_ed-300nr_mgs.jpg","http://www.balsas-nahuatl.org/DEMCA-Images/Xochiapulco/30542o_IMG_0784_ed-300nr_mgs.jpg","30542","Mariano Gorostiza Salazar","Cáliz; Flor; Rama o tallo"]
["Xochiapulco","http://www.balsas-nahuatl.org/DEMCA-Images/Xochiapulco","30542o_IMG_0812_ed-300nr_mgs.jpg","http://www.balsas-nahuatl.org/DEMCA-Images/Xochiapulco/30542o_IMG_0812_ed-300nr_mgs.jpg","30542","Mariano Gorostiza Salazar","Hoja; Inflorescencia"]
["Xochiapulco","http://www.balsas-nahuatl.org/DEMCA-Images/Xochiapulco","30543o_IMG_0825_ed-300nr_mgs.jpg","http://www.balsas-nahuatl.org/DEMCA-Images/Xochiapulco/30543o_IMG_0825_ed-300nr_mgs.jpg","30543","Mariano Gorostiza Salazar","Hoja; Rama o tallo"]
["Xochiapulco","http://www.balsas-nahuatl.org/DEMCA-Images/Xochiapulco","30543o_IMG_0837_ed-300nr_mgs.jpg","http://www.balsas-nahuatl.org/DEMCA-Images/Xochiapulco/30543o_IMG_0837_ed-300nr_mgs.jpg","30543","Mariano Gorostiza Salazar","Esporangios; Hoja"]
["Xochiapulco","http://www.balsas-nahuatl.org/DEMCA-Images/Xochiapulco","30543o_IMG_0840_ed-300nr_mgs.jpg","http://www.balsas-nahuatl.org/DEMCA-Images/Xochiapulco/30543o_IMG_0840_ed-300nr_mgs.jpg","30543","Mariano Gorostiza Salazar","Esporangios; Hoja"]
["Xochiapulco","http://www.balsas-nahuatl.org/DEMCA-Images/Xochiapulco","30544o_IMG_0862_ed-300nr_mgs.jpg","http://www.balsas-nahuatl.org/DEMCA-Images/Xochiapulco/30544o_IMG_0862_ed-300nr_mgs.jpg","30544","Mariano Gorostiza Salazar","Hoja; Inflorescencia; Rama o tallo"]
["Xochiapulco","http://www.balsas-nahuatl.org/DEMCA-Images/Xochiapulco","30544o_IMG_0882_ed-cr-300nr_mgs.jpg","http://www.balsas-nahuatl.org/DEMCA-Images/Xochiapulco/30544o_IMG_0882_ed-cr-300nr_mgs.jpg","30544","Mariano Gorostiza Salazar","Hoja; Rama o tallo"]
["Xochiapulco","http://www.balsas-nahuatl.org/DEMCA-Images/Xochiapulco","30545o_IMG_0892_ed-cr-300nr_mgs.jpg","http://www.balsas-nahuatl.org/DEMCA-Images/Xochiapulco/30545o_IMG_0892_ed-cr-300nr_mgs.jpg","30545","Mariano Gorostiza Salazar","Cáliz; Flor"]
["Xochiapulco","http://www.balsas-nahuatl.org/DEMCA-Images/Xochiapulco","30545o_IMG_0938_ed-cr-300nr_mgs.jpg","http://www.balsas-nahuatl.org/DEMCA-Images/Xochiapulco/30545o_IMG_0938_ed-cr-300nr_mgs.jpg","30545","Mariano Gorostiza Salazar","Hoja; Rama o tallo"]
["Xochiapulco","http://www.balsas-nahuatl.org/DEMCA-Images/Xochiapulco","30546o_IMG_0914_ed-cr-300nr_mgs.jpg","http://www.balsas-nahuatl.org/DEMCA-Images/Xochiapulco/30546o_IMG_0914_ed-cr-300nr_mgs.jpg","30546","Mariano Gorostiza Salazar","Flor; Rama o tallo"]
["Xochiapulco","http://www.balsas-nahuatl.org/DEMCA-Images/Xochiapulco","30546o_IMG_0925_ed-cr-300nr_mgs.jpg","http://www.balsas-nahuatl.org/DEMCA-Images/Xochiapulco/30546o_IMG_0925_ed-cr-300nr_mgs.jpg","30546","Mariano Gorostiza Salazar","Flor; Hoja; Rama o tallo"]
["Xochiapulco","http://www.balsas-nahuatl.org/DEMCA-Images/Xochiapulco","30547o_IMG_0941_ed-cr-300nr_mgs.jpg","http://www.balsas-nahuatl.org/DEMCA-Images/Xochiapulco/30547o_IMG_0941_ed-cr-300nr_mgs.jpg","30547","Mariano Gorostiza Salazar","Hoja; Inflorescencia"]
["Xochiapulco","http://www.balsas-nahuatl.org/DEMCA-Images/Xochiapulco","30547o_IMG_0956_ed-cr-300nr_mgs.jpg","http://www.balsas-nahuatl.org/DEMCA-Images/Xochiapulco/30547o_IMG_0956_ed-cr-300nr_mgs.jpg","30547","Mariano Gorostiza Salazar","Hoja; Rama o tallo"]
["Xochiapulco","http://www.balsas-nahuatl.org/DEMCA-Images/Xochiapulco","30547o_IMG_0959_ed-300nr_mgs.jpg","http://www.balsas-nahuatl.org/DEMCA-Images/Xochiapulco/30547o_IMG_0959_ed-300nr_mgs.jpg","30547","Mariano Gorostiza Salazar","Hoja; Rama o tallo"]
["Xochiapulco","http://www.balsas-nahuatl.org/DEMCA-Images/Xochiapulco","30548o_IMG_0961_ed-300nr_mgs.jpg","http://www.balsas-nahuatl.org/DEMCA-Images/Xochiapulco/30548o_IMG_0961_ed-300nr_mgs.jpg","30548","Mariano Gorostiza Salazar","Hoja; Rama o tallo"]
["Xochiapulco","http://www.balsas-nahuatl.org/DEMCA-Images/Xochiapulco","30548o_IMG_0967_ed-300nr_mgs.jpg","http://www.balsas-nahuatl.org/DEMCA-Images/Xochiapulco/30548o_IMG_0967_ed-300nr_mgs.jpg","30548","Mariano Gorostiza Salazar","Rama o tallo"]
["Xochiapulco","http://www.balsas-nahuatl.org/DEMCA-Images/Xochiapulco","30548o_IMG_0970_ed-300nr_mgs.jpg","http://www.balsas-nahuatl.org/DEMCA-Images/Xochiapulco/30548o_IMG_0970_ed-300nr_mgs.jpg","30548","Mariano Gorostiza Salazar","Hoja; Rama o tallo"]
["Xochiapulco","http://www.balsas-nahuatl.org/DEMCA-Images/Xochiapulco","30549o_IMG_1015_ed-300nr_mgs.jpg","http://www.balsas-nahuatl.org/DEMCA-Images/Xochiapulco/30549o_IMG_1015_ed-300nr_mgs.jpg","30549","Mariano Gorostiza Salazar","Hoja; Inflorescencia; Rama o tallo"]
["Xochiapulco","http://www.balsas-nahuatl.org/DEMCA-Images/Xochiapulco","30549o_IMG_1022_ed-cr-300nr_mgs.jpg","http://www.balsas-nahuatl.org/DEMCA-Images/Xochiapulco/30549o_IMG_1022_ed-cr-300nr_mgs.jpg","30549","Mariano Gorostiza Salazar","Inflorescencia; Rama o tallo"]
["Xochiapulco","http://www.balsas-nahuatl.org/DEMCA-Images/Xochiapulco","30549o_IMG_1027_ed-cr-300nr_mgs.jpg","http://www.balsas-nahuatl.org/DEMCA-Images/Xochiapulco/30549o_IMG_1027_ed-cr-300nr_mgs.jpg","30549","Mariano Gorostiza Salazar","Cáliz; Flor"]
["Xochiapulco","http://www.balsas-nahuatl.org/DEMCA-Images/Xochiapulco","30550o_IMG_0996_ed-cr-300nr_mgs.jpg","http://www.balsas-nahuatl.org/DEMCA-Images/Xochiapulco/30550o_IMG_0996_ed-cr-300nr_mgs.jpg","30550","Mariano Gorostiza Salazar","Esporangios; Hoja"]
["Xochiapulco","http://www.balsas-nahuatl.org/DEMCA-Images/Xochiapulco","30550o_IMG_1011_ed-300nr_mgs.jpg","http://www.balsas-nahuatl.org/DEMCA-Images/Xochiapulco/30550o_IMG_1011_ed-300nr_mgs.jpg","30550","Mariano Gorostiza Salazar","Esporangios; Hoja"]
["Xochiapulco","http://www.balsas-nahuatl.org/DEMCA-Images/Xochiapulco","30551o_IMG_1073_ed-300nr_mgs.jpg","http://www.balsas-nahuatl.org/DEMCA-Images/Xochiapulco/30551o_IMG_1073_ed-300nr_mgs.jpg","30551","Mariano Gorostiza Salazar","Hoja; Rama o tallo"]
["Xochiapulco","http://www.balsas-nahuatl.org/DEMCA-Images/Xochiapulco","30551o_IMG_1097_ed-300nr_mgs.jpg","http://www.balsas-nahuatl.org/DEMCA-Images/Xochiapulco/30551o_IMG_1097_ed-300nr_mgs.jpg","30551","Mariano Gorostiza Salazar","Hoja; Inflorescencia; Rama o tallo"]
["Xochiapulco","http://www.balsas-nahuatl.org/DEMCA-Images/Xochiapulco","30552o_IMG_1041_ed-cr-300nr_mgs.jpg","http://www.balsas-nahuatl.org/DEMCA-Images/Xochiapulco/30552o_IMG_1041_ed-cr-300nr_mgs.jpg","30552","Mariano Gorostiza Salazar","Inflorescencia; Rama o tallo"]
["Xochiapulco","http://www.balsas-nahuatl.org/DEMCA-Images/Xochiapulco","30552o_IMG_1065_ed-300nr_mgs.jpg","http://www.balsas-nahuatl.org/DEMCA-Images/Xochiapulco/30552o_IMG_1065_ed-300nr_mgs.jpg","30552","Mariano Gorostiza Salazar","Hoja; Inflorescencia"]
["Xochiapulco","http://www.balsas-nahuatl.org/DEMCA-Images/Xochiapulco","30552o_IMG_1066_ed-300nr_mgs.jpg","http://www.balsas-nahuatl.org/DEMCA-Images/Xochiapulco/30552o_IMG_1066_ed-300nr_mgs.jpg","30552","Mariano Gorostiza Salazar","Hoja; Inflorescencia"]
["Xochiapulco","http://www.balsas-nahuatl.org/DEMCA-Images/Xochiapulco","30553o_IMG_1108_ed-300nr_mgs.jpg","http://www.balsas-nahuatl.org/DEMCA-Images/Xochiapulco/30553o_IMG_1108_ed-300nr_mgs.jpg","30553","Mariano Gorostiza Salazar","Esporangios; Hoja"]
["Xochiapulco","http://www.balsas-nahuatl.org/DEMCA-Images/Xochiapulco","30553o_IMG_1120_ed-300nr_mgs.jpg","http://www.balsas-nahuatl.org/DEMCA-Images/Xochiapulco/30553o_IMG_1120_ed-300nr_mgs.jpg","30553","Mariano Gorostiza Salazar","Esporangios; Hoja"]
["Xochiapulco","http://www.balsas-nahuatl.org/DEMCA-Images/Xochiapulco","30553o_IMG_1122_ed-cr-300nr_mgs.jpg","http://www.balsas-nahuatl.org/DEMCA-Images/Xochiapulco/30553o_IMG_1122_ed-cr-300nr_mgs.jpg","30553","Mariano Gorostiza Salazar","Rama o tallo; Sistema de raíces"]
["Xochiapulco","http://www.balsas-nahuatl.org/DEMCA-Images/Xochiapulco","30554o_IMG_1142_ed-300nr_mgs.jpg","http://www.balsas-nahuatl.org/DEMCA-Images/Xochiapulco/30554o_IMG_1142_ed-300nr_mgs.jpg","30554","Mariano Gorostiza Salazar","Hoja; Rama o tallo"]
["Xochiapulco","http://www.balsas-nahuatl.org/DEMCA-Images/Xochiapulco","30554o_IMG_1151_ed-300nr_mgs.jpg","http://www.balsas-nahuatl.org/DEMCA-Images/Xochiapulco/30554o_IMG_1151_ed-300nr_mgs.jpg","30554","Mariano Gorostiza Salazar","Esporangios; Hoja"]
["Xochiapulco","http://www.balsas-nahuatl.org/DEMCA-Images/Xochiapulco","30554o_IMG_1157_ed-300nr_mgs.jpg","http://www.balsas-nahuatl.org/DEMCA-Images/Xochiapulco/30554o_IMG_1157_ed-300nr_mgs.jpg","30554","Mariano Gorostiza Salazar","Esporangios; Hoja"]
["Xochiapulco","http://www.balsas-nahuatl.org/DEMCA-Images/Xochiapulco","30555o_IMG_1197_ed-300nr_mgs.jpg","http://www.balsas-nahuatl.org/DEMCA-Images/Xochiapulco/30555o_IMG_1197_ed-300nr_mgs.jpg","30555","Mariano Gorostiza Salazar","Flor; Hoja"]
["Xochiapulco","http://www.balsas-nahuatl.org/DEMCA-Images/Xochiapulco","30555o_IMG_1212_ed-300nr_mgs.jpg","http://www.balsas-nahuatl.org/DEMCA-Images/Xochiapulco/30555o_IMG_1212_ed-300nr_mgs.jpg","30555","Mariano Gorostiza Salazar","Hoja; Rama o tallo"]
["Xochiapulco","http://www.balsas-nahuatl.org/DEMCA-Images/Xochiapulco","30561o_IMG_0007_ed-cr-300nr_mgs.jpg","http://www.balsas-nahuatl.org/DEMCA-Images/Xochiapulco/30561o_IMG_0007_ed-cr-300nr_mgs.jpg","30561","Mariano Gorostiza Salazar","Cáliz; Flor"]
["Xochiapulco","http://www.balsas-nahuatl.org/DEMCA-Images/Xochiapulco","30561o_IMG_0027_ed-cr-300nr_mgs.jpg","http://www.balsas-nahuatl.org/DEMCA-Images/Xochiapulco/30561o_IMG_0027_ed-cr-300nr_mgs.jpg","30561","Mariano Gorostiza Salazar","Cáliz; Fruto; Rama o tallo"]
["Xochiapulco","http://www.balsas-nahuatl.org/DEMCA-Images/Xochiapulco","30561o_IMG_0028_ed-300nr_mgs.jpg","http://www.balsas-nahuatl.org/DEMCA-Images/Xochiapulco/30561o_IMG_0028_ed-300nr_mgs.jpg","30561","Mariano Gorostiza Salazar","Hoja; Rama o tallo"]
["Xochiapulco","http://www.balsas-nahuatl.org/DEMCA-Images/Xochiapulco","30562o_IMG_0050_ed-300nr_mgs.jpg","http://www.balsas-nahuatl.org/DEMCA-Images/Xochiapulco/30562o_IMG_0050_ed-300nr_mgs.jpg","30562","Mariano Gorostiza Salazar","Hoja; Inflorescencia; Rama o tallo"]
["Xochiapulco","http://www.balsas-nahuatl.org/DEMCA-Images/Xochiapulco","30562o_IMG_0055_ed-cr-300nr_mgs.jpg","http://www.balsas-nahuatl.org/DEMCA-Images/Xochiapulco/30562o_IMG_0055_ed-cr-300nr_mgs.jpg","30562","Mariano Gorostiza Salazar","Inflorescencia; Rama o tallo"]
["Xochiapulco","http://www.balsas-nahuatl.org/DEMCA-Images/Xochiapulco","30562o_IMG_0076_ed-300nr_mgs.jpg","http://www.balsas-nahuatl.org/DEMCA-Images/Xochiapulco/30562o_IMG_0076_ed-300nr_mgs.jpg","30562","Mariano Gorostiza Salazar","Hoja; Rama o tallo"]
["Xochiapulco","http://www.balsas-nahuatl.org/DEMCA-Images/Xochiapulco","30563o_IMG_0094_ed-300nr_mgs.jpg","http://www.balsas-nahuatl.org/DEMCA-Images/Xochiapulco/30563o_IMG_0094_ed-300nr_mgs.jpg","30563","Mariano Gorostiza Salazar","Hoja; Inflorescencia; Rama o tallo"]
["Xochiapulco","http://www.balsas-nahuatl.org/DEMCA-Images/Xochiapulco","30563o_IMG_0101_ed-300nr_mgs.jpg","http://www.balsas-nahuatl.org/DEMCA-Images/Xochiapulco/30563o_IMG_0101_ed-300nr_mgs.jpg","30563","Mariano Gorostiza Salazar","Hoja; Rama o tallo"]
["Xochiapulco","http://www.balsas-nahuatl.org/DEMCA-Images/Xochiapulco","30563o_IMG_0117_ed-300nr_mgs.jpg","http://www.balsas-nahuatl.org/DEMCA-Images/Xochiapulco/30563o_IMG_0117_ed-300nr_mgs.jpg","30563","Mariano Gorostiza Salazar","Cáliz; Inflorescencia"]
["Xochiapulco","http://www.balsas-nahuatl.org/DEMCA-Images/Xochiapulco","30563o_IMG_0130_ed-300nr_mgs.jpg","http://www.balsas-nahuatl.org/DEMCA-Images/Xochiapulco/30563o_IMG_0130_ed-300nr_mgs.jpg","30563","Mariano Gorostiza Salazar","Cáliz; Inflorescencia"]
["Xochiapulco","http://www.balsas-nahuatl.org/DEMCA-Images/Xochiapulco","30564o_IMG_0132_ed-300nr_mgs.jpg","http://www.balsas-nahuatl.org/DEMCA-Images/Xochiapulco/30564o_IMG_0132_ed-300nr_mgs.jpg","30564","Mariano Gorostiza Salazar","Hoja; Rama o tallo"]
["Xochiapulco","http://www.balsas-nahuatl.org/DEMCA-Images/Xochiapulco","30564o_IMG_0140_ed-cr-300nr_mgs.jpg","http://www.balsas-nahuatl.org/DEMCA-Images/Xochiapulco/30564o_IMG_0140_ed-cr-300nr_mgs.jpg","30564","Mariano Gorostiza Salazar","Esporangios; Hoja"]
["Xochiapulco","http://www.balsas-nahuatl.org/DEMCA-Images/Xochiapulco","30564o_IMG_0153_ed-cr-300nr_mgs.jpg","http://www.balsas-nahuatl.org/DEMCA-Images/Xochiapulco/30564o_IMG_0153_ed-cr-300nr_mgs.jpg","30564","Mariano Gorostiza Salazar","Hoja; Rama o tallo"]
["Xochiapulco","http://www.balsas-nahuatl.org/DEMCA-Images/Xochiapulco","30565o_IMG_0156_ed-300nr_mgs.jpg","http://www.balsas-nahuatl.org/DEMCA-Images/Xochiapulco/30565o_IMG_0156_ed-300nr_mgs.jpg","30565","Mariano Gorostiza Salazar","Hoja; Inflorescencia; Planta entera"]
["Xochiapulco","http://www.balsas-nahuatl.org/DEMCA-Images/Xochiapulco","30565o_IMG_0163_ed-300nr_mgs.jpg","http://www.balsas-nahuatl.org/DEMCA-Images/Xochiapulco/30565o_IMG_0163_ed-300nr_mgs.jpg","30565","Mariano Gorostiza Salazar","Inflorescencia; Rama o tallo"]
["Xochiapulco","http://www.balsas-nahuatl.org/DEMCA-Images/Xochiapulco","30565o_IMG_0167_ed-300nr_mgs.jpg","http://www.balsas-nahuatl.org/DEMCA-Images/Xochiapulco/30565o_IMG_0167_ed-300nr_mgs.jpg","30565","Mariano Gorostiza Salazar","Inflorescencia; Rama o tallo"]
["Xochiapulco","http://www.balsas-nahuatl.org/DEMCA-Images/Xochiapulco","30566o_IMG_0189_ed-cr-300nr_mgs.jpg","http://www.balsas-nahuatl.org/DEMCA-Images/Xochiapulco/30566o_IMG_0189_ed-cr-300nr_mgs.jpg","30566","Mariano Gorostiza Salazar","Hoja; Rama o tallo"]
["Xochiapulco","http://www.balsas-nahuatl.org/DEMCA-Images/Xochiapulco","30566o_IMG_0209_ed-cr-300nr_mgs.jpg","http://www.balsas-nahuatl.org/DEMCA-Images/Xochiapulco/30566o_IMG_0209_ed-cr-300nr_mgs.jpg",{"$f":"LEFT(C131,5)","v":"30566"},"Mariano Gorostiza Salazar","Flor; Rama o tallo"]
["Xochiapulco","http://www.balsas-nahuatl.org/DEMCA-Images/Xochiapulco","30566o_IMG_0227_ed-300nr_mgs.jpg","http://www.balsas-nahuatl.org/DEMCA-Images/Xochiapulco/30566o_IMG_0227_ed-300nr_mgs.jpg","30566","Mariano Gorostiza Salazar","Hoja; Rama o tallo"]
["Xochiapulco","http://www.balsas-nahuatl.org/DEMCA-Images/Xochiapulco","30567o_IMG_0242_ed-cr-300nr_mgs.jpg","http://www.balsas-nahuatl.org/DEMCA-Images/Xochiapulco/30567o_IMG_0242_ed-cr-300nr_mgs.jpg","30567","Mariano Gorostiza Salazar","Cáliz; Inflorescencia"]
["Xochiapulco","http://www.balsas-nahuatl.org/DEMCA-Images/Xochiapulco","30567o_IMG_0251_ed-cr-300nr_mgs.jpg","http://www.balsas-nahuatl.org/DEMCA-Images/Xochiapulco/30567o_IMG_0251_ed-cr-300nr_mgs.jpg","30567","Mariano Gorostiza Salazar","Cáliz; Inflorescencia"]
["Xochiapulco","http://www.balsas-nahuatl.org/DEMCA-Images/Xochiapulco","30567o_IMG_0276_ed-300nr_mgs.jpg","http://www.balsas-nahuatl.org/DEMCA-Images/Xochiapulco/30567o_IMG_0276_ed-300nr_mgs.jpg","30567","Mariano Gorostiza Salazar","Hoja; Inflorescencia"]
["Xochiapulco","http://www.balsas-nahuatl.org/DEMCA-Images/Xochiapulco","30568o_IMG_0306_ed-300nr_mgs.jpg","http://www.balsas-nahuatl.org/DEMCA-Images/Xochiapulco/30568o_IMG_0306_ed-300nr_mgs.jpg","30568","Mariano Gorostiza Salazar","Fruto; Rama o tallo"]
["Xochiapulco","http://www.balsas-nahuatl.org/DEMCA-Images/Xochiapulco","30568o_IMG_0316_ed-300nr_mgs.jpg","http://www.balsas-nahuatl.org/DEMCA-Images/Xochiapulco/30568o_IMG_0316_ed-300nr_mgs.jpg","30568","Mariano Gorostiza Salazar","Hoja; Rama o tallo"]
["Xochiapulco","http://www.balsas-nahuatl.org/DEMCA-Images/Xochiapulco","30568o_IMG_0327_ed-300nr_mgs.jpg","http://www.balsas-nahuatl.org/DEMCA-Images/Xochiapulco/30568o_IMG_0327_ed-300nr_mgs.jpg","30568","Mariano Gorostiza Salazar","Fruto; Hoja; Rama o tallo"]
["Xochiapulco","http://www.balsas-nahuatl.org/DEMCA-Images/Xochiapulco","30569o_IMG_0345_ed-300nr_mgs.jpg","http://www.balsas-nahuatl.org/DEMCA-Images/Xochiapulco/30569o_IMG_0345_ed-300nr_mgs.jpg","30569","Mariano Gorostiza Salazar","Fruto; Rama o tallo"]
["Xochiapulco","http://www.balsas-nahuatl.org/DEMCA-Images/Xochiapulco","30569o_IMG_0349_ed-cr-300nr_mgs.jpg","http://www.balsas-nahuatl.org/DEMCA-Images/Xochiapulco/30569o_IMG_0349_ed-cr-300nr_mgs.jpg","30569","Mariano Gorostiza Salazar","Flor; Rama o tallo"]
["Xochiapulco","http://www.balsas-nahuatl.org/DEMCA-Images/Xochiapulco","30570o_IMG_0372_ed-300nr_mgs.jpg","http://www.balsas-nahuatl.org/DEMCA-Images/Xochiapulco/30570o_IMG_0372_ed-300nr_mgs.jpg","30570","Mariano Gorostiza Salazar","Flor; Hoja"]
["Xochiapulco","http://www.balsas-nahuatl.org/DEMCA-Images/Xochiapulco","30570o_IMG_0388_ed-300nr_mgs.jpg","http://www.balsas-nahuatl.org/DEMCA-Images/Xochiapulco/30570o_IMG_0388_ed-300nr_mgs.jpg","30570","Mariano Gorostiza Salazar","Cáliz; Flor"]
["Xochiapulco","http://www.balsas-nahuatl.org/DEMCA-Images/Xochiapulco","30570o_IMG_0391_ed-300nr_mgs.jpg","http://www.balsas-nahuatl.org/DEMCA-Images/Xochiapulco/30570o_IMG_0391_ed-300nr_mgs.jpg","30570","Mariano Gorostiza Salazar","Cáliz; Flor"]
["Xochiapulco","http://www.balsas-nahuatl.org/DEMCA-Images/Xochiapulco","30570o_IMG_0395_ed-300nr_mgs.jpg","http://www.balsas-nahuatl.org/DEMCA-Images/Xochiapulco/30570o_IMG_0395_ed-300nr_mgs.jpg","30570","Mariano Gorostiza Salazar","Hoja; Rama o tallo"]
["Xochiapulco","http://www.balsas-nahuatl.org/DEMCA-Images/Xochiapulco","30571o_IMG_0414_ed-cr-300nr_mgs.jpg","http://www.balsas-nahuatl.org/DEMCA-Images/Xochiapulco/30571o_IMG_0414_ed-cr-300nr_mgs.jpg","30571","Mariano Gorostiza Salazar","Cáliz; Flor"]
["Xochiapulco","http://www.balsas-nahuatl.org/DEMCA-Images/Xochiapulco","30571o_IMG_0423_ed-cr-300nr_mgs.jpg","http://www.balsas-nahuatl.org/DEMCA-Images/Xochiapulco/30571o_IMG_0423_ed-cr-300nr_mgs.jpg","30571","Mariano Gorostiza Salazar","Flor; Hoja; Rama o tallo"]
["Xochiapulco","http://www.balsas-nahuatl.org/DEMCA-Images/Xochiapulco","30571o_IMG_0434_ed-300nr_mgs.jpg","http://www.balsas-nahuatl.org/DEMCA-Images/Xochiapulco/30571o_IMG_0434_ed-300nr_mgs.jpg","30571","Mariano Gorostiza Salazar","Hoja; Inflorescencia"]
["Xochiapulco","http://www.balsas-nahuatl.org/DEMCA-Images/Xochiapulco","30571o_IMG_0438_ed-300nr_mgs.jpg","http://www.balsas-nahuatl.org/DEMCA-Images/Xochiapulco/30571o_IMG_0438_ed-300nr_mgs.jpg","30571","Mariano Gorostiza Salazar","Hoja; Rama o tallo"]
["Xochiapulco","http://www.balsas-nahuatl.org/DEMCA-Images/Xochiapulco","30572o_IMG_0450_ed-cr-300nr_mgs.jpg","http://www.balsas-nahuatl.org/DEMCA-Images/Xochiapulco/30572o_IMG_0450_ed-cr-300nr_mgs.jpg","30572","Mariano Gorostiza Salazar","Hoja; Inflorescencia"]
["Xochiapulco","http://www.balsas-nahuatl.org/DEMCA-Images/Xochiapulco","30572o_IMG_0466_ed-cr-300nr_mgs.jpg","http://www.balsas-nahuatl.org/DEMCA-Images/Xochiapulco/30572o_IMG_0466_ed-cr-300nr_mgs.jpg","30572","Mariano Gorostiza Salazar","Hoja; Inflorescencia"]
["Xochiapulco","http://www.balsas-nahuatl.org/DEMCA-Images/Xochiapulco","30573o_IMG_0484_ed-cr-300nr_mgs.jpg","http://www.balsas-nahuatl.org/DEMCA-Images/Xochiapulco/30573o_IMG_0484_ed-cr-300nr_mgs.jpg","30573","Mariano Gorostiza Salazar","Hoja; Inflorescencia"]
["Xochiapulco","http://www.balsas-nahuatl.org/DEMCA-Images/Xochiapulco","30573o_IMG_0498_ed-300nr_mgs.jpg","http://www.balsas-nahuatl.org/DEMCA-Images/Xochiapulco/30573o_IMG_0498_ed-300nr_mgs.jpg","30573","Mariano Gorostiza Salazar","Hoja; Inflorescencia; Rama o tallo"]
["Xochiapulco","http://www.balsas-nahuatl.org/DEMCA-Images/Xochiapulco","30574o_IMG_0516_ed-cr-300nr_mgs.jpg","http://www.balsas-nahuatl.org/DEMCA-Images/Xochiapulco/30574o_IMG_0516_ed-cr-300nr_mgs.jpg","30574","Mariano Gorostiza Salazar","Flor; Hoja"]
["Xochiapulco","http://www.balsas-nahuatl.org/DEMCA-Images/Xochiapulco","30574o_IMG_0521_ed-300nr_mgs.jpg","http://www.balsas-nahuatl.org/DEMCA-Images/Xochiapulco/30574o_IMG_0521_ed-300nr_mgs.jpg","30574","Mariano Gorostiza Salazar","Flor; Hoja"]
["Xochiapulco","http://www.balsas-nahuatl.org/DEMCA-Images/Xochiapulco","30575o_IMG_0534_ed-300nr_mgs.jpg","http://www.balsas-nahuatl.org/DEMCA-Images/Xochiapulco/30575o_IMG_0534_ed-300nr_mgs.jpg","30575","Mariano Gorostiza Salazar","Inflorescencia; Rama o tallo"]
["Xochiapulco","http://www.balsas-nahuatl.org/DEMCA-Images/Xochiapulco","30575o_IMG_0548_ed-300nr_mgs.jpg","http://www.balsas-nahuatl.org/DEMCA-Images/Xochiapulco/30575o_IMG_0548_ed-300nr_mgs.jpg","30575","Mariano Gorostiza Salazar","Inflorescencia; Rama o tallo"]
["Xochiapulco","http://www.balsas-nahuatl.org/DEMCA-Images/Xochiapulco","30575o_IMG_0598_ed-300nr_mgs.jpg","http://www.balsas-nahuatl.org/DEMCA-Images/Xochiapulco/30575o_IMG_0598_ed-300nr_mgs.jpg","30575","Mariano Gorostiza Salazar","Hoja; Rama o tallo"]
["Xochiapulco","http://www.balsas-nahuatl.org/DEMCA-Images/Xochiapulco","30576o_IMG_0557_ed-300nr_mgs.jpg","http://www.balsas-nahuatl.org/DEMCA-Images/Xochiapulco/30576o_IMG_0557_ed-300nr_mgs.jpg","30576","Mariano Gorostiza Salazar","Cáliz; Flor; Rama o tallo"]
["Xochiapulco","http://www.balsas-nahuatl.org/DEMCA-Images/Xochiapulco","30576o_IMG_0582_ed-300nr_mgs.jpg","http://www.balsas-nahuatl.org/DEMCA-Images/Xochiapulco/30576o_IMG_0582_ed-300nr_mgs.jpg","30576","Mariano Gorostiza Salazar","Fruto; Rama o tallo"]
["Xochiapulco","http://www.balsas-nahuatl.org/DEMCA-Images/Xochiapulco","30576o_IMG_0588_ed-300nr_mgs.jpg","http://www.balsas-nahuatl.org/DEMCA-Images/Xochiapulco/30576o_IMG_0588_ed-300nr_mgs.jpg","30576","Mariano Gorostiza Salazar","Flor; Hoja; Rama o tallo"]
["Xochiapulco","http://www.balsas-nahuatl.org/DEMCA-Images/Xochiapulco","30577o_IMG_0599_ed-cr-300nr_mgs.jpg","http://www.balsas-nahuatl.org/DEMCA-Images/Xochiapulco/30577o_IMG_0599_ed-cr-300nr_mgs.jpg","30577","Mariano Gorostiza Salazar","Flor; Rama o tallo"]
["Xochiapulco","http://www.balsas-nahuatl.org/DEMCA-Images/Xochiapulco","30577o_IMG_0619_ed-300nr_mgs.jpg","http://www.balsas-nahuatl.org/DEMCA-Images/Xochiapulco/30577o_IMG_0619_ed-300nr_mgs.jpg","30577","Mariano Gorostiza Salazar","Fruto; Rama o tallo"]
["Xochiapulco","http://www.balsas-nahuatl.org/DEMCA-Images/Xochiapulco","30577o_IMG_0625_ed-300nr_mgs.jpg","http://www.balsas-nahuatl.org/DEMCA-Images/Xochiapulco/30577o_IMG_0625_ed-300nr_mgs.jpg","30577","Mariano Gorostiza Salazar","Fruto; Hoja"]
["Xochiapulco","http://www.balsas-nahuatl.org/DEMCA-Images/Xochiapulco","30577o_IMG_0639_ed-300nr_mgs.jpg","http://www.balsas-nahuatl.org/DEMCA-Images/Xochiapulco/30577o_IMG_0639_ed-300nr_mgs.jpg","30577","Mariano Gorostiza Salazar","Hoja; Rama o tallo"]
["Xochiapulco","http://www.balsas-nahuatl.org/DEMCA-Images/Xochiapulco","30578o_IMG_0654_ed-300nr_mgs.jpg","http://www.balsas-nahuatl.org/DEMCA-Images/Xochiapulco/30578o_IMG_0654_ed-300nr_mgs.jpg","30578","Mariano Gorostiza Salazar","Hoja; Inflorescencia; Rama o tallo"]
["Xochiapulco","http://www.balsas-nahuatl.org/DEMCA-Images/Xochiapulco","30578o_IMG_0658_ed-cr-300nr_mgs.jpg","http://www.balsas-nahuatl.org/DEMCA-Images/Xochiapulco/30578o_IMG_0658_ed-cr-300nr_mgs.jpg","30578","Mariano Gorostiza Salazar","Fruto; Rama o tallo"]
["Xochiapulco","http://www.balsas-nahuatl.org/DEMCA-Images/Xochiapulco","30578o_IMG_0679_ed-300nr_mgs.jpg","http://www.balsas-nahuatl.org/DEMCA-Images/Xochiapulco/30578o_IMG_0679_ed-300nr_mgs.jpg","30578","Mariano Gorostiza Salazar","Hoja; Rama o tallo"]
["Xochiapulco","http://www.balsas-nahuatl.org/DEMCA-Images/Xochiapulco","30579o_IMG_0688_ed-300nr_mgs.jpg","http://www.balsas-nahuatl.org/DEMCA-Images/Xochiapulco/30579o_IMG_0688_ed-300nr_mgs.jpg","30579","Mariano Gorostiza Salazar","Hoja; Inflorescencia; Rama o tallo"]
["Xochiapulco","http://www.balsas-nahuatl.org/DEMCA-Images/Xochiapulco","30579o_IMG_0698_ed-300nr_mgs.jpg","http://www.balsas-nahuatl.org/DEMCA-Images/Xochiapulco/30579o_IMG_0698_ed-300nr_mgs.jpg","30579","Mariano Gorostiza Salazar","Inflorescencia; Rama o tallo"]
["Xochiapulco","http://www.balsas-nahuatl.org/DEMCA-Images/Xochiapulco","30579o_IMG_0708_ed-cr-300nr_mgs.jpg","http://www.balsas-nahuatl.org/DEMCA-Images/Xochiapulco/30579o_IMG_0708_ed-cr-300nr_mgs.jpg","30579","Mariano Gorostiza Salazar","Inflorescencia; Rama o tallo"]
["Xochiapulco","http://www.balsas-nahuatl.org/DEMCA-Images/Xochiapulco","30580o_IMG_0712_ed-300nr_mgs.jpg","http://www.balsas-nahuatl.org/DEMCA-Images/Xochiapulco/30580o_IMG_0712_ed-300nr_mgs.jpg","30580","Mariano Gorostiza Salazar","Inflorescencia; Rama o tallo"]
["Xochiapulco","http://www.balsas-nahuatl.org/DEMCA-Images/Xochiapulco","30580o_IMG_0724_ed-cr-300nr_mgs.jpg","http://www.balsas-nahuatl.org/DEMCA-Images/Xochiapulco/30580o_IMG_0724_ed-cr-300nr_mgs.jpg","30580","Mariano Gorostiza Salazar","Cáliz; Inflorescencia"]
["Xochiapulco","http://www.balsas-nahuatl.org/DEMCA-Images/Xochiapulco","30580o_IMG_0735_ed-cr-300nr_mgs.jpg","http://www.balsas-nahuatl.org/DEMCA-Images/Xochiapulco/30580o_IMG_0735_ed-cr-300nr_mgs.jpg","30580","Mariano Gorostiza Salazar","Hoja; Inflorescencia; Rama o tallo"]
["Xochiapulco","http://www.balsas-nahuatl.org/DEMCA-Images/Xochiapulco","30581o_IMG_0740_ed-300nr_mgs.jpg","http://www.balsas-nahuatl.org/DEMCA-Images/Xochiapulco/30581o_IMG_0740_ed-300nr_mgs.jpg","30581","Mariano Gorostiza Salazar","Flor; Hoja; Rama o tallo"]
["Xochiapulco","http://www.balsas-nahuatl.org/DEMCA-Images/Xochiapulco","30581o_IMG_0745_ed-300nr_mgs.jpg","http://www.balsas-nahuatl.org/DEMCA-Images/Xochiapulco/30581o_IMG_0745_ed-300nr_mgs.jpg","30581","Mariano Gorostiza Salazar","Hoja; Rama o tallo"]
["Xochiapulco","http://www.balsas-nahuatl.org/DEMCA-Images/Xochiapulco","30581o_IMG_0754_ed-300nr_mgs.jpg","http://www.balsas-nahuatl.org/DEMCA-Images/Xochiapulco/30581o_IMG_0754_ed-300nr_mgs.jpg","30581","Mariano Gorostiza Salazar","Cáliz; Flor"]
["Xochiapulco","http://www.balsas-nahuatl.org/DEMCA-Images/Xochiapulco","30582o_IMG_0786_ed-300nr_mgs.jpg","http://www.balsas-nahuatl.org/DEMCA-Images/Xochiapulco/30582o_IMG_0786_ed-300nr_mgs.jpg","30582","Mariano Gorostiza Salazar","Inflorescencia"]
["Xochiapulco","http://www.balsas-nahuatl.org/DEMCA-Images/Xochiapulco","30582o_IMG_0791_ed-300nr_mgs.jpg","http://www.balsas-nahuatl.org/DEMCA-Images/Xochiapulco/30582o_IMG_0791_ed-300nr_mgs.jpg","30582","Mariano Gorostiza Salazar","Inflorescencia; Rama o tallo"]
["Xochiapulco","http://www.balsas-nahuatl.org/DEMCA-Images/Xochiapulco","30582o_IMG_0795_ed-300nr_mgs.jpg","http://www.balsas-nahuatl.org/DEMCA-Images/Xochiapulco/30582o_IMG_0795_ed-300nr_mgs.jpg","30582","Mariano Gorostiza Salazar","Hoja; Inflorescencia; Rama o tallo"]
["Xochiapulco","http://www.balsas-nahuatl.org/DEMCA-Images/Xochiapulco","30583o_IMG_0802_ed-300nr_mgs.jpg","http://www.balsas-nahuatl.org/DEMCA-Images/Xochiapulco/30583o_IMG_0802_ed-300nr_mgs.jpg","30583","Mariano Gorostiza Salazar","Cáliz; Flor; Hoja"]
["Xochiapulco","http://www.balsas-nahuatl.org/DEMCA-Images/Xochiapulco","30584o_IMG_0829_ed-cr-300nr_mgs.jpg","http://www.balsas-nahuatl.org/DEMCA-Images/Xochiapulco/30584o_IMG_0829_ed-cr-300nr_mgs.jpg","30584","Mariano Gorostiza Salazar","Flor; Hoja; Rama o tallo"]
["Xochiapulco","http://www.balsas-nahuatl.org/DEMCA-Images/Xochiapulco","30584o_IMG_0841_ed-300nr_mgs.jpg","http://www.balsas-nahuatl.org/DEMCA-Images/Xochiapulco/30584o_IMG_0841_ed-300nr_mgs.jpg","30584","Mariano Gorostiza Salazar","Flor; Hoja"]
["Xochiapulco","http://www.balsas-nahuatl.org/DEMCA-Images/Xochiapulco","30584o_IMG_0855_ed-300nr_mgs.jpg","http://www.balsas-nahuatl.org/DEMCA-Images/Xochiapulco/30584o_IMG_0855_ed-300nr_mgs.jpg","30584","Mariano Gorostiza Salazar","Hoja; Rama o tallo"]
["Xochiapulco","http://www.balsas-nahuatl.org/DEMCA-Images/Xochiapulco","30585o_IMG_0862_ed-300nr_mgs.jpg","http://www.balsas-nahuatl.org/DEMCA-Images/Xochiapulco/30585o_IMG_0862_ed-300nr_mgs.jpg","30585","Mariano Gorostiza Salazar","Cáliz; Flor"]
["Xochiapulco","http://www.balsas-nahuatl.org/DEMCA-Images/Xochiapulco","30585o_IMG_0868_ed-300nr_mgs.jpg","http://www.balsas-nahuatl.org/DEMCA-Images/Xochiapulco/30585o_IMG_0868_ed-300nr_mgs.jpg","30585","Mariano Gorostiza Salazar","Cáliz; Flor"]
["Xochiapulco","http://www.balsas-nahuatl.org/DEMCA-Images/Xochiapulco","30585o_IMG_0873_ed-300nr_mgs.jpg","http://www.balsas-nahuatl.org/DEMCA-Images/Xochiapulco/30585o_IMG_0873_ed-300nr_mgs.jpg","30585","Mariano Gorostiza Salazar","Flor; Hoja; Rama o tallo"]
["Xochiapulco","http://www.balsas-nahuatl.org/DEMCA-Images/Xochiapulco","30586o_IMG_0897_ed-300nr_mgs.jpg","http://www.balsas-nahuatl.org/DEMCA-Images/Xochiapulco/30586o_IMG_0897_ed-300nr_mgs.jpg","30586","Mariano Gorostiza Salazar","Inflorescencia; Rama o tallo"]
["Xochiapulco","http://www.balsas-nahuatl.org/DEMCA-Images/Xochiapulco","30586o_IMG_0908_ed-300nr_mgs.jpg","http://www.balsas-nahuatl.org/DEMCA-Images/Xochiapulco/30586o_IMG_0908_ed-300nr_mgs.jpg","30586","Mariano Gorostiza Salazar","Hoja; Inflorescencia; Rama o tallo"]
["Xochiapulco","http://www.balsas-nahuatl.org/DEMCA-Images/Xochiapulco","30587o_IMG_0917_ed-300nr_mgs.jpg","http://www.balsas-nahuatl.org/DEMCA-Images/Xochiapulco/30587o_IMG_0917_ed-300nr_mgs.jpg","30587","Mariano Gorostiza Salazar","Inflorescencia; Rama o tallo"]
["Xochiapulco","http://www.balsas-nahuatl.org/DEMCA-Images/Xochiapulco","30587o_IMG_0928_ed-300nr_mgs.jpg","http://www.balsas-nahuatl.org/DEMCA-Images/Xochiapulco/30587o_IMG_0928_ed-300nr_mgs.jpg","30587","Mariano Gorostiza Salazar","Cáliz; Rama o tallo"]
["Xochiapulco","http://www.balsas-nahuatl.org/DEMCA-Images/Xochiapulco","30587o_IMG_0934_ed-300nr_mgs.jpg","http://www.balsas-nahuatl.org/DEMCA-Images/Xochiapulco/30587o_IMG_0934_ed-300nr_mgs.jpg","30587","Mariano Gorostiza Salazar","Hoja; Rama o tallo"]
["Xochiapulco","http://www.balsas-nahuatl.org/DEMCA-Images/Xochiapulco","30588o_IMG_0949_ed-cr-300nr_mgs.jpg","http://www.balsas-nahuatl.org/DEMCA-Images/Xochiapulco/30588o_IMG_0949_ed-cr-300nr_mgs.jpg","30588","Mariano Gorostiza Salazar","Flor; Rama o tallo"]
["Xochiapulco","http://www.balsas-nahuatl.org/DEMCA-Images/Xochiapulco","30588o_IMG_0975_ed-300nr_mgs.jpg","http://www.balsas-nahuatl.org/DEMCA-Images/Xochiapulco/30588o_IMG_0975_ed-300nr_mgs.jpg","30588","Mariano Gorostiza Salazar","Hoja; Rama o tallo"]
["Xochiapulco","http://www.balsas-nahuatl.org/DEMCA-Images/Xochiapulco","30588o_IMG_0984_ed-300nr_mgs.jpg","http://www.balsas-nahuatl.org/DEMCA-Images/Xochiapulco/30588o_IMG_0984_ed-300nr_mgs.jpg","30588","Mariano Gorostiza Salazar","Fruto; Rama o tallo"]
["Xochiapulco","http://www.balsas-nahuatl.org/DEMCA-Images/Xochiapulco","30589o_IMG_0993_ed-cr-300nr_mgs.jpg","http://www.balsas-nahuatl.org/DEMCA-Images/Xochiapulco/30589o_IMG_0993_ed-cr-300nr_mgs.jpg",{"$f":"LEFT(C195,5)","v":"30589"},"Mariano Gorostiza Salazar","Flor; Hoja"]
["Xochiapulco","http://www.balsas-nahuatl.org/DEMCA-Images/Xochiapulco","30589o_IMG_1006_ed-300nr_mgs.jpg","http://www.balsas-nahuatl.org/DEMCA-Images/Xochiapulco/30589o_IMG_1006_ed-300nr_mgs.jpg","30589","Mariano Gorostiza Salazar","Hoja; Planta entera"]
["Xochiapulco","http://www.balsas-nahuatl.org/DEMCA-Images/Xochiapulco","30590o_IMG_1008_ed-300nr_mgs.jpg","http://www.balsas-nahuatl.org/DEMCA-Images/Xochiapulco/30590o_IMG_1008_ed-300nr_mgs.jpg","30590","Mariano Gorostiza Salazar","Inflorescencia; Rama o tallo"]
["Xochiapulco","http://www.balsas-nahuatl.org/DEMCA-Images/Xochiapulco","30590o_IMG_1021_ed-cr-300nr_mgs.jpg","http://www.balsas-nahuatl.org/DEMCA-Images/Xochiapulco/30590o_IMG_1021_ed-cr-300nr_mgs.jpg","30590","Mariano Gorostiza Salazar","Inflorescencia; Rama o tallo"]
["Xochiapulco","http://www.balsas-nahuatl.org/DEMCA-Images/Xochiapulco","30590o_IMG_1029_ed-300nr_mgs.jpg","http://www.balsas-nahuatl.org/DEMCA-Images/Xochiapulco/30590o_IMG_1029_ed-300nr_mgs.jpg","30590","Mariano Gorostiza Salazar","Hoja; Inflorescencia; Rama o tallo"]
["Xochiapulco","http://www.balsas-nahuatl.org/DEMCA-Images/Xochiapulco","30613o_IMG_1900_ed-300nr_mgs.jpg","http://www.balsas-nahuatl.org/DEMCA-Images/Xochiapulco/30613o_IMG_1900_ed-300nr_mgs.jpg","30613","Mariano Gorostiza Salazar","Flor; Hoja; Rama o tallo"]
["Xochiapulco","http://www.balsas-nahuatl.org/DEMCA-Images/Xochiapulco","30613o_IMG_1909_ed-cr-300nr_mgs.jpg","http://www.balsas-nahuatl.org/DEMCA-Images/Xochiapulco/30613o_IMG_1909_ed-cr-300nr_mgs.jpg","30613","Mariano Gorostiza Salazar","Flor; Hoja"]
["Xochiapulco","http://www.balsas-nahuatl.org/DEMCA-Images/Xochiapulco","30614o_IMG_1936_ed-cr-300nr_mgs.jpg","http://www.balsas-nahuatl.org/DEMCA-Images/Xochiapulco/30614o_IMG_1936_ed-cr-300nr_mgs.jpg","30614","Mariano Gorostiza Salazar","Hoja; Inflorescencia; Rama o tallo"]
["Xochiapulco","http://www.balsas-nahuatl.org/DEMCA-Images/Xochiapulco","30614o_IMG_1945_ed-cr-300nr_mgs.jpg","http://www.balsas-nahuatl.org/DEMCA-Images/Xochiapulco/30614o_IMG_1945_ed-cr-300nr_mgs.jpg","30614","Mariano Gorostiza Salazar","Inflorescencia; Rama o tallo"]
["Xochiapulco","http://www.balsas-nahuatl.org/DEMCA-Images/Xochiapulco","30615o_IMG_1956_ed-cr-300nr_mgs.jpg","http://www.balsas-nahuatl.org/DEMCA-Images/Xochiapulco/30615o_IMG_1956_ed-cr-300nr_mgs.jpg","30615","Mariano Gorostiza Salazar","Flor; Hoja; Rama o tallo"]
["Xochiapulco","http://www.balsas-nahuatl.org/DEMCA-Images/Xochiapulco","30615o_IMG_1968_ed-cr-300nr_mgs.jpg","http://www.balsas-nahuatl.org/DEMCA-Images/Xochiapulco/30615o_IMG_1968_ed-cr-300nr_mgs.jpg","30615","Mariano Gorostiza Salazar","Hoja; Rama o tallo"]
["Xochiapulco","http://www.balsas-nahuatl.org/DEMCA-Images/Xochiapulco","30616o_IMG_1972_ed-300nr_mgs.jpg","http://www.balsas-nahuatl.org/DEMCA-Images/Xochiapulco/30616o_IMG_1972_ed-300nr_mgs.jpg","30616","Mariano Gorostiza Salazar","Hoja; Inflorescencia; Rama o tallo"]
["Xochiapulco","http://www.balsas-nahuatl.org/DEMCA-Images/Xochiapulco","30616o_IMG_1978_ed-300nr_mgs.jpg","http://www.balsas-nahuatl.org/DEMCA-Images/Xochiapulco/30616o_IMG_1978_ed-300nr_mgs.jpg","30616","Mariano Gorostiza Salazar","Hoja; Rama o tallo"]
["Xochiapulco","http://www.balsas-nahuatl.org/DEMCA-Images/Xochiapulco","30616o_IMG_1987_ed-cr-300nr_mgs.jpg","http://www.balsas-nahuatl.org/DEMCA-Images/Xochiapulco/30616o_IMG_1987_ed-cr-300nr_mgs.jpg","30616","Mariano Gorostiza Salazar","Inflorescencia; Rama o tallo"]
["Xochiapulco","http://www.balsas-nahuatl.org/DEMCA-Images/Xochiapulco","30617o_IMG_1988_ed-300nr_mgs.jpg","http://www.balsas-nahuatl.org/DEMCA-Images/Xochiapulco/30617o_IMG_1988_ed-300nr_mgs.jpg","30617","Mariano Gorostiza Salazar","Hoja; Inflorescencia; Rama o tallo"]
["Xochiapulco","http://www.balsas-nahuatl.org/DEMCA-Images/Xochiapulco","30617o_IMG_1991_ed-300nr_mgs.jpg","http://www.balsas-nahuatl.org/DEMCA-Images/Xochiapulco/30617o_IMG_1991_ed-300nr_mgs.jpg","30617","Mariano Gorostiza Salazar","Hoja; Rama o tallo"]
["Xochiapulco","http://www.balsas-nahuatl.org/DEMCA-Images/Xochiapulco","30617o_IMG_1997_ed-cr-300nr_mgs.jpg","http://www.balsas-nahuatl.org/DEMCA-Images/Xochiapulco/30617o_IMG_1997_ed-cr-300nr_mgs.jpg","30617","Mariano Gorostiza Salazar","Inflorescencia; Rama o tallo"]
["Xochiapulco","http://www.balsas-nahuatl.org/DEMCA-Images/Xochiapulco","30618o_IMG_2017_ed-300nr_mgs.jpg","http://www.balsas-nahuatl.org/DEMCA-Images/Xochiapulco/30618o_IMG_2017_ed-300nr_mgs.jpg","30618","Mariano Gorostiza Salazar","Hoja; Inflorescencia; Rama o tallo"]
["Xochiapulco","http://www.balsas-nahuatl.org/DEMCA-Images/Xochiapulco","30618o_IMG_2018_ed-cr-300nr_mgs.jpg","http://www.balsas-nahuatl.org/DEMCA-Images/Xochiapulco/30618o_IMG_2018_ed-cr-300nr_mgs.jpg","30618","Mariano Gorostiza Salazar","Cáliz; Flor"]
["Xochiapulco","http://www.balsas-nahuatl.org/DEMCA-Images/Xochiapulco","30625o_IMG_1931_ed-cr-300nr_mgs.jpg","http://www.balsas-nahuatl.org/DEMCA-Images/Xochiapulco/30625o_IMG_1931_ed-cr-300nr_mgs.jpg","30625","Mariano Gorostiza Salazar","Fruto; Hoja; Rama o tallo"]
["Xochiapulco","http://www.balsas-nahuatl.org/DEMCA-Images/Xochiapulco","30625o_IMG_1934_ed-300nr_mgs.jpg","http://www.balsas-nahuatl.org/DEMCA-Images/Xochiapulco/30625o_IMG_1934_ed-300nr_mgs.jpg","30625","Mariano Gorostiza Salazar","Fruto; Hoja"]
["Xochiapulco","http://www.balsas-nahuatl.org/DEMCA-Images/Xochiapulco","30625o_IMG_1949_ed-cr-300nr_mgs.jpg","http://www.balsas-nahuatl.org/DEMCA-Images/Xochiapulco/30625o_IMG_1949_ed-cr-300nr_mgs.jpg","30625","Mariano Gorostiza Salazar","Fruto; Rama o tallo"]
["Xochiapulco","http://www.balsas-nahuatl.org/DEMCA-Images/Xochiapulco","30626o_IMG_1957_ed-300nr_mgs.jpg","http://www.balsas-nahuatl.org/DEMCA-Images/Xochiapulco/30626o_IMG_1957_ed-300nr_mgs.jpg","30626","Mariano Gorostiza Salazar","Hoja; Inflorescencia; Rama o tallo"]
["Xochiapulco","http://www.balsas-nahuatl.org/DEMCA-Images/Xochiapulco","30626o_IMG_1958_ed-300nr_mgs.jpg","http://www.balsas-nahuatl.org/DEMCA-Images/Xochiapulco/30626o_IMG_1958_ed-300nr_mgs.jpg","30626","Mariano Gorostiza Salazar","Cáliz; Flor"]
["Xochiapulco","http://www.balsas-nahuatl.org/DEMCA-Images/Xochiapulco","30626o_IMG_1966_ed-300nr_mgs.jpg","http://www.balsas-nahuatl.org/DEMCA-Images/Xochiapulco/30626o_IMG_1966_ed-300nr_mgs.jpg","30626","Mariano Gorostiza Salazar","Inflorescencia; Rama o tallo"]
["Xochiapulco","http://www.balsas-nahuatl.org/DEMCA-Images/Xochiapulco","30627o_IMG_1976_ed-300nr_mgs.jpg","http://www.balsas-nahuatl.org/DEMCA-Images/Xochiapulco/30627o_IMG_1976_ed-300nr_mgs.jpg","30627","Mariano Gorostiza Salazar","Hoja; Inflorescencia; Rama o tallo"]
["Xochiapulco","http://www.balsas-nahuatl.org/DEMCA-Images/Xochiapulco","30627o_IMG_1987_ed-300nr_mgs.jpg","http://www.balsas-nahuatl.org/DEMCA-Images/Xochiapulco/30627o_IMG_1987_ed-300nr_mgs.jpg","30627","Mariano Gorostiza Salazar","Hoja; Rama o tallo"]
["Xochiapulco","http://www.balsas-nahuatl.org/DEMCA-Images/Xochiapulco","30628o_IMG_2000_ed-cr-300nr_mgs.jpg","http://www.balsas-nahuatl.org/DEMCA-Images/Xochiapulco/30628o_IMG_2000_ed-cr-300nr_mgs.jpg","30628","Mariano Gorostiza Salazar","Fruto; Hoja; Rama o tallo"]
["Xochiapulco","http://www.balsas-nahuatl.org/DEMCA-Images/Xochiapulco","30628o_IMG_2009_ed-300nr_mgs.jpg","http://www.balsas-nahuatl.org/DEMCA-Images/Xochiapulco/30628o_IMG_2009_ed-300nr_mgs.jpg","30628","Mariano Gorostiza Salazar","Hoja; Rama o tallo"]
["Xochiapulco","http://www.balsas-nahuatl.org/DEMCA-Images/Xochiapulco","30628o_IMG_2018_ed-cr-300nr_mgs.jpg","http://www.balsas-nahuatl.org/DEMCA-Images/Xochiapulco/30628o_IMG_2018_ed-cr-300nr_mgs.jpg","30628","Mariano Gorostiza Salazar","Tronco"]
["Xochiapulco","http://www.balsas-nahuatl.org/DEMCA-Images/Xochiapulco","30629o_IMG_2030_ed-cr-300nr_mgs.jpg","http://www.balsas-nahuatl.org/DEMCA-Images/Xochiapulco/30629o_IMG_2030_ed-cr-300nr_mgs.jpg","30629","Mariano Gorostiza Salazar","Inflorescencia; Rama o tallo"]
["Xochiapulco","http://www.balsas-nahuatl.org/DEMCA-Images/Xochiapulco","30629o_IMG_2036_ed-cr-300nr_mgs.jpg","http://www.balsas-nahuatl.org/DEMCA-Images/Xochiapulco/30629o_IMG_2036_ed-cr-300nr_mgs.jpg","30629","Mariano Gorostiza Salazar","Fruto; Rama o tallo"]
["Xochiapulco","http://www.balsas-nahuatl.org/DEMCA-Images/Xochiapulco","30629o_IMG_2041_ed-300nr_mgs.jpg","http://www.balsas-nahuatl.org/DEMCA-Images/Xochiapulco/30629o_IMG_2041_ed-300nr_mgs.jpg","30629","Mariano Gorostiza Salazar","Hoja; Rama o tallo"]
["Xochiapulco","http://www.balsas-nahuatl.org/DEMCA-Images/Xochiapulco","30630o_IMG_2078_ed-300nr_mgs.jpg","http://www.balsas-nahuatl.org/DEMCA-Images/Xochiapulco/30630o_IMG_2078_ed-300nr_mgs.jpg","30630","Mariano Gorostiza Salazar","Hoja; Inflorescencia; Rama o tallo"]
["Xochiapulco","http://www.balsas-nahuatl.org/DEMCA-Images/Xochiapulco","30630o_IMG_2082_ed-cr-300nr_mgs.jpg","http://www.balsas-nahuatl.org/DEMCA-Images/Xochiapulco/30630o_IMG_2082_ed-cr-300nr_mgs.jpg","30630","Mariano Gorostiza Salazar","Fruto; Rama o tallo"]
["Xochiapulco","http://www.balsas-nahuatl.org/DEMCA-Images/Xochiapulco","30631o_IMG_2057_ed-300nr_mgs.jpg","http://www.balsas-nahuatl.org/DEMCA-Images/Xochiapulco/30631o_IMG_2057_ed-300nr_mgs.jpg","30631","Mariano Gorostiza Salazar","Hoja; Rama o tallo"]
["Xochiapulco","http://www.balsas-nahuatl.org/DEMCA-Images/Xochiapulco","30631o_IMG_2062_ed-300nr_mgs.jpg","http://www.balsas-nahuatl.org/DEMCA-Images/Xochiapulco/30631o_IMG_2062_ed-300nr_mgs.jpg","30631","Mariano Gorostiza Salazar","Hoja; Rama o tallo"]
["Xochiapulco","http://www.balsas-nahuatl.org/DEMCA-Images/Xochiapulco","30631o_IMG_2074_ed-300nr_mgs.jpg","http://www.balsas-nahuatl.org/DEMCA-Images/Xochiapulco/30631o_IMG_2074_ed-300nr_mgs.jpg","30631","Mariano Gorostiza Salazar","Hoja; Rama o tallo"]
["Xochiapulco","http://www.balsas-nahuatl.org/DEMCA-Images/Xochiapulco","30632o_IMG_2109_ed-cr-300nr_mgs.jpg","http://www.balsas-nahuatl.org/DEMCA-Images/Xochiapulco/30632o_IMG_2109_ed-cr-300nr_mgs.jpg","30632","Mariano Gorostiza Salazar","Hoja; Rama o tallo"]
["Xochiapulco","http://www.balsas-nahuatl.org/DEMCA-Images/Xochiapulco","30632o_IMG_2112_ed-cr-300nr_mgs.jpg","http://www.balsas-nahuatl.org/DEMCA-Images/Xochiapulco/30632o_IMG_2112_ed-cr-300nr_mgs.jpg","30632","Mariano Gorostiza Salazar","Inflorescencia; Rama o tallo"]
["Xochiapulco","http://www.balsas-nahuatl.org/DEMCA-Images/Xochiapulco","30632o_IMG_2122_ed-cr-300nr_mgs.jpg","http://www.balsas-nahuatl.org/DEMCA-Images/Xochiapulco/30632o_IMG_2122_ed-cr-300nr_mgs.jpg","30632","Mariano Gorostiza Salazar","Hoja; Inflorescencia; Rama o tallo"]
["Xochiapulco","http://www.balsas-nahuatl.org/DEMCA-Images/Xochiapulco","30638o_IMG_2330_ed-cr-300nr_mgs.jpg","http://www.balsas-nahuatl.org/DEMCA-Images/Xochiapulco/30638o_IMG_2330_ed-cr-300nr_mgs.jpg","30638","Mariano Gorostiza Salazar","Flor; Rama o tallo"]
["Xochiapulco","http://www.balsas-nahuatl.org/DEMCA-Images/Xochiapulco","30638o_IMG_2344_ed-300nr_mgs.jpg","http://www.balsas-nahuatl.org/DEMCA-Images/Xochiapulco/30638o_IMG_2344_ed-300nr_mgs.jpg","30638","Mariano Gorostiza Salazar","Flor; Hoja; Planta entera"]
["Xochiapulco","http://www.balsas-nahuatl.org/DEMCA-Images/Xochiapulco","30639o_IMG_2309_ed-300nr_mgs.jpg","http://www.balsas-nahuatl.org/DEMCA-Images/Xochiapulco/30639o_IMG_2309_ed-300nr_mgs.jpg","30639","Mariano Gorostiza Salazar","Hoja; Rama o tallo"]
["Xochiapulco","http://www.balsas-nahuatl.org/DEMCA-Images/Xochiapulco","30639o_IMG_2314_ed-cr-300nr_mgs.jpg","http://www.balsas-nahuatl.org/DEMCA-Images/Xochiapulco/30639o_IMG_2314_ed-cr-300nr_mgs.jpg","30639","Mariano Gorostiza Salazar","Hoja; Inflorescencia"]
["Xochiapulco","http://www.balsas-nahuatl.org/DEMCA-Images/Xochiapulco","30640o_IMG_2348_ed-300nr_mgs.jpg","http://www.balsas-nahuatl.org/DEMCA-Images/Xochiapulco/30640o_IMG_2348_ed-300nr_mgs.jpg","30640","Mariano Gorostiza Salazar","Inflorescencia; Rama o tallo"]
["Xochiapulco","http://www.balsas-nahuatl.org/DEMCA-Images/Xochiapulco","30640o_IMG_2357_ed-300nr_mgs.jpg","http://www.balsas-nahuatl.org/DEMCA-Images/Xochiapulco/30640o_IMG_2357_ed-300nr_mgs.jpg","30640","Mariano Gorostiza Salazar","Cáliz; Flor"]
["Xochiapulco","http://www.balsas-nahuatl.org/DEMCA-Images/Xochiapulco","30640o_IMG_2362_ed-300nr_mgs.jpg","http://www.balsas-nahuatl.org/DEMCA-Images/Xochiapulco/30640o_IMG_2362_ed-300nr_mgs.jpg","30640","Mariano Gorostiza Salazar","Cáliz; Flor"]
["Xochiapulco","http://www.balsas-nahuatl.org/DEMCA-Images/Xochiapulco","30641o_IMG_2444_ed-300nr_mgs.jpg","http://www.balsas-nahuatl.org/DEMCA-Images/Xochiapulco/30641o_IMG_2444_ed-300nr_mgs.jpg","30641","Mariano Gorostiza Salazar","Flor; Rama o tallo"]
["Xochiapulco","http://www.balsas-nahuatl.org/DEMCA-Images/Xochiapulco","30641o_IMG_2449_ed-cr-300nr_mgs.jpg","http://www.balsas-nahuatl.org/DEMCA-Images/Xochiapulco/30641o_IMG_2449_ed-cr-300nr_mgs.jpg","30641","Mariano Gorostiza Salazar","Cáliz; Flor; Rama o tallo"]
["Xochiapulco","http://www.balsas-nahuatl.org/DEMCA-Images/Xochiapulco","30641o_IMG_2461_ed-300nr_mgs.jpg","http://www.balsas-nahuatl.org/DEMCA-Images/Xochiapulco/30641o_IMG_2461_ed-300nr_mgs.jpg","30641","Mariano Gorostiza Salazar","Flor; Rama o tallo"]
["Xochiapulco","http://www.balsas-nahuatl.org/DEMCA-Images/Xochiapulco","30642o_IMG_2470_ed-300nr_mgs.jpg","http://www.balsas-nahuatl.org/DEMCA-Images/Xochiapulco/30642o_IMG_2470_ed-300nr_mgs.jpg","30642","Mariano Gorostiza Salazar","Hoja; Inflorescencia"]
["Xochiapulco","http://www.balsas-nahuatl.org/DEMCA-Images/Xochiapulco","30642o_IMG_2476_ed-300nr_mgs.jpg","http://www.balsas-nahuatl.org/DEMCA-Images/Xochiapulco/30642o_IMG_2476_ed-300nr_mgs.jpg","30642","Mariano Gorostiza Salazar","Inflorescencia"]
["Xochiapulco","http://www.balsas-nahuatl.org/DEMCA-Images/Xochiapulco","30643o_IMG_2368_ed-cr-300nr_mgs.jpg","http://www.balsas-nahuatl.org/DEMCA-Images/Xochiapulco/30643o_IMG_2368_ed-cr-300nr_mgs.jpg","30643","Mariano Gorostiza Salazar","Flor; Rama o tallo"]
["Xochiapulco","http://www.balsas-nahuatl.org/DEMCA-Images/Xochiapulco","30643o_IMG_2375_ed-300nr_mgs.jpg","http://www.balsas-nahuatl.org/DEMCA-Images/Xochiapulco/30643o_IMG_2375_ed-300nr_mgs.jpg","30643","Mariano Gorostiza Salazar","Hoja; Inflorescencia; Planta entera"]
["Xochiapulco","http://www.balsas-nahuatl.org/DEMCA-Images/Xochiapulco","30643o_IMG_2406_ed-cr-300nr_mgs.jpg","http://www.balsas-nahuatl.org/DEMCA-Images/Xochiapulco/30643o_IMG_2406_ed-cr-300nr_mgs.jpg","30643","Mariano Gorostiza Salazar","Flor; Rama o tallo"]
["Xochiapulco","http://www.balsas-nahuatl.org/DEMCA-Images/Xochiapulco","30643o_IMG_2414_ed-300nr_mgs.jpg","http://www.balsas-nahuatl.org/DEMCA-Images/Xochiapulco/30643o_IMG_2414_ed-300nr_mgs.jpg","30643","Mariano Gorostiza Salazar","Inflorescencia; Rama o tallo"]
["Xochiapulco","http://www.balsas-nahuatl.org/DEMCA-Images/Xochiapulco","30644o_IMG_2508_ed-300nr_mgs.jpg","http://www.balsas-nahuatl.org/DEMCA-Images/Xochiapulco/30644o_IMG_2508_ed-300nr_mgs.jpg","30644","Mariano Gorostiza Salazar","Inflorescencia; Rama o tallo"]
["Xochiapulco","http://www.balsas-nahuatl.org/DEMCA-Images/Xochiapulco","30644o_IMG_2514_ed-300nr_mgs.jpg","http://www.balsas-nahuatl.org/DEMCA-Images/Xochiapulco/30644o_IMG_2514_ed-300nr_mgs.jpg","30644","Mariano Gorostiza Salazar","Cáliz; Flor"]
["Xochiapulco","http://www.balsas-nahuatl.org/DEMCA-Images/Xochiapulco","30644o_IMG_2519_ed-cr-300nr_mgs.jpg","http://www.balsas-nahuatl.org/DEMCA-Images/Xochiapulco/30644o_IMG_2519_ed-cr-300nr_mgs.jpg","30644","Mariano Gorostiza Salazar","Cáliz; Flor"]
["Xochiapulco","http://www.balsas-nahuatl.org/DEMCA-Images/Xochiapulco","30645o_IMG_2483_ed-cr-300nr_mgs.jpg","http://www.balsas-nahuatl.org/DEMCA-Images/Xochiapulco/30645o_IMG_2483_ed-cr-300nr_mgs.jpg","30645","Mariano Gorostiza Salazar","Hoja; Inflorescencia; Rama o tallo"]
["Xochiapulco","http://www.balsas-nahuatl.org/DEMCA-Images/Xochiapulco","30645o_IMG_2498_ed-300nr_mgs.jpg","http://www.balsas-nahuatl.org/DEMCA-Images/Xochiapulco/30645o_IMG_2498_ed-300nr_mgs.jpg","30645","Mariano Gorostiza Salazar","Hoja; Rama o tallo"]
["Xochiapulco","http://www.balsas-nahuatl.org/DEMCA-Images/Xochiapulco","30646o_IMG_2605_ed-300nr_mgs.jpg","http://www.balsas-nahuatl.org/DEMCA-Images/Xochiapulco/30646o_IMG_2605_ed-300nr_mgs.jpg","30646","Mariano Gorostiza Salazar","Hoja; Rama o tallo"]
["Xochiapulco","http://www.balsas-nahuatl.org/DEMCA-Images/Xochiapulco","30646o_IMG_2608_ed-300nr_mgs.jpg","http://www.balsas-nahuatl.org/DEMCA-Images/Xochiapulco/30646o_IMG_2608_ed-300nr_mgs.jpg","30646","Mariano Gorostiza Salazar","Hoja; Inflorescencia; Rama o tallo"]
["Xochiapulco","http://www.balsas-nahuatl.org/DEMCA-Images/Xochiapulco","30646o_IMG_2620_ed-cr-300nr_mgs.jpg","http://www.balsas-nahuatl.org/DEMCA-Images/Xochiapulco/30646o_IMG_2620_ed-cr-300nr_mgs.jpg",{"$f":"LEFT(C259,5)","v":"30646"},"Mariano Gorostiza Salazar","Cáliz; Flor"]
["Xochiapulco","http://www.balsas-nahuatl.org/DEMCA-Images/Xochiapulco","30647o_IMG_2541_ed-cr-300nr_mgs.jpg","http://www.balsas-nahuatl.org/DEMCA-Images/Xochiapulco/30647o_IMG_2541_ed-cr-300nr_mgs.jpg","30647","Mariano Gorostiza Salazar","Cáliz; Flor"]
["Xochiapulco","http://www.balsas-nahuatl.org/DEMCA-Images/Xochiapulco","30647o_IMG_2548_ed-300nr_mgs.jpg","http://www.balsas-nahuatl.org/DEMCA-Images/Xochiapulco/30647o_IMG_2548_ed-300nr_mgs.jpg","30647","Mariano Gorostiza Salazar","Flor; Rama o tallo"]
["Xochiapulco","http://www.balsas-nahuatl.org/DEMCA-Images/Xochiapulco","30648o_IMG_2559_ed-cr-300nr_mgs.jpg","http://www.balsas-nahuatl.org/DEMCA-Images/Xochiapulco/30648o_IMG_2559_ed-cr-300nr_mgs.jpg","30648","Mariano Gorostiza Salazar","Inflorescencia; Rama o tallo"]
["Xochiapulco","http://www.balsas-nahuatl.org/DEMCA-Images/Xochiapulco","30648o_IMG_2567_ed-300nr_mgs.jpg","http://www.balsas-nahuatl.org/DEMCA-Images/Xochiapulco/30648o_IMG_2567_ed-300nr_mgs.jpg","30648","Mariano Gorostiza Salazar","Cáliz; Flor"]
["Xochiapulco","http://www.balsas-nahuatl.org/DEMCA-Images/Xochiapulco","30648o_IMG_2574_ed-300nr_mgs.jpg","http://www.balsas-nahuatl.org/DEMCA-Images/Xochiapulco/30648o_IMG_2574_ed-300nr_mgs.jpg","30648","Mariano Gorostiza Salazar","Cáliz; Flor"]
["Xochiapulco","http://www.balsas-nahuatl.org/DEMCA-Images/Xochiapulco","30649o_IMG_2628_ed-300nr_mgs.jpg","http://www.balsas-nahuatl.org/DEMCA-Images/Xochiapulco/30649o_IMG_2628_ed-300nr_mgs.jpg","30649","Mariano Gorostiza Salazar","Hoja; Inflorescencia; Rama o tallo"]
["Xochiapulco","http://www.balsas-nahuatl.org/DEMCA-Images/Xochiapulco","30649o_IMG_2632_ed-cr-300nr_mgs.jpg","http://www.balsas-nahuatl.org/DEMCA-Images/Xochiapulco/30649o_IMG_2632_ed-cr-300nr_mgs.jpg","30649","Mariano Gorostiza Salazar","Inflorescencia; Rama o tallo"]
["Xochiapulco","http://www.balsas-nahuatl.org/DEMCA-Images/Xochiapulco","30649o_IMG_2649_ed-cr-300nr_mgs.jpg","http://www.balsas-nahuatl.org/DEMCA-Images/Xochiapulco/30649o_IMG_2649_ed-cr-300nr_mgs.jpg","30649","Mariano Gorostiza Salazar","Inflorescencia; Rama o tallo"]
["Xochiapulco","http://www.balsas-nahuatl.org/DEMCA-Images/Xochiapulco","30650o_IMG_2657_ed-cr-300nr_mgs.jpg","http://www.balsas-nahuatl.org/DEMCA-Images/Xochiapulco/30650o_IMG_2657_ed-cr-300nr_mgs.jpg","30650","Mariano Gorostiza Salazar","Hoja; Inflorescencia"]
["Xochiapulco","http://www.balsas-nahuatl.org/DEMCA-Images/Xochiapulco","30650o_IMG_2664_ed-cr-300nr_mgs.jpg","http://www.balsas-nahuatl.org/DEMCA-Images/Xochiapulco/30650o_IMG_2664_ed-cr-300nr_mgs.jpg","30650","Mariano Gorostiza Salazar","Inflorescencia; Rama o tallo"]
["Xochiapulco","http://www.balsas-nahuatl.org/DEMCA-Images/Xochiapulco","30650o_IMG_2672_ed-300nr_mgs.jpg","http://www.balsas-nahuatl.org/DEMCA-Images/Xochiapulco/30650o_IMG_2672_ed-300nr_mgs.jpg","30650","Mariano Gorostiza Salazar","Inflorescencia; Rama o tallo"]
["Xochiapulco","http://www.balsas-nahuatl.org/DEMCA-Images/Xochiapulco","30651o_IMG_2679_ed-300nr_mgs.jpg","http://www.balsas-nahuatl.org/DEMCA-Images/Xochiapulco/30651o_IMG_2679_ed-300nr_mgs.jpg","30651","Mariano Gorostiza Salazar","Hoja; Rama o tallo"]
["Xochiapulco","http://www.balsas-nahuatl.org/DEMCA-Images/Xochiapulco","30651o_IMG_2686_ed-cr-300nr_mgs.jpg","http://www.balsas-nahuatl.org/DEMCA-Images/Xochiapulco/30651o_IMG_2686_ed-cr-300nr_mgs.jpg","30651","Mariano Gorostiza Salazar","Cáliz; Flor"]
["Xochiapulco","http://www.balsas-nahuatl.org/DEMCA-Images/Xochiapulco","30651o_IMG_2694_ed-cr-300nr_mgs.jpg","http://www.balsas-nahuatl.org/DEMCA-Images/Xochiapulco/30651o_IMG_2694_ed-cr-300nr_mgs.jpg","30651","Mariano Gorostiza Salazar","Cáliz; Flor"]
["Xochiapulco","http://www.balsas-nahuatl.org/DEMCA-Images/Xochiapulco","30652o_IMG_2705_ed-300nr_mgs.jpg","http://www.balsas-nahuatl.org/DEMCA-Images/Xochiapulco/30652o_IMG_2705_ed-300nr_mgs.jpg","30652","Mariano Gorostiza Salazar","Flor; Hoja; Rama o tallo"]
["Xochiapulco","http://www.balsas-nahuatl.org/DEMCA-Images/Xochiapulco","30652o_IMG_2708_ed-300nr_mgs.jpg","http://www.balsas-nahuatl.org/DEMCA-Images/Xochiapulco/30652o_IMG_2708_ed-300nr_mgs.jpg","30652","Mariano Gorostiza Salazar","Cáliz; Flor"]
["Xochiapulco","http://www.balsas-nahuatl.org/DEMCA-Images/Xochiapulco","30653o_IMG_2716_ed-cr-300nr_mgs.jpg","http://www.balsas-nahuatl.org/DEMCA-Images/Xochiapulco/30653o_IMG_2716_ed-cr-300nr_mgs.jpg","30653","Mariano Gorostiza Salazar","Fruto; Rama o tallo"]
["Xochiapulco","http://www.balsas-nahuatl.org/DEMCA-Images/Xochiapulco","30653o_IMG_2934_ed-cr-300nr_mgs.jpg","http://www.balsas-nahuatl.org/DEMCA-Images/Xochiapulco/30653o_IMG_2934_ed-cr-300nr_mgs.jpg","30653","Mariano Gorostiza Salazar","Flor; Rama o tallo"]
["Xochiapulco","http://www.balsas-nahuatl.org/DEMCA-Images/Xochiapulco","30653o_IMG_2944_ed-cr-300nr_mgs.jpg","http://www.balsas-nahuatl.org/DEMCA-Images/Xochiapulco/30653o_IMG_2944_ed-cr-300nr_mgs.jpg","30653","Mariano Gorostiza Salazar","Cáliz; Flor"]
["Xochiapulco","http://www.balsas-nahuatl.org/DEMCA-Images/Xochiapulco","30654o_IMG_2731_ed-300nr_mgs.jpg","http://www.balsas-nahuatl.org/DEMCA-Images/Xochiapulco/30654o_IMG_2731_ed-300nr_mgs.jpg","30654","Mariano Gorostiza Salazar","Hoja; Inflorescencia"]
["Xochiapulco","http://www.balsas-nahuatl.org/DEMCA-Images/Xochiapulco","30654o_IMG_2733_ed-300nr_mgs.jpg","http://www.balsas-nahuatl.org/DEMCA-Images/Xochiapulco/30654o_IMG_2733_ed-300nr_mgs.jpg","30654","Mariano Gorostiza Salazar","Inflorescencia; Rama o tallo"]
["Xochiapulco","http://www.balsas-nahuatl.org/DEMCA-Images/Xochiapulco","30654o_IMG_2735_ed-300nr_mgs.jpg","http://www.balsas-nahuatl.org/DEMCA-Images/Xochiapulco/30654o_IMG_2735_ed-300nr_mgs.jpg","30654","Mariano Gorostiza Salazar","Hoja; Rama o tallo"]
["Xochiapulco","http://www.balsas-nahuatl.org/DEMCA-Images/Xochiapulco","30655o_IMG_2742_ed-300nr_mgs.jpg","http://www.balsas-nahuatl.org/DEMCA-Images/Xochiapulco/30655o_IMG_2742_ed-300nr_mgs.jpg","30655","Mariano Gorostiza Salazar","Hoja; Rama o tallo"]
["Xochiapulco","http://www.balsas-nahuatl.org/DEMCA-Images/Xochiapulco","30655o_IMG_2748_ed-300nr_mgs.jpg","http://www.balsas-nahuatl.org/DEMCA-Images/Xochiapulco/30655o_IMG_2748_ed-300nr_mgs.jpg","30655","Mariano Gorostiza Salazar","Hoja; Rama o tallo"]
["Xochiapulco","http://www.balsas-nahuatl.org/DEMCA-Images/Xochiapulco","30655o_IMG_2756_ed-300nr_mgs.jpg","http://www.balsas-nahuatl.org/DEMCA-Images/Xochiapulco/30655o_IMG_2756_ed-300nr_mgs.jpg","30655","Mariano Gorostiza Salazar","Hoja; Inflorescencia"]
["Xochiapulco","http://www.balsas-nahuatl.org/DEMCA-Images/Xochiapulco","30656o_IMG_2762_ed-300nr_mgs.jpg","http://www.balsas-nahuatl.org/DEMCA-Images/Xochiapulco/30656o_IMG_2762_ed-300nr_mgs.jpg","30656","Mariano Gorostiza Salazar","Hoja; Inflorescencia; Planta entera"]
["Xochiapulco","http://www.balsas-nahuatl.org/DEMCA-Images/Xochiapulco","30656o_IMG_2764_ed-300nr_mgs.jpg","http://www.balsas-nahuatl.org/DEMCA-Images/Xochiapulco/30656o_IMG_2764_ed-300nr_mgs.jpg","30656","Mariano Gorostiza Salazar","Inflorescencia; Rama o tallo"]
["Xochiapulco","http://www.balsas-nahuatl.org/DEMCA-Images/Xochiapulco","30656o_IMG_2774_ed-cr-300nr_mgs.jpg","http://www.balsas-nahuatl.org/DEMCA-Images/Xochiapulco/30656o_IMG_2774_ed-cr-300nr_mgs.jpg","30656","Mariano Gorostiza Salazar","Inflorescencia; Rama o tallo"]
["Xochiapulco","http://www.balsas-nahuatl.org/DEMCA-Images/Xochiapulco","30657o_IMG_2783_ed-cr-300nr_mgs.jpg","http://www.balsas-nahuatl.org/DEMCA-Images/Xochiapulco/30657o_IMG_2783_ed-cr-300nr_mgs.jpg","30657","Mariano Gorostiza Salazar","Flor; Rama o tallo"]
["Xochiapulco","http://www.balsas-nahuatl.org/DEMCA-Images/Xochiapulco","30657o_IMG_2788_ed-cr-300nr_mgs.jpg","http://www.balsas-nahuatl.org/DEMCA-Images/Xochiapulco/30657o_IMG_2788_ed-cr-300nr_mgs.jpg","30657","Mariano Gorostiza Salazar","Flor; Rama o tallo"]
["Xochiapulco","http://www.balsas-nahuatl.org/DEMCA-Images/Xochiapulco","30657o_IMG_2803_ed-300nr_mgs.jpg","http://www.balsas-nahuatl.org/DEMCA-Images/Xochiapulco/30657o_IMG_2803_ed-300nr_mgs.jpg","30657","Mariano Gorostiza Salazar","Flor; Rama o tallo"]
["Xochiapulco","http://www.balsas-nahuatl.org/DEMCA-Images/Xochiapulco","30658o_IMG_2807_ed-300nr_mgs.jpg","http://www.balsas-nahuatl.org/DEMCA-Images/Xochiapulco/30658o_IMG_2807_ed-300nr_mgs.jpg","30658","Mariano Gorostiza Salazar","Hoja; Rama o tallo"]
["Xochiapulco","http://www.balsas-nahuatl.org/DEMCA-Images/Xochiapulco","30658o_IMG_2819_ed-cr-300nr_mgs.jpg","http://www.balsas-nahuatl.org/DEMCA-Images/Xochiapulco/30658o_IMG_2819_ed-cr-300nr_mgs.jpg","30658","Mariano Gorostiza Salazar","Inflorescencia; Rama o tallo"]
["Xochiapulco","http://www.balsas-nahuatl.org/DEMCA-Images/Xochiapulco","30658o_IMG_2820_ed-cr-300nr_mgs.jpg","http://www.balsas-nahuatl.org/DEMCA-Images/Xochiapulco/30658o_IMG_2820_ed-cr-300nr_mgs.jpg","30658","Mariano Gorostiza Salazar","Hoja; Inflorescencia"]
["Xochiapulco","http://www.balsas-nahuatl.org/DEMCA-Images/Xochiapulco","30659o_IMG_2831_ed-300nr_mgs.jpg","http://www.balsas-nahuatl.org/DEMCA-Images/Xochiapulco/30659o_IMG_2831_ed-300nr_mgs.jpg","30659","Mariano Gorostiza Salazar","Hoja; Inflorescencia; Rama o tallo"]
["Xochiapulco","http://www.balsas-nahuatl.org/DEMCA-Images/Xochiapulco","30659o_IMG_2843_ed-cr-300nr_mgs.jpg","http://www.balsas-nahuatl.org/DEMCA-Images/Xochiapulco/30659o_IMG_2843_ed-cr-300nr_mgs.jpg","30659","Mariano Gorostiza Salazar","Inflorescencia; Rama o tallo"]
["Xochiapulco","http://www.balsas-nahuatl.org/DEMCA-Images/Xochiapulco","30659o_IMG_2845_ed-cr-300nr_mgs.jpg","http://www.balsas-nahuatl.org/DEMCA-Images/Xochiapulco/30659o_IMG_2845_ed-cr-300nr_mgs.jpg","30659","Mariano Gorostiza Salazar","Fruto; Rama o tallo"]
["Xochiapulco","http://www.balsas-nahuatl.org/DEMCA-Images/Xochiapulco","30660o_IMG_2849_ed-cr-300nr_mgs.jpg","http://www.balsas-nahuatl.org/DEMCA-Images/Xochiapulco/30660o_IMG_2849_ed-cr-300nr_mgs.jpg","30660","Mariano Gorostiza Salazar","Hoja; Inflorescencia; Rama o tallo"]
["Xochiapulco","http://www.balsas-nahuatl.org/DEMCA-Images/Xochiapulco","30660o_IMG_2855_ed-cr-300nr_mgs.jpg","http://www.balsas-nahuatl.org/DEMCA-Images/Xochiapulco/30660o_IMG_2855_ed-cr-300nr_mgs.jpg","30660","Mariano Gorostiza Salazar","Hoja; Rama o tallo"]
["Xochiapulco","http://www.balsas-nahuatl.org/DEMCA-Images/Xochiapulco","30661o_IMG_2864_ed-cr-300nr_mgs.jpg","http://www.balsas-nahuatl.org/DEMCA-Images/Xochiapulco/30661o_IMG_2864_ed-cr-300nr_mgs.jpg","30661","Mariano Gorostiza Salazar","Hoja; Rama o tallo"]
["Xochiapulco","http://www.balsas-nahuatl.org/DEMCA-Images/Xochiapulco","30661o_IMG_2868_ed-300nr_mgs.jpg","http://www.balsas-nahuatl.org/DEMCA-Images/Xochiapulco/30661o_IMG_2868_ed-300nr_mgs.jpg","30661","Mariano Gorostiza Salazar","Flor; Rama o tallo"]
["Xochiapulco","http://www.balsas-nahuatl.org/DEMCA-Images/Xochiapulco","30661o_IMG_2884_ed-cr-300nr_mgs.jpg","http://www.balsas-nahuatl.org/DEMCA-Images/Xochiapulco/30661o_IMG_2884_ed-cr-300nr_mgs.jpg","30661","Mariano Gorostiza Salazar","Cáliz; Flor"]
["Xochiapulco","http://www.balsas-nahuatl.org/DEMCA-Images/Xochiapulco","30662o_IMG_2891_ed-300nr_mgs.jpg","http://www.balsas-nahuatl.org/DEMCA-Images/Xochiapulco/30662o_IMG_2891_ed-300nr_mgs.jpg","30662","Mariano Gorostiza Salazar","Hoja; Inflorescencia; Rama o tallo"]
["Xochiapulco","http://www.balsas-nahuatl.org/DEMCA-Images/Xochiapulco","30662o_IMG_2895_ed-300nr_mgs.jpg","http://www.balsas-nahuatl.org/DEMCA-Images/Xochiapulco/30662o_IMG_2895_ed-300nr_mgs.jpg","30662","Mariano Gorostiza Salazar","Inflorescencia; Rama o tallo"]
["Xochiapulco","http://www.balsas-nahuatl.org/DEMCA-Images/Xochiapulco","30662o_IMG_2902_ed-300nr_mgs.jpg","http://www.balsas-nahuatl.org/DEMCA-Images/Xochiapulco/30662o_IMG_2902_ed-300nr_mgs.jpg","30662","Mariano Gorostiza Salazar","Cáliz; Rama o tallo"]
["Xochiapulco","http://www.balsas-nahuatl.org/DEMCA-Images/Xochiapulco","30663o_IMG_2911_ed-300nr_mgs.jpg","http://www.balsas-nahuatl.org/DEMCA-Images/Xochiapulco/30663o_IMG_2911_ed-300nr_mgs.jpg","30663","Mariano Gorostiza Salazar","Hoja; Rama o tallo"]
["Xochiapulco","http://www.balsas-nahuatl.org/DEMCA-Images/Xochiapulco","30663o_IMG_2920_ed-cr-300nr_mgs.jpg","http://www.balsas-nahuatl.org/DEMCA-Images/Xochiapulco/30663o_IMG_2920_ed-cr-300nr_mgs.jpg","30663","Mariano Gorostiza Salazar","Flor; Rama o tallo"]
["Xochiapulco","http://www.balsas-nahuatl.org/DEMCA-Images/Xochiapulco","30663o_IMG_2926_ed-cr-300nr_mgs.jpg","http://www.balsas-nahuatl.org/DEMCA-Images/Xochiapulco/30663o_IMG_2926_ed-cr-300nr_mgs.jpg","30663","Mariano Gorostiza Salazar","Flor; Hoja; Rama o tallo"]
["Xochiapulco","http://www.balsas-nahuatl.org/DEMCA-Images/Xochiapulco","30664o_IMG_2952_ed-300nr_mgs.jpg","http://www.balsas-nahuatl.org/DEMCA-Images/Xochiapulco/30664o_IMG_2952_ed-300nr_mgs.jpg","30664","Mariano Gorostiza Salazar","Hoja; Inflorescencia"]
["Xochiapulco","http://www.balsas-nahuatl.org/DEMCA-Images/Xochiapulco","30664o_IMG_2964_ed-300nr_mgs.jpg","http://www.balsas-nahuatl.org/DEMCA-Images/Xochiapulco/30664o_IMG_2964_ed-300nr_mgs.jpg","30664","Mariano Gorostiza Salazar","Inflorescencia; Rama o tallo"]
["Xochiapulco","http://www.balsas-nahuatl.org/DEMCA-Images/Xochiapulco","30665o_IMG_2969_ed-cr-300nr_mgs.jpg","http://www.balsas-nahuatl.org/DEMCA-Images/Xochiapulco/30665o_IMG_2969_ed-cr-300nr_mgs.jpg","30665","Mariano Gorostiza Salazar","Hoja; Rama o tallo"]
["Xochiapulco","http://www.balsas-nahuatl.org/DEMCA-Images/Xochiapulco","30665o_IMG_2972_ed-300nr_mgs.jpg","http://www.balsas-nahuatl.org/DEMCA-Images/Xochiapulco/30665o_IMG_2972_ed-300nr_mgs.jpg","30665","Mariano Gorostiza Salazar","Flor; Hoja; Rama o tallo"]
["Xochiapulco","http://www.balsas-nahuatl.org/DEMCA-Images/Xochiapulco","30665o_IMG_2981_ed-300nr_mgs.jpg","http://www.balsas-nahuatl.org/DEMCA-Images/Xochiapulco/30665o_IMG_2981_ed-300nr_mgs.jpg","30665","Mariano Gorostiza Salazar","Fruto; Rama o tallo"]
["Xochiapulco","http://www.balsas-nahuatl.org/DEMCA-Images/Xochiapulco","30666o_IMG_2997_ed-cr-300nr_mgs.jpg","http://www.balsas-nahuatl.org/DEMCA-Images/Xochiapulco/30666o_IMG_2997_ed-cr-300nr_mgs.jpg","30666","Mariano Gorostiza Salazar","Flor; Hoja; Planta entera"]
["Xochiapulco","http://www.balsas-nahuatl.org/DEMCA-Images/Xochiapulco","30666o_IMG_3007_ed-cr-300nr_mgs.jpg","http://www.balsas-nahuatl.org/DEMCA-Images/Xochiapulco/30666o_IMG_3007_ed-cr-300nr_mgs.jpg","30666","Mariano Gorostiza Salazar","Flor; Planta entera"]
["Xochiapulco","http://www.balsas-nahuatl.org/DEMCA-Images/Xochiapulco","30666o_IMG_3010_ed-cr-300nr_mgs.jpg","http://www.balsas-nahuatl.org/DEMCA-Images/Xochiapulco/30666o_IMG_3010_ed-cr-300nr_mgs.jpg","30666","Mariano Gorostiza Salazar","Flor; Hoja"]
["Xochiapulco","http://www.balsas-nahuatl.org/DEMCA-Images/Xochiapulco","30667o_IMG_3034_ed-300nr_mgs.jpg","http://www.balsas-nahuatl.org/DEMCA-Images/Xochiapulco/30667o_IMG_3034_ed-300nr_mgs.jpg","30667","Mariano Gorostiza Salazar","Inflorescencia; Rama o tallo"]
["Xochiapulco","http://www.balsas-nahuatl.org/DEMCA-Images/Xochiapulco","30667o_IMG_3048_ed-300nr_mgs.jpg","http://www.balsas-nahuatl.org/DEMCA-Images/Xochiapulco/30667o_IMG_3048_ed-300nr_mgs.jpg","30667","Mariano Gorostiza Salazar","Hoja; Inflorescencia; Rama o tallo"]
["Xochiapulco","http://www.balsas-nahuatl.org/DEMCA-Images/Xochiapulco","30667o_IMG_3053_ed-cr-300nr_mgs.jpg","http://www.balsas-nahuatl.org/DEMCA-Images/Xochiapulco/30667o_IMG_3053_ed-cr-300nr_mgs.jpg","30667","Mariano Gorostiza Salazar","Cáliz; Flor"]
["Xochiapulco","http://www.balsas-nahuatl.org/DEMCA-Images/Xochiapulco","30668o_IMG_3095_ed-300nr_mgs.jpg","http://www.balsas-nahuatl.org/DEMCA-Images/Xochiapulco/30668o_IMG_3095_ed-300nr_mgs.jpg","30668","Mariano Gorostiza Salazar","Hoja; Rama o tallo"]
["Xochiapulco","http://www.balsas-nahuatl.org/DEMCA-Images/Xochiapulco","30668o_IMG_3120_ed-cr-300nr_mgs.jpg","http://www.balsas-nahuatl.org/DEMCA-Images/Xochiapulco/30668o_IMG_3120_ed-cr-300nr_mgs.jpg","30668","Mariano Gorostiza Salazar","Flor; Hoja; Rama o tallo"]
["Xochiapulco","http://www.balsas-nahuatl.org/DEMCA-Images/Xochiapulco","30669o_IMG_3161_ed-300nr_mgs.jpg","http://www.balsas-nahuatl.org/DEMCA-Images/Xochiapulco/30669o_IMG_3161_ed-300nr_mgs.jpg","30669","Mariano Gorostiza Salazar","Hoja; Rama o tallo"]
["Xochiapulco","http://www.balsas-nahuatl.org/DEMCA-Images/Xochiapulco","30669o_IMG_3168_ed-cr-300nr_mgs.jpg","http://www.balsas-nahuatl.org/DEMCA-Images/Xochiapulco/30669o_IMG_3168_ed-cr-300nr_mgs.jpg","30669","Mariano Gorostiza Salazar","Flor; Hoja"]
["Xochiapulco","http://www.balsas-nahuatl.org/DEMCA-Images/Xochiapulco","30669o_IMG_3180_ed-cr-300nr_mgs.jpg","http://www.balsas-nahuatl.org/DEMCA-Images/Xochiapulco/30669o_IMG_3180_ed-cr-300nr_mgs.jpg",{"$f":"LEFT(C323,5)","v":"30669"},"Mariano Gorostiza Salazar","Cáliz; Flor"]
["Xochiapulco","http://www.balsas-nahuatl.org/DEMCA-Images/Xochiapulco","30670o_IMG_3128_ed-300nr_mgs.jpg","http://www.balsas-nahuatl.org/DEMCA-Images/Xochiapulco/30670o_IMG_3128_ed-300nr_mgs.jpg","30670","Mariano Gorostiza Salazar","Hoja; Rama o tallo"]
["Xochiapulco","http://www.balsas-nahuatl.org/DEMCA-Images/Xochiapulco","30670o_IMG_3135_ed-cr-300nr_mgs.jpg","http://www.balsas-nahuatl.org/DEMCA-Images/Xochiapulco/30670o_IMG_3135_ed-cr-300nr_mgs.jpg","30670","Mariano Gorostiza Salazar","Flor; Hoja; Rama o tallo"]
["Xochiapulco","http://www.balsas-nahuatl.org/DEMCA-Images/Xochiapulco","30670o_IMG_3143_ed-cr-300nr_mgs.jpg","http://www.balsas-nahuatl.org/DEMCA-Images/Xochiapulco/30670o_IMG_3143_ed-cr-300nr_mgs.jpg","30670","Mariano Gorostiza Salazar","Flor; Hoja"]
["Xochiapulco","http://www.balsas-nahuatl.org/DEMCA-Images/Xochiapulco","30671o_IMG_3023_ed-300nr_mgs.jpg","http://www.balsas-nahuatl.org/DEMCA-Images/Xochiapulco/30671o_IMG_3023_ed-300nr_mgs.jpg","30671","Mariano Gorostiza Salazar","Hoja; Rama o tallo"]
["Xochiapulco","http://www.balsas-nahuatl.org/DEMCA-Images/Xochiapulco","30671o_IMG_3029_ed-cr-300nr_mgs.jpg","http://www.balsas-nahuatl.org/DEMCA-Images/Xochiapulco/30671o_IMG_3029_ed-cr-300nr_mgs.jpg","30671","Mariano Gorostiza Salazar","Cáliz; Flor"]
["Xochiapulco","http://www.balsas-nahuatl.org/DEMCA-Images/Xochiapulco","30671o_IMG_3076_ed-cr-300nr_mgs.jpg","http://www.balsas-nahuatl.org/DEMCA-Images/Xochiapulco/30671o_IMG_3076_ed-cr-300nr_mgs.jpg","30671","Mariano Gorostiza Salazar","Cáliz; Flor"]
["Xochiapulco","http://www.balsas-nahuatl.org/DEMCA-Images/Xochiapulco","30672o_IMG_3211_ed-300nr_mgs.jpg","http://www.balsas-nahuatl.org/DEMCA-Images/Xochiapulco/30672o_IMG_3211_ed-300nr_mgs.jpg","30672","Mariano Gorostiza Salazar","Hoja; Inflorescencia; Rama o tallo"]
["Xochiapulco","http://www.balsas-nahuatl.org/DEMCA-Images/Xochiapulco","30672o_IMG_3218_ed-cr-300nr_mgs.jpg","http://www.balsas-nahuatl.org/DEMCA-Images/Xochiapulco/30672o_IMG_3218_ed-cr-300nr_mgs.jpg","30672","Mariano Gorostiza Salazar","Cáliz; Flor"]
["Xochiapulco","http://www.balsas-nahuatl.org/DEMCA-Images/Xochiapulco","30672o_IMG_3223_ed-cr-300nr_mgs.jpg","http://www.balsas-nahuatl.org/DEMCA-Images/Xochiapulco/30672o_IMG_3223_ed-cr-300nr_mgs.jpg","30672","Mariano Gorostiza Salazar","Cáliz; Flor"]
["Xochiapulco","http://www.balsas-nahuatl.org/DEMCA-Images/Xochiapulco","30672o_IMG_3228_ed-cr-300nr_mgs.jpg","http://www.balsas-nahuatl.org/DEMCA-Images/Xochiapulco/30672o_IMG_3228_ed-cr-300nr_mgs.jpg","30672","Mariano Gorostiza Salazar","Hoja; Rama o tallo"]
["Xochiapulco","http://www.balsas-nahuatl.org/DEMCA-Images/Xochiapulco","30673o_IMG_3276_ed-300nr_mgs.jpg","http://www.balsas-nahuatl.org/DEMCA-Images/Xochiapulco/30673o_IMG_3276_ed-300nr_mgs.jpg","30673","Mariano Gorostiza Salazar","Hoja; Rama o tallo"]
["Xochiapulco","http://www.balsas-nahuatl.org/DEMCA-Images/Xochiapulco","30673o_IMG_3285_ed-cr-300nr_mgs.jpg","http://www.balsas-nahuatl.org/DEMCA-Images/Xochiapulco/30673o_IMG_3285_ed-cr-300nr_mgs.jpg","30673","Mariano Gorostiza Salazar","Flor; Rama o tallo"]
["Xochiapulco","http://www.balsas-nahuatl.org/DEMCA-Images/Xochiapulco","30673o_IMG_3307_ed-cr-300nr_mgs.jpg","http://www.balsas-nahuatl.org/DEMCA-Images/Xochiapulco/30673o_IMG_3307_ed-cr-300nr_mgs.jpg","30673","Mariano Gorostiza Salazar","Cáliz; Flor"]
["Xochiapulco","http://www.balsas-nahuatl.org/DEMCA-Images/Xochiapulco","30674o_IMG_3249_ed-300nr_mgs.jpg","http://www.balsas-nahuatl.org/DEMCA-Images/Xochiapulco/30674o_IMG_3249_ed-300nr_mgs.jpg","30674","Mariano Gorostiza Salazar","Inflorescencia; Rama o tallo"]
["Xochiapulco","http://www.balsas-nahuatl.org/DEMCA-Images/Xochiapulco","30674o_IMG_3264_ed-300nr_mgs.jpg","http://www.balsas-nahuatl.org/DEMCA-Images/Xochiapulco/30674o_IMG_3264_ed-300nr_mgs.jpg","30674","Mariano Gorostiza Salazar","Inflorescencia; Rama o tallo"]
["Xochiapulco","http://www.balsas-nahuatl.org/DEMCA-Images/Xochiapulco","30675o_IMG_3314_ed-300nr_mgs.jpg","http://www.balsas-nahuatl.org/DEMCA-Images/Xochiapulco/30675o_IMG_3314_ed-300nr_mgs.jpg","30675","Mariano Gorostiza Salazar","Inflorescencia; Rama o tallo"]
["Xochiapulco","http://www.balsas-nahuatl.org/DEMCA-Images/Xochiapulco","30675o_IMG_3326_ed-cr-300nr_mgs.jpg","http://www.balsas-nahuatl.org/DEMCA-Images/Xochiapulco/30675o_IMG_3326_ed-cr-300nr_mgs.jpg","30675","Mariano Gorostiza Salazar","Inflorescencia; Rama o tallo"]
["Xochiapulco","http://www.balsas-nahuatl.org/DEMCA-Images/Xochiapulco","30675o_IMG_3329_ed-cr-300nr_mgs.jpg","http://www.balsas-nahuatl.org/DEMCA-Images/Xochiapulco/30675o_IMG_3329_ed-cr-300nr_mgs.jpg","30675","Mariano Gorostiza Salazar","Inflorescencia; Rama o tallo"]
["Xochiapulco","http://www.balsas-nahuatl.org/DEMCA-Images/Xochiapulco","30676o_IMG_3333_ed-300nr_mgs.jpg","http://www.balsas-nahuatl.org/DEMCA-Images/Xochiapulco/30676o_IMG_3333_ed-300nr_mgs.jpg","30676","Mariano Gorostiza Salazar","Hoja; Inflorescencia; Rama o tallo"]
["Xochiapulco","http://www.balsas-nahuatl.org/DEMCA-Images/Xochiapulco","30676o_IMG_3343_ed-cr-300nr_mgs.jpg","http://www.balsas-nahuatl.org/DEMCA-Images/Xochiapulco/30676o_IMG_3343_ed-cr-300nr_mgs.jpg","30676","Mariano Gorostiza Salazar","Inflorescencia; Rama o tallo"]
["Xochiapulco","http://www.balsas-nahuatl.org/DEMCA-Images/Xochiapulco","30676o_IMG_3353_ed-300nr_mgs.jpg","http://www.balsas-nahuatl.org/DEMCA-Images/Xochiapulco/30676o_IMG_3353_ed-300nr_mgs.jpg","30676","Mariano Gorostiza Salazar","Fruto; Rama o tallo"]
["Xochiapulco","http://www.balsas-nahuatl.org/DEMCA-Images/Xochiapulco","30677o_IMG_3377_ed-300nr_mgs.jpg","http://www.balsas-nahuatl.org/DEMCA-Images/Xochiapulco/30677o_IMG_3377_ed-300nr_mgs.jpg","30677","Mariano Gorostiza Salazar","Hoja; Rama o tallo"]
["Xochiapulco","http://www.balsas-nahuatl.org/DEMCA-Images/Xochiapulco","30677o_IMG_3384_ed-cr-300nr_mgs.jpg","http://www.balsas-nahuatl.org/DEMCA-Images/Xochiapulco/30677o_IMG_3384_ed-cr-300nr_mgs.jpg","30677","Mariano Gorostiza Salazar","Inflorescencia; Rama o tallo"]
["Xochiapulco","http://www.balsas-nahuatl.org/DEMCA-Images/Xochiapulco","30677o_IMG_3388_ed-cr-300nr_mgs.jpg","http://www.balsas-nahuatl.org/DEMCA-Images/Xochiapulco/30677o_IMG_3388_ed-cr-300nr_mgs.jpg","30677","Mariano Gorostiza Salazar","Inflorescencia; Rama o tallo"]
["Xochiapulco","http://www.balsas-nahuatl.org/DEMCA-Images/Xochiapulco","30677o_IMG_3393_ed-300nr_mgs.jpg","http://www.balsas-nahuatl.org/DEMCA-Images/Xochiapulco/30677o_IMG_3393_ed-300nr_mgs.jpg","30677","Mariano Gorostiza Salazar","Hoja; Rama o tallo"]
["Xochiapulco","http://www.balsas-nahuatl.org/DEMCA-Images/Xochiapulco","30678o_IMG_3428_ed-300nr_mgs.jpg","http://www.balsas-nahuatl.org/DEMCA-Images/Xochiapulco/30678o_IMG_3428_ed-300nr_mgs.jpg","30678","Mariano Gorostiza Salazar","Flor; Rama o tallo"]
["Xochiapulco","http://www.balsas-nahuatl.org/DEMCA-Images/Xochiapulco","30678o_IMG_3439_ed-300nr_mgs.jpg","http://www.balsas-nahuatl.org/DEMCA-Images/Xochiapulco/30678o_IMG_3439_ed-300nr_mgs.jpg","30678","Mariano Gorostiza Salazar","Flor"]
["Xochiapulco","http://www.balsas-nahuatl.org/DEMCA-Images/Xochiapulco","30678o_IMG_3440_ed-300nr_mgs.jpg","http://www.balsas-nahuatl.org/DEMCA-Images/Xochiapulco/30678o_IMG_3440_ed-300nr_mgs.jpg","30678","Mariano Gorostiza Salazar","Flor"]
["Xochiapulco","http://www.balsas-nahuatl.org/DEMCA-Images/Xochiapulco","30679o_IMG_3446_ed-300nr_mgs.jpg","http://www.balsas-nahuatl.org/DEMCA-Images/Xochiapulco/30679o_IMG_3446_ed-300nr_mgs.jpg","30679","Mariano Gorostiza Salazar","Hoja; Inflorescencia; Rama o tallo"]
["Xochiapulco","http://www.balsas-nahuatl.org/DEMCA-Images/Xochiapulco","30679o_IMG_3450_ed-cr-300nr_mgs.jpg","http://www.balsas-nahuatl.org/DEMCA-Images/Xochiapulco/30679o_IMG_3450_ed-cr-300nr_mgs.jpg","30679","Mariano Gorostiza Salazar","Inflorescencia; Rama o tallo"]
["Xochiapulco","http://www.balsas-nahuatl.org/DEMCA-Images/Xochiapulco","30679o_IMG_3453_ed-cr-300nr_mgs.jpg","http://www.balsas-nahuatl.org/DEMCA-Images/Xochiapulco/30679o_IMG_3453_ed-cr-300nr_mgs.jpg","30679","Mariano Gorostiza Salazar","Inflorescencia; Rama o tallo"]
["Xochiapulco","http://www.balsas-nahuatl.org/DEMCA-Images/Xochiapulco","30680o_IMG_3466_ed-300nr_mgs.jpg","http://www.balsas-nahuatl.org/DEMCA-Images/Xochiapulco/30680o_IMG_3466_ed-300nr_mgs.jpg","30680","Mariano Gorostiza Salazar","Hoja; Rama o tallo"]
["Xochiapulco","http://www.balsas-nahuatl.org/DEMCA-Images/Xochiapulco","30680o_IMG_3474_ed-300nr_mgs.jpg","http://www.balsas-nahuatl.org/DEMCA-Images/Xochiapulco/30680o_IMG_3474_ed-300nr_mgs.jpg","30680","Mariano Gorostiza Salazar","Inflorescencia; Rama o tallo"]
["Xochiapulco","http://www.balsas-nahuatl.org/DEMCA-Images/Xochiapulco","30680o_IMG_3483_ed-300nr_mgs.jpg","http://www.balsas-nahuatl.org/DEMCA-Images/Xochiapulco/30680o_IMG_3483_ed-300nr_mgs.jpg","30680","Mariano Gorostiza Salazar","Hoja; Rama o tallo"]
["Xochiapulco","http://www.balsas-nahuatl.org/DEMCA-Images/Xochiapulco","30681o_IMG_3556_ed-300nr_mgs.jpg","http://www.balsas-nahuatl.org/DEMCA-Images/Xochiapulco/30681o_IMG_3556_ed-300nr_mgs.jpg","30681","Mariano Gorostiza Salazar","Hoja; Rama o tallo"]
["Xochiapulco","http://www.balsas-nahuatl.org/DEMCA-Images/Xochiapulco","30681o_IMG_3559_ed-300nr_mgs.jpg","http://www.balsas-nahuatl.org/DEMCA-Images/Xochiapulco/30681o_IMG_3559_ed-300nr_mgs.jpg","30681","Mariano Gorostiza Salazar","Hoja; Rama o tallo"]
["Xochiapulco","http://www.balsas-nahuatl.org/DEMCA-Images/Xochiapulco","30681o_IMG_3571_ed-cr-300nr_mgs.jpg","http://www.balsas-nahuatl.org/DEMCA-Images/Xochiapulco/30681o_IMG_3571_ed-cr-300nr_mgs.jpg","30681","Mariano Gorostiza Salazar","Cáliz; Fruto"]
["Xochiapulco","http://www.balsas-nahuatl.org/DEMCA-Images/Xochiapulco","30682o_IMG_3589_ed-300nr_mgs.jpg","http://www.balsas-nahuatl.org/DEMCA-Images/Xochiapulco/30682o_IMG_3589_ed-300nr_mgs.jpg","30682","Mariano Gorostiza Salazar","Hoja; Inflorescencia; Rama o tallo"]
["Xochiapulco","http://www.balsas-nahuatl.org/DEMCA-Images/Xochiapulco","30682o_IMG_3596_ed-cr-300nr_mgs.jpg","http://www.balsas-nahuatl.org/DEMCA-Images/Xochiapulco/30682o_IMG_3596_ed-cr-300nr_mgs.jpg","30682","Mariano Gorostiza Salazar","Inflorescencia; Rama o tallo"]
["Xochiapulco","http://www.balsas-nahuatl.org/DEMCA-Images/Xochiapulco","30682o_IMG_3604_ed-cr-300nr_mgs.jpg","http://www.balsas-nahuatl.org/DEMCA-Images/Xochiapulco/30682o_IMG_3604_ed-cr-300nr_mgs.jpg","30682","Mariano Gorostiza Salazar","Inflorescencia; Rama o tallo"]
["Xochiapulco","http://www.balsas-nahuatl.org/DEMCA-Images/Xochiapulco","30683o_IMG_3504_ed-300nr_mgs.jpg","http://www.balsas-nahuatl.org/DEMCA-Images/Xochiapulco/30683o_IMG_3504_ed-300nr_mgs.jpg","30683","Mariano Gorostiza Salazar","Hoja; Inflorescencia; Rama o tallo"]
["Xochiapulco","http://www.balsas-nahuatl.org/DEMCA-Images/Xochiapulco","30683o_IMG_3514_ed-cr-300nr_mgs.jpg","http://www.balsas-nahuatl.org/DEMCA-Images/Xochiapulco/30683o_IMG_3514_ed-cr-300nr_mgs.jpg","30683","Mariano Gorostiza Salazar","Inflorescencia; Rama o tallo"]
["Xochiapulco","http://www.balsas-nahuatl.org/DEMCA-Images/Xochiapulco","30683o_IMG_3526_ed-300nr_mgs.jpg","http://www.balsas-nahuatl.org/DEMCA-Images/Xochiapulco/30683o_IMG_3526_ed-300nr_mgs.jpg","30683","Mariano Gorostiza Salazar","Cáliz; Rama o tallo"]
["Xochiapulco","http://www.balsas-nahuatl.org/DEMCA-Images/Xochiapulco","30684o_IMG_0007_ed-300nr_mgs.jpg","http://www.balsas-nahuatl.org/DEMCA-Images/Xochiapulco/30684o_IMG_0007_ed-300nr_mgs.jpg","30684","Mariano Gorostiza Salazar","Hoja; Rama o tallo"]
["Xochiapulco","http://www.balsas-nahuatl.org/DEMCA-Images/Xochiapulco","30684o_IMG_0022_ed-300nr_mgs.jpg","http://www.balsas-nahuatl.org/DEMCA-Images/Xochiapulco/30684o_IMG_0022_ed-300nr_mgs.jpg","30684","Mariano Gorostiza Salazar","Fruto; Hoja; Rama o tallo"]
["Xochiapulco","http://www.balsas-nahuatl.org/DEMCA-Images/Xochiapulco","30684o_IMG_0025_ed-cr-300nr_mgs.jpg","http://www.balsas-nahuatl.org/DEMCA-Images/Xochiapulco/30684o_IMG_0025_ed-cr-300nr_mgs.jpg","30684","Mariano Gorostiza Salazar","Fruto; Hoja"]
["Xochiapulco","http://www.balsas-nahuatl.org/DEMCA-Images/Xochiapulco","30685o_IMG_3609_ed-300nr_mgs.jpg","http://www.balsas-nahuatl.org/DEMCA-Images/Xochiapulco/30685o_IMG_3609_ed-300nr_mgs.jpg","30685","Mariano Gorostiza Salazar","Hoja; Rama o tallo"]
["Xochiapulco","http://www.balsas-nahuatl.org/DEMCA-Images/Xochiapulco","30685o_IMG_3614_ed-cr-300nr_mgs.jpg","http://www.balsas-nahuatl.org/DEMCA-Images/Xochiapulco/30685o_IMG_3614_ed-cr-300nr_mgs.jpg","30685","Mariano Gorostiza Salazar","Fruto; Rama o tallo"]
["Xochiapulco","http://www.balsas-nahuatl.org/DEMCA-Images/Xochiapulco","30685o_IMG_3622_ed-300nr_mgs.jpg","http://www.balsas-nahuatl.org/DEMCA-Images/Xochiapulco/30685o_IMG_3622_ed-300nr_mgs.jpg","30685","Mariano Gorostiza Salazar","Fruto; Hoja; Rama o tallo"]
["Xochiapulco","http://www.balsas-nahuatl.org/DEMCA-Images/Xochiapulco","30686o_IMG_0040_ed-300nr_mgs.jpg","http://www.balsas-nahuatl.org/DEMCA-Images/Xochiapulco/30686o_IMG_0040_ed-300nr_mgs.jpg","30686","Mariano Gorostiza Salazar","Hoja; Rama o tallo"]
["Xochiapulco","http://www.balsas-nahuatl.org/DEMCA-Images/Xochiapulco","30686o_IMG_0081_ed-cr-300nr_mgs.jpg","http://www.balsas-nahuatl.org/DEMCA-Images/Xochiapulco/30686o_IMG_0081_ed-cr-300nr_mgs.jpg","30686","Mariano Gorostiza Salazar","Inflorescencia; Rama o tallo"]
["Xochiapulco","http://www.balsas-nahuatl.org/DEMCA-Images/Xochiapulco","30687o_IMG_0090_ed-300nr_mgs.jpg","http://www.balsas-nahuatl.org/DEMCA-Images/Xochiapulco/30687o_IMG_0090_ed-300nr_mgs.jpg","30687","Mariano Gorostiza Salazar","Hoja; Rama o tallo"]
["Xochiapulco","http://www.balsas-nahuatl.org/DEMCA-Images/Xochiapulco","30687o_IMG_0098_ed-cr-300nr_mgs.jpg","http://www.balsas-nahuatl.org/DEMCA-Images/Xochiapulco/30687o_IMG_0098_ed-cr-300nr_mgs.jpg","30687","Mariano Gorostiza Salazar","Flor; Rama o tallo"]
["Xochiapulco","http://www.balsas-nahuatl.org/DEMCA-Images/Xochiapulco","30687o_IMG_0110_ed-cr-300nr_mgs.jpg","http://www.balsas-nahuatl.org/DEMCA-Images/Xochiapulco/30687o_IMG_0110_ed-cr-300nr_mgs.jpg","30687","Mariano Gorostiza Salazar","Fruto; Rama o tallo"]
["Xochiapulco","http://www.balsas-nahuatl.org/DEMCA-Images/Xochiapulco","30687o_IMG_0112_ed-cr-300nr_mgs.jpg","http://www.balsas-nahuatl.org/DEMCA-Images/Xochiapulco/30687o_IMG_0112_ed-cr-300nr_mgs.jpg","30687","Mariano Gorostiza Salazar","Flor; Rama o tallo"]
["Xochiapulco","http://www.balsas-nahuatl.org/DEMCA-Images/Xochiapulco","30688o_IMG_0127_ed-300nr_mgs.jpg","http://www.balsas-nahuatl.org/DEMCA-Images/Xochiapulco/30688o_IMG_0127_ed-300nr_mgs.jpg","30688","Mariano Gorostiza Salazar","Hoja; Inflorescencia; Rama o tallo"]
["Xochiapulco","http://www.balsas-nahuatl.org/DEMCA-Images/Xochiapulco","30688o_IMG_0138_ed-cr-300nr_mgs.jpg","http://www.balsas-nahuatl.org/DEMCA-Images/Xochiapulco/30688o_IMG_0138_ed-cr-300nr_mgs.jpg","30688","Mariano Gorostiza Salazar","Inflorescencia; Rama o tallo"]
["Xochiapulco","http://www.balsas-nahuatl.org/DEMCA-Images/Xochiapulco","30689o_IMG_0145_ed-300nr_mgs.jpg","http://www.balsas-nahuatl.org/DEMCA-Images/Xochiapulco/30689o_IMG_0145_ed-300nr_mgs.jpg","30689","Mariano Gorostiza Salazar","Hoja; Rama o tallo"]
["Xochiapulco","http://www.balsas-nahuatl.org/DEMCA-Images/Xochiapulco","30689o_IMG_0153_ed-300nr_mgs.jpg","http://www.balsas-nahuatl.org/DEMCA-Images/Xochiapulco/30689o_IMG_0153_ed-300nr_mgs.jpg","30689","Mariano Gorostiza Salazar","Inflorescencia; Rama o tallo"]
["Xochiapulco","http://www.balsas-nahuatl.org/DEMCA-Images/Xochiapulco","30689o_IMG_0159_ed-cr-300nr_mgs.jpg","http://www.balsas-nahuatl.org/DEMCA-Images/Xochiapulco/30689o_IMG_0159_ed-cr-300nr_mgs.jpg","30689","Mariano Gorostiza Salazar","Inflorescencia; Rama o tallo"]
["Xochiapulco","http://www.balsas-nahuatl.org/DEMCA-Images/Xochiapulco","30690o_IMG_0169_ed-300nr_mgs.jpg","http://www.balsas-nahuatl.org/DEMCA-Images/Xochiapulco/30690o_IMG_0169_ed-300nr_mgs.jpg","30690","Mariano Gorostiza Salazar","Hoja; Rama o tallo"]
["Xochiapulco","http://www.balsas-nahuatl.org/DEMCA-Images/Xochiapulco","30690o_IMG_0184_ed-cr-300nr_mgs.jpg","http://www.balsas-nahuatl.org/DEMCA-Images/Xochiapulco/30690o_IMG_0184_ed-cr-300nr_mgs.jpg","30690","Mariano Gorostiza Salazar","Cáliz; Flor; Hoja"]
["Xochiapulco","http://www.balsas-nahuatl.org/DEMCA-Images/Xochiapulco","30690o_IMG_0187_ed-cr-300nr_mgs.jpg","http://www.balsas-nahuatl.org/DEMCA-Images/Xochiapulco/30690o_IMG_0187_ed-cr-300nr_mgs.jpg","30690","Mariano Gorostiza Salazar","Flor; Hoja"]
["Xochiapulco","http://www.balsas-nahuatl.org/DEMCA-Images/Xochiapulco","30691o_IMG_0192_ed-300nr_mgs.jpg","http://www.balsas-nahuatl.org/DEMCA-Images/Xochiapulco/30691o_IMG_0192_ed-300nr_mgs.jpg",{"$f":"LEFT(C387,5)","v":"30691"},"Mariano Gorostiza Salazar","Flor; Hoja; Rama o tallo"]
["Xochiapulco","http://www.balsas-nahuatl.org/DEMCA-Images/Xochiapulco","30691o_IMG_0199_ed-cr-300nr_mgs.jpg","http://www.balsas-nahuatl.org/DEMCA-Images/Xochiapulco/30691o_IMG_0199_ed-cr-300nr_mgs.jpg","30691","Mariano Gorostiza Salazar","Flor; Rama o tallo"]
["Xochiapulco","http://www.balsas-nahuatl.org/DEMCA-Images/Xochiapulco","30691o_IMG_0204_ed-cr-300nr_mgs.jpg","http://www.balsas-nahuatl.org/DEMCA-Images/Xochiapulco/30691o_IMG_0204_ed-cr-300nr_mgs.jpg","30691","Mariano Gorostiza Salazar","Flor; Rama o tallo"]
["Xochiapulco","http://www.balsas-nahuatl.org/DEMCA-Images/Xochiapulco","30692o_IMG_0213_ed-300nr_mgs.jpg","http://www.balsas-nahuatl.org/DEMCA-Images/Xochiapulco/30692o_IMG_0213_ed-300nr_mgs.jpg","30692","Mariano Gorostiza Salazar","Fruto; Rama o tallo"]
["Xochiapulco","http://www.balsas-nahuatl.org/DEMCA-Images/Xochiapulco","30692o_IMG_0217_ed-cr-300nr_mgs.jpg","http://www.balsas-nahuatl.org/DEMCA-Images/Xochiapulco/30692o_IMG_0217_ed-cr-300nr_mgs.jpg","30692","Mariano Gorostiza Salazar","Flor; Fruto"]
["Xochiapulco","http://www.balsas-nahuatl.org/DEMCA-Images/Xochiapulco","30692o_IMG_0225_ed-cr-300nr_mgs.jpg","http://www.balsas-nahuatl.org/DEMCA-Images/Xochiapulco/30692o_IMG_0225_ed-cr-300nr_mgs.jpg","30692","Mariano Gorostiza Salazar","Fruto; Rama o tallo"]
["Xochiapulco","http://www.balsas-nahuatl.org/DEMCA-Images/Xochiapulco","30697o_IMG_0257_ed-cr-300nr_mgs.jpg","http://www.balsas-nahuatl.org/DEMCA-Images/Xochiapulco/30697o_IMG_0257_ed-cr-300nr_mgs.jpg","30697","Mariano Gorostiza Salazar","Hoja; Inflorescencia; Rama o tallo"]
["Xochiapulco","http://www.balsas-nahuatl.org/DEMCA-Images/Xochiapulco","30697o_IMG_0267_ed-cr-300nr_mgs.jpg","http://www.balsas-nahuatl.org/DEMCA-Images/Xochiapulco/30697o_IMG_0267_ed-cr-300nr_mgs.jpg","30697","Mariano Gorostiza Salazar","Flor; Rama o tallo"]
["Xochiapulco","http://www.balsas-nahuatl.org/DEMCA-Images/Xochiapulco","30697o_IMG_0288_ed-cr-300nr_mgs.jpg","http://www.balsas-nahuatl.org/DEMCA-Images/Xochiapulco/30697o_IMG_0288_ed-cr-300nr_mgs.jpg","30697","Mariano Gorostiza Salazar","Flor; Rama o tallo"]
["Xochiapulco","http://www.balsas-nahuatl.org/DEMCA-Images/Xochiapulco","30698o_IMG_0299_ed-300nr_mgs.jpg","http://www.balsas-nahuatl.org/DEMCA-Images/Xochiapulco/30698o_IMG_0299_ed-300nr_mgs.jpg","30698","Mariano Gorostiza Salazar","Hoja; Inflorescencia; Rama o tallo"]
["Xochiapulco","http://www.balsas-nahuatl.org/DEMCA-Images/Xochiapulco","30698o_IMG_0299_ed-cr-300nr_mgs.jpg","http://www.balsas-nahuatl.org/DEMCA-Images/Xochiapulco/30698o_IMG_0299_ed-cr-300nr_mgs.jpg","30698","Mariano Gorostiza Salazar","Hoja; Inflorescencia; Rama o tallo"]
["Xochiapulco","http://www.balsas-nahuatl.org/DEMCA-Images/Xochiapulco","30698o_IMG_0307_ed-cr-300nr_mgs.jpg","http://www.balsas-nahuatl.org/DEMCA-Images/Xochiapulco/30698o_IMG_0307_ed-cr-300nr_mgs.jpg","30698","Mariano Gorostiza Salazar","Flor; Rama o tallo"]
["Xochiapulco","http://www.balsas-nahuatl.org/DEMCA-Images/Xochiapulco","30698o_IMG_0312_ed-cr-300nr_mgs.jpg","http://www.balsas-nahuatl.org/DEMCA-Images/Xochiapulco/30698o_IMG_0312_ed-cr-300nr_mgs.jpg","30698","Mariano Gorostiza Salazar","Fruto; Rama o tallo"]
["Xochiapulco","http://www.balsas-nahuatl.org/DEMCA-Images/Xochiapulco","30699o_IMG_0153_ed-cr-300nr_mgs.jpg","http://www.balsas-nahuatl.org/DEMCA-Images/Xochiapulco/30699o_IMG_0153_ed-cr-300nr_mgs.jpg","30699","Mariano Gorostiza Salazar","Hoja; Inflorescencia; Rama o tallo"]
["Xochiapulco","http://www.balsas-nahuatl.org/DEMCA-Images/Xochiapulco","30699o_IMG_0160_ed-cr-300nr_mgs.jpg","http://www.balsas-nahuatl.org/DEMCA-Images/Xochiapulco/30699o_IMG_0160_ed-cr-300nr_mgs.jpg","30699","Mariano Gorostiza Salazar","Cáliz; Flor; Rama o tallo"]
["Xochiapulco","http://www.balsas-nahuatl.org/DEMCA-Images/Xochiapulco","30699o_IMG_0170_ed-cr-300nr_mgs.jpg","http://www.balsas-nahuatl.org/DEMCA-Images/Xochiapulco/30699o_IMG_0170_ed-cr-300nr_mgs.jpg","30699","Mariano Gorostiza Salazar","Cáliz; Flor"]
["Xochiapulco","http://www.balsas-nahuatl.org/DEMCA-Images/Xochiapulco","30699o_IMG_0177_ed-cr-300nr_mgs.jpg","http://www.balsas-nahuatl.org/DEMCA-Images/Xochiapulco/30699o_IMG_0177_ed-cr-300nr_mgs.jpg","30699","Mariano Gorostiza Salazar","Hoja; Rama o tallo"]
["Xochiapulco","http://www.balsas-nahuatl.org/DEMCA-Images/Xochiapulco","30700o_IMG_0186_ed-300nr_mgs.jpg","http://www.balsas-nahuatl.org/DEMCA-Images/Xochiapulco/30700o_IMG_0186_ed-300nr_mgs.jpg","30700","Mariano Gorostiza Salazar","Flor; Rama o tallo"]
["Xochiapulco","http://www.balsas-nahuatl.org/DEMCA-Images/Xochiapulco","30700o_IMG_0195_ed-300nr_mgs.jpg","http://www.balsas-nahuatl.org/DEMCA-Images/Xochiapulco/30700o_IMG_0195_ed-300nr_mgs.jpg","30700","Mariano Gorostiza Salazar","Flor; Rama o tallo"]
["Xochiapulco","http://www.balsas-nahuatl.org/DEMCA-Images/Xochiapulco","30700o_IMG_0202_ed-300nr_mgs.jpg","http://www.balsas-nahuatl.org/DEMCA-Images/Xochiapulco/30700o_IMG_0202_ed-300nr_mgs.jpg","30700","Mariano Gorostiza Salazar","Cáliz; Flor"]
["Xochiapulco","http://www.balsas-nahuatl.org/DEMCA-Images/Xochiapulco","30701o_IMG_0212_ed-300nr_mgs.jpg","http://www.balsas-nahuatl.org/DEMCA-Images/Xochiapulco/30701o_IMG_0212_ed-300nr_mgs.jpg","30701","Mariano Gorostiza Salazar","Flor; Rama o tallo"]
["Xochiapulco","http://www.balsas-nahuatl.org/DEMCA-Images/Xochiapulco","30701o_IMG_0212_ed-cr-300nr_mgs.jpg","http://www.balsas-nahuatl.org/DEMCA-Images/Xochiapulco/30701o_IMG_0212_ed-cr-300nr_mgs.jpg","30701","Mariano Gorostiza Salazar","Flor; Rama o tallo"]
["Xochiapulco","http://www.balsas-nahuatl.org/DEMCA-Images/Xochiapulco","30701o_IMG_0216_ed-cr-300nr_mgs.jpg","http://www.balsas-nahuatl.org/DEMCA-Images/Xochiapulco/30701o_IMG_0216_ed-cr-300nr_mgs.jpg","30701","Mariano Gorostiza Salazar","Flor; Rama o tallo"]
["Xochiapulco","http://www.balsas-nahuatl.org/DEMCA-Images/Xochiapulco","30701o_IMG_0244_ed-cr-300nr_mgs.jpg","http://www.balsas-nahuatl.org/DEMCA-Images/Xochiapulco/30701o_IMG_0244_ed-cr-300nr_mgs.jpg","30701","Mariano Gorostiza Salazar","Flor; Rama o tallo"]
["Xochiapulco","http://www.balsas-nahuatl.org/DEMCA-Images/Xochiapulco","30701o_IMG_0247_ed-300nr_mgs.jpg","http://www.balsas-nahuatl.org/DEMCA-Images/Xochiapulco/30701o_IMG_0247_ed-300nr_mgs.jpg","30701","Mariano Gorostiza Salazar","Hoja; Inflorescencia; Rama o tallo"]
["Xochiapulco","http://www.balsas-nahuatl.org/DEMCA-Images/Xochiapulco","30727o_IMG_1512_ed-cr-300nr_mgs.jpg","http://www.balsas-nahuatl.org/DEMCA-Images/Xochiapulco/30727o_IMG_1512_ed-cr-300nr_mgs.jpg","30727","Mariano Gorostiza Salazar","Cáliz; Flor; Rama o tallo"]
["Xochiapulco","http://www.balsas-nahuatl.org/DEMCA-Images/Xochiapulco","30727o_IMG_1527_ed-cr-300nr_mgs.jpg","http://www.balsas-nahuatl.org/DEMCA-Images/Xochiapulco/30727o_IMG_1527_ed-cr-300nr_mgs.jpg","30727","Mariano Gorostiza Salazar","Flor; Rama o tallo"]
["Xochiapulco","http://www.balsas-nahuatl.org/DEMCA-Images/Xochiapulco","30727o_IMG_1535_ed-300nr_mgs.jpg","http://www.balsas-nahuatl.org/DEMCA-Images/Xochiapulco/30727o_IMG_1535_ed-300nr_mgs.jpg","30727","Mariano Gorostiza Salazar","Hoja; Rama o tallo"]
["Xochiapulco","http://www.balsas-nahuatl.org/DEMCA-Images/Xochiapulco","30728o_IMG_1473_ed-cr-300nr_mgs.jpg","http://www.balsas-nahuatl.org/DEMCA-Images/Xochiapulco/30728o_IMG_1473_ed-cr-300nr_mgs.jpg","30728","Mariano Gorostiza Salazar","Hoja; Inflorescencia; Planta entera"]
["Xochiapulco","http://www.balsas-nahuatl.org/DEMCA-Images/Xochiapulco","30728o_IMG_1475_ed-300nr_mgs.jpg","http://www.balsas-nahuatl.org/DEMCA-Images/Xochiapulco/30728o_IMG_1475_ed-300nr_mgs.jpg","30728","Mariano Gorostiza Salazar","Hoja; Rama o tallo"]
["Xochiapulco","http://www.balsas-nahuatl.org/DEMCA-Images/Xochiapulco","30728o_IMG_1480_ed-cr-300nr_mgs.jpg","http://www.balsas-nahuatl.org/DEMCA-Images/Xochiapulco/30728o_IMG_1480_ed-cr-300nr_mgs.jpg","30728","Mariano Gorostiza Salazar","Hoja"]
["Xochiapulco","http://www.balsas-nahuatl.org/DEMCA-Images/Xochiapulco","30728o_IMG_1487_ed-300nr_mgs.jpg","http://www.balsas-nahuatl.org/DEMCA-Images/Xochiapulco/30728o_IMG_1487_ed-300nr_mgs.jpg","30728","Mariano Gorostiza Salazar","Flor; Rama o tallo"]
["Xochiapulco","http://www.balsas-nahuatl.org/DEMCA-Images/Xochiapulco","30728o_IMG_1501_ed-300nr_mgs.jpg","http://www.balsas-nahuatl.org/DEMCA-Images/Xochiapulco/30728o_IMG_1501_ed-300nr_mgs.jpg","30728","Mariano Gorostiza Salazar","Flor; Rama o tallo"]
["Xochiapulco","http://www.balsas-nahuatl.org/DEMCA-Images/Xochiapulco","30729o_IMG_1551_ed-cr-300nr_mgs.jpg","http://www.balsas-nahuatl.org/DEMCA-Images/Xochiapulco/30729o_IMG_1551_ed-cr-300nr_mgs.jpg","30729","Mariano Gorostiza Salazar","Flor; Hoja"]
["Xochiapulco","http://www.balsas-nahuatl.org/DEMCA-Images/Xochiapulco","30729o_IMG_1569_ed-300nr_mgs.jpg","http://www.balsas-nahuatl.org/DEMCA-Images/Xochiapulco/30729o_IMG_1569_ed-300nr_mgs.jpg","30729","Mariano Gorostiza Salazar","Hoja; Planta entera"]
["Xochiapulco","http://www.balsas-nahuatl.org/DEMCA-Images/Xochiapulco","30729o_IMG_1579_ed-300nr_mgs.jpg","http://www.balsas-nahuatl.org/DEMCA-Images/Xochiapulco/30729o_IMG_1579_ed-300nr_mgs.jpg","30729","Mariano Gorostiza Salazar","Flor; Hoja"]
["Xochiapulco","http://www.balsas-nahuatl.org/DEMCA-Images/Xochiapulco","30730o_IMG_1621_ed-cr-300nr_mgs.jpg","http://www.balsas-nahuatl.org/DEMCA-Images/Xochiapulco/30730o_IMG_1621_ed-cr-300nr_mgs.jpg","30730","Mariano Gorostiza Salazar","Hoja; Rama o tallo"]
["Xochiapulco","http://www.balsas-nahuatl.org/DEMCA-Images/Xochiapulco","30730o_IMG_1632_ed-cr-300nr_mgs.jpg","http://www.balsas-nahuatl.org/DEMCA-Images/Xochiapulco/30730o_IMG_1632_ed-cr-300nr_mgs.jpg","30730","Mariano Gorostiza Salazar","Flor; Hoja"]
["Xochiapulco","http://www.balsas-nahuatl.org/DEMCA-Images/Xochiapulco","30730o_IMG_1636_ed-cr-300nr_mgs.jpg","http://www.balsas-nahuatl.org/DEMCA-Images/Xochiapulco/30730o_IMG_1636_ed-cr-300nr_mgs.jpg","30730","Mariano Gorostiza Salazar","Cáliz; Flor; Hoja"]
["Xochiapulco","http://www.balsas-nahuatl.org/DEMCA-Images/Xochiapulco","30731o_IMG_1653_ed-300nr_mgs.jpg","http://www.balsas-nahuatl.org/DEMCA-Images/Xochiapulco/30731o_IMG_1653_ed-300nr_mgs.jpg","30731","Mariano Gorostiza Salazar","Hoja; Rama o tallo"]
["Xochiapulco","http://www.balsas-nahuatl.org/DEMCA-Images/Xochiapulco","30731o_IMG_1664_ed-cr-300nr_mgs.jpg","http://www.balsas-nahuatl.org/DEMCA-Images/Xochiapulco/30731o_IMG_1664_ed-cr-300nr_mgs.jpg","30731","Mariano Gorostiza Salazar","Fruto; Hoja"]
["Xochiapulco","http://www.balsas-nahuatl.org/DEMCA-Images/Xochiapulco","30732o_IMG_1679_ed-300nr_mgs.jpg","http://www.balsas-nahuatl.org/DEMCA-Images/Xochiapulco/30732o_IMG_1679_ed-300nr_mgs.jpg","30732","Mariano Gorostiza Salazar","Fruto; Hoja; Planta entera"]
["Xochiapulco","http://www.balsas-nahuatl.org/DEMCA-Images/Xochiapulco","30732o_IMG_1699_ed-300nr_mgs.jpg","http://www.balsas-nahuatl.org/DEMCA-Images/Xochiapulco/30732o_IMG_1699_ed-300nr_mgs.jpg","30732","Mariano Gorostiza Salazar","Hoja; Rama o tallo"]
["Xochiapulco","http://www.balsas-nahuatl.org/DEMCA-Images/Xochiapulco","30732o_IMG_1703_ed-300nr_mgs.jpg","http://www.balsas-nahuatl.org/DEMCA-Images/Xochiapulco/30732o_IMG_1703_ed-300nr_mgs.jpg","30732","Mariano Gorostiza Salazar","Fruto; Rama o tallo"]
["Xochiapulco","http://www.balsas-nahuatl.org/DEMCA-Images/Xochiapulco","30732o_IMG_1709_ed-300nr_mgs.jpg","http://www.balsas-nahuatl.org/DEMCA-Images/Xochiapulco/30732o_IMG_1709_ed-300nr_mgs.jpg","30732","Mariano Gorostiza Salazar","Fruto; Rama o tallo"]
["Xochiapulco","http://www.balsas-nahuatl.org/DEMCA-Images/Xochiapulco","30733o_IMG_1750_ed-300nr_mgs.jpg","http://www.balsas-nahuatl.org/DEMCA-Images/Xochiapulco/30733o_IMG_1750_ed-300nr_mgs.jpg","30733","Mariano Gorostiza Salazar","Hoja; Rama o tallo"]
["Xochiapulco","http://www.balsas-nahuatl.org/DEMCA-Images/Xochiapulco","30733o_IMG_1761_ed-cr-300nr_mgs.jpg","http://www.balsas-nahuatl.org/DEMCA-Images/Xochiapulco/30733o_IMG_1761_ed-cr-300nr_mgs.jpg","30733","Mariano Gorostiza Salazar","Fruto; Rama o tallo"]
["Xochiapulco","http://www.balsas-nahuatl.org/DEMCA-Images/Xochiapulco","30733o_IMG_1773_ed-cr-300nr_mgs.jpg","http://www.balsas-nahuatl.org/DEMCA-Images/Xochiapulco/30733o_IMG_1773_ed-cr-300nr_mgs.jpg","30733","Mariano Gorostiza Salazar","Fruto; Rama o tallo"]
["Xochiapulco","http://www.balsas-nahuatl.org/DEMCA-Images/Xochiapulco","30734o_IMG_1736_ed-300nr_mgs.jpg","http://www.balsas-nahuatl.org/DEMCA-Images/Xochiapulco/30734o_IMG_1736_ed-300nr_mgs.jpg","30734","Mariano Gorostiza Salazar","Flor; Hoja; Rama o tallo"]
["Xochiapulco","http://www.balsas-nahuatl.org/DEMCA-Images/Xochiapulco","30734o_IMG_1742_ed-300nr_mgs.jpg","http://www.balsas-nahuatl.org/DEMCA-Images/Xochiapulco/30734o_IMG_1742_ed-300nr_mgs.jpg","30734","Mariano Gorostiza Salazar","Hoja; Rama o tallo"]
["Xochiapulco","http://www.balsas-nahuatl.org/DEMCA-Images/Xochiapulco","30735o_IMG_1886_ed-300nr_mgs.jpg","http://www.balsas-nahuatl.org/DEMCA-Images/Xochiapulco/30735o_IMG_1886_ed-300nr_mgs.jpg","30735","Mariano Gorostiza Salazar","Hoja; Rama o tallo"]
["Xochiapulco","http://www.balsas-nahuatl.org/DEMCA-Images/Xochiapulco","30735o_IMG_1889_ed-cr-300nr_mgs.jpg","http://www.balsas-nahuatl.org/DEMCA-Images/Xochiapulco/30735o_IMG_1889_ed-cr-300nr_mgs.jpg","30735","Mariano Gorostiza Salazar","Hoja; Rama o tallo"]
["Xochiapulco","http://www.balsas-nahuatl.org/DEMCA-Images/Xochiapulco","30735o_IMG_1902_ed-cr-300nr_mgs.jpg","http://www.balsas-nahuatl.org/DEMCA-Images/Xochiapulco/30735o_IMG_1902_ed-cr-300nr_mgs.jpg","30735","Mariano Gorostiza Salazar","Flor; Rama o tallo"]
["Xochiapulco","http://www.balsas-nahuatl.org/DEMCA-Images/Xochiapulco","30736o_IMG_1860_ed-300nr_mgs.jpg","http://www.balsas-nahuatl.org/DEMCA-Images/Xochiapulco/30736o_IMG_1860_ed-300nr_mgs.jpg","30736","Mariano Gorostiza Salazar","Hoja; Rama o tallo"]
["Xochiapulco","http://www.balsas-nahuatl.org/DEMCA-Images/Xochiapulco","30736o_IMG_1867_ed-cr-300nr_mgs.jpg","http://www.balsas-nahuatl.org/DEMCA-Images/Xochiapulco/30736o_IMG_1867_ed-cr-300nr_mgs.jpg","30736","Mariano Gorostiza Salazar","Fruto; Hoja; Rama o tallo"]
["Xochiapulco","http://www.balsas-nahuatl.org/DEMCA-Images/Xochiapulco","30736o_IMG_1880_ed-cr-300nr_mgs.jpg","http://www.balsas-nahuatl.org/DEMCA-Images/Xochiapulco/30736o_IMG_1880_ed-cr-300nr_mgs.jpg","30736","Mariano Gorostiza Salazar","Fruto; Hoja; Rama o tallo"]
["Xochiapulco","http://www.balsas-nahuatl.org/DEMCA-Images/Xochiapulco","30737o_IMG_1815_ed-cr-300nr_mgs.jpg","http://www.balsas-nahuatl.org/DEMCA-Images/Xochiapulco/30737o_IMG_1815_ed-cr-300nr_mgs.jpg","30737","Mariano Gorostiza Salazar","Hoja; Inflorescencia; Rama o tallo"]
["Xochiapulco","http://www.balsas-nahuatl.org/DEMCA-Images/Xochiapulco","30737o_IMG_1830_ed-300nr_mgs.jpg","http://www.balsas-nahuatl.org/DEMCA-Images/Xochiapulco/30737o_IMG_1830_ed-300nr_mgs.jpg","30737","Mariano Gorostiza Salazar","Inflorescencia; Rama o tallo"]
["Xochiapulco","http://www.balsas-nahuatl.org/DEMCA-Images/Xochiapulco","30737o_IMG_1834_ed-cr-300nr_mgs.jpg","http://www.balsas-nahuatl.org/DEMCA-Images/Xochiapulco/30737o_IMG_1834_ed-cr-300nr_mgs.jpg","30737","Mariano Gorostiza Salazar","Cáliz; Flor"]
["Xochiapulco","http://www.balsas-nahuatl.org/DEMCA-Images/Xochiapulco","30738o_IMG_1840_ed-300nr_mgs.jpg","http://www.balsas-nahuatl.org/DEMCA-Images/Xochiapulco/30738o_IMG_1840_ed-300nr_mgs.jpg","30738","Mariano Gorostiza Salazar","Rama o tallo"]
["Xochiapulco","http://www.balsas-nahuatl.org/DEMCA-Images/Xochiapulco","30738o_IMG_1843_ed-cr-300nr_mgs.jpg","http://www.balsas-nahuatl.org/DEMCA-Images/Xochiapulco/30738o_IMG_1843_ed-cr-300nr_mgs.jpg","30738","Mariano Gorostiza Salazar","Inflorescencia; Rama o tallo"]
["Xochiapulco","http://www.balsas-nahuatl.org/DEMCA-Images/Xochiapulco","30738o_IMG_1849_ed-cr-300nr_mgs.jpg","http://www.balsas-nahuatl.org/DEMCA-Images/Xochiapulco/30738o_IMG_1849_ed-cr-300nr_mgs.jpg","30738","Mariano Gorostiza Salazar","Inflorescencia; Rama o tallo"]
["Xochiapulco","http://www.balsas-nahuatl.org/DEMCA-Images/Xochiapulco","30739o_IMG_1779_ed-300nr_mgs.jpg","http://www.balsas-nahuatl.org/DEMCA-Images/Xochiapulco/30739o_IMG_1779_ed-300nr_mgs.jpg","30739","Mariano Gorostiza Salazar","Hoja; Inflorescencia; Rama o tallo"]
["Xochiapulco","http://www.balsas-nahuatl.org/DEMCA-Images/Xochiapulco","30739o_IMG_1783_ed-300nr_mgs.jpg","http://www.balsas-nahuatl.org/DEMCA-Images/Xochiapulco/30739o_IMG_1783_ed-300nr_mgs.jpg","30739","Mariano Gorostiza Salazar","Hoja; Rama o tallo"]
["Xochiapulco","http://www.balsas-nahuatl.org/DEMCA-Images/Xochiapulco","30739o_IMG_1789_ed-300nr_mgs.jpg","http://www.balsas-nahuatl.org/DEMCA-Images/Xochiapulco/30739o_IMG_1789_ed-300nr_mgs.jpg",{"$f":"LEFT(C451,5)","v":"30739"},"Mariano Gorostiza Salazar","Cáliz; Flor; Rama o tallo"]
["Xochiapulco","http://www.balsas-nahuatl.org/DEMCA-Images/Xochiapulco","30739o_IMG_1930_ed-300nr_mgs.jpg","http://www.balsas-nahuatl.org/DEMCA-Images/Xochiapulco/30739o_IMG_1930_ed-300nr_mgs.jpg","30739","Mariano Gorostiza Salazar","Fruto; Rama o tallo"]
["Xochiapulco","http://www.balsas-nahuatl.org/DEMCA-Images/Xochiapulco","30740o_IMG_1904_ed-300nr_mgs.jpg","http://www.balsas-nahuatl.org/DEMCA-Images/Xochiapulco/30740o_IMG_1904_ed-300nr_mgs.jpg","30740","Mariano Gorostiza Salazar","Hoja; Inflorescencia; Planta entera"]
["Xochiapulco","http://www.balsas-nahuatl.org/DEMCA-Images/Xochiapulco","30740o_IMG_1918_ed-cr-300nr_mgs.jpg","http://www.balsas-nahuatl.org/DEMCA-Images/Xochiapulco/30740o_IMG_1918_ed-cr-300nr_mgs.jpg","30740","Mariano Gorostiza Salazar","Cáliz; Flor"]
["Xochiapulco","http://www.balsas-nahuatl.org/DEMCA-Images/Xochiapulco","30740o_IMG_1922_ed-cr-300nr_mgs.jpg","http://www.balsas-nahuatl.org/DEMCA-Images/Xochiapulco/30740o_IMG_1922_ed-cr-300nr_mgs.jpg","30740","Mariano Gorostiza Salazar","Cáliz; Flor"]
["Xochiapulco","http://www.balsas-nahuatl.org/DEMCA-Images/Xochiapulco","30741o_IMG_1938_ed-300nr_mgs.jpg","http://www.balsas-nahuatl.org/DEMCA-Images/Xochiapulco/30741o_IMG_1938_ed-300nr_mgs.jpg","30741","Mariano Gorostiza Salazar","Hoja; Rama o tallo"]
["Xochiapulco","http://www.balsas-nahuatl.org/DEMCA-Images/Xochiapulco","30741o_IMG_1950_ed-cr-300nr_mgs.jpg","http://www.balsas-nahuatl.org/DEMCA-Images/Xochiapulco/30741o_IMG_1950_ed-cr-300nr_mgs.jpg","30741","Mariano Gorostiza Salazar","Fruto; Rama o tallo"]
["Xochiapulco","http://www.balsas-nahuatl.org/DEMCA-Images/Xochiapulco","30741o_IMG_1957_ed-cr-300nr_mgs.jpg","http://www.balsas-nahuatl.org/DEMCA-Images/Xochiapulco/30741o_IMG_1957_ed-cr-300nr_mgs.jpg","30741","Mariano Gorostiza Salazar","Fruto; Rama o tallo"]
["Xochiapulco","http://www.balsas-nahuatl.org/DEMCA-Images/Xochiapulco","30742o_IMG_1971_ed-300nr_mgs.jpg","http://www.balsas-nahuatl.org/DEMCA-Images/Xochiapulco/30742o_IMG_1971_ed-300nr_mgs.jpg","30742","Mariano Gorostiza Salazar","Hoja; Inflorescencia; Rama o tallo"]
["Xochiapulco","http://www.balsas-nahuatl.org/DEMCA-Images/Xochiapulco","30742o_IMG_1976_ed-cr-300nr_mgs.jpg","http://www.balsas-nahuatl.org/DEMCA-Images/Xochiapulco/30742o_IMG_1976_ed-cr-300nr_mgs.jpg","30742","Mariano Gorostiza Salazar","Inflorescencia; Rama o tallo"]
["Xochiapulco","http://www.balsas-nahuatl.org/DEMCA-Images/Xochiapulco","30742o_IMG_1981_ed-cr-300nr_mgs.jpg","http://www.balsas-nahuatl.org/DEMCA-Images/Xochiapulco/30742o_IMG_1981_ed-cr-300nr_mgs.jpg","30742","Mariano Gorostiza Salazar","Hoja; Inflorescencia"]
["Xochiapulco","http://www.balsas-nahuatl.org/DEMCA-Images/Xochiapulco","30742o_IMG_1982_ed-300nr_mgs.jpg","http://www.balsas-nahuatl.org/DEMCA-Images/Xochiapulco/30742o_IMG_1982_ed-300nr_mgs.jpg","30742","Mariano Gorostiza Salazar","Hoja; Inflorescencia; Rama o tallo"]
["Xochiapulco","http://www.balsas-nahuatl.org/DEMCA-Images/Xochiapulco","30743o_IMG_1996_ed-300nr_mgs.jpg","http://www.balsas-nahuatl.org/DEMCA-Images/Xochiapulco/30743o_IMG_1996_ed-300nr_mgs.jpg","30743","Mariano Gorostiza Salazar","Hoja; Rama o tallo"]
["Xochiapulco","http://www.balsas-nahuatl.org/DEMCA-Images/Xochiapulco","30743o_IMG_2002_ed-cr-300nr_mgs.jpg","http://www.balsas-nahuatl.org/DEMCA-Images/Xochiapulco/30743o_IMG_2002_ed-cr-300nr_mgs.jpg","30743","Mariano Gorostiza Salazar","Fruto; Rama o tallo"]
["Xochiapulco","http://www.balsas-nahuatl.org/DEMCA-Images/Xochiapulco","30743o_IMG_2007_ed-cr-300nr_mgs.jpg","http://www.balsas-nahuatl.org/DEMCA-Images/Xochiapulco/30743o_IMG_2007_ed-cr-300nr_mgs.jpg","30743","Mariano Gorostiza Salazar","Flor; Hoja; Rama o tallo"]
["Xochiapulco","http://www.balsas-nahuatl.org/DEMCA-Images/Xochiapulco","30743o_IMG_2014_ed-cr-300nr_mgs.jpg","http://www.balsas-nahuatl.org/DEMCA-Images/Xochiapulco/30743o_IMG_2014_ed-cr-300nr_mgs.jpg","30743","Mariano Gorostiza Salazar","Flor; Rama o tallo"]
["Xochiapulco","http://www.balsas-nahuatl.org/DEMCA-Images/Xochiapulco","30744o_IMG_2023_ed-300nr_mgs.jpg","http://www.balsas-nahuatl.org/DEMCA-Images/Xochiapulco/30744o_IMG_2023_ed-300nr_mgs.jpg","30744","Mariano Gorostiza Salazar","Hoja; Rama o tallo"]
["Xochiapulco","http://www.balsas-nahuatl.org/DEMCA-Images/Xochiapulco","30744o_IMG_2038_ed-300nr_mgs.jpg","http://www.balsas-nahuatl.org/DEMCA-Images/Xochiapulco/30744o_IMG_2038_ed-300nr_mgs.jpg","30744","Mariano Gorostiza Salazar","Fruto; Hoja; Rama o tallo"]
["Xochiapulco","http://www.balsas-nahuatl.org/DEMCA-Images/Xochiapulco","30744o_IMG_2042_ed-cr-300nr_mgs.jpg","http://www.balsas-nahuatl.org/DEMCA-Images/Xochiapulco/30744o_IMG_2042_ed-cr-300nr_mgs.jpg","30744","Mariano Gorostiza Salazar","Hoja; Rama o tallo"]
["Xochiapulco","http://www.balsas-nahuatl.org/DEMCA-Images/Xochiapulco","30745o_IMG_2052_ed-300nr_mgs.jpg","http://www.balsas-nahuatl.org/DEMCA-Images/Xochiapulco/30745o_IMG_2052_ed-300nr_mgs.jpg","30745","Mariano Gorostiza Salazar","Hoja; Rama o tallo"]
["Xochiapulco","http://www.balsas-nahuatl.org/DEMCA-Images/Xochiapulco","30745o_IMG_2061_ed-300nr_mgs.jpg","http://www.balsas-nahuatl.org/DEMCA-Images/Xochiapulco/30745o_IMG_2061_ed-300nr_mgs.jpg","30745","Mariano Gorostiza Salazar","Inflorescencia; Rama o tallo"]
["Xochiapulco","http://www.balsas-nahuatl.org/DEMCA-Images/Xochiapulco","30745o_IMG_2068_ed-300nr_mgs.jpg","http://www.balsas-nahuatl.org/DEMCA-Images/Xochiapulco/30745o_IMG_2068_ed-300nr_mgs.jpg","30745","Mariano Gorostiza Salazar","Inflorescencia; Rama o tallo"]
["Xochiapulco","http://www.balsas-nahuatl.org/DEMCA-Images/Xochiapulco","30746o_IMG_2077_ed-300nr_mgs.jpg","http://www.balsas-nahuatl.org/DEMCA-Images/Xochiapulco/30746o_IMG_2077_ed-300nr_mgs.jpg","30746","Mariano Gorostiza Salazar","Hoja; Rama o tallo"]
["Xochiapulco","http://www.balsas-nahuatl.org/DEMCA-Images/Xochiapulco","30746o_IMG_2080_ed-cr-300nr_mgs.jpg","http://www.balsas-nahuatl.org/DEMCA-Images/Xochiapulco/30746o_IMG_2080_ed-cr-300nr_mgs.jpg","30746","Mariano Gorostiza Salazar","Fruto; Rama o tallo"]
["Xochiapulco","http://www.balsas-nahuatl.org/DEMCA-Images/Xochiapulco","30746o_IMG_2087_ed-cr-300nr_mgs.jpg","http://www.balsas-nahuatl.org/DEMCA-Images/Xochiapulco/30746o_IMG_2087_ed-cr-300nr_mgs.jpg","30746","Mariano Gorostiza Salazar","Fruto; Rama o tallo"]
["Xochiapulco","http://www.balsas-nahuatl.org/DEMCA-Images/Xochiapulco","30746o_IMG_2093_ed-cr-300nr_mgs.jpg","http://www.balsas-nahuatl.org/DEMCA-Images/Xochiapulco/30746o_IMG_2093_ed-cr-300nr_mgs.jpg","30746","Mariano Gorostiza Salazar","Fruto; Hoja; Rama o tallo"]
["Xochiapulco","http://www.balsas-nahuatl.org/DEMCA-Images/Xochiapulco","30747o_IMG_2101_ed-300nr_mgs.jpg","http://www.balsas-nahuatl.org/DEMCA-Images/Xochiapulco/30747o_IMG_2101_ed-300nr_mgs.jpg","30747","Mariano Gorostiza Salazar","Hoja; Inflorescencia; Rama o tallo"]
["Xochiapulco","http://www.balsas-nahuatl.org/DEMCA-Images/Xochiapulco","30747o_IMG_2103_ed-cr-300nr_mgs.jpg","http://www.balsas-nahuatl.org/DEMCA-Images/Xochiapulco/30747o_IMG_2103_ed-cr-300nr_mgs.jpg","30747","Mariano Gorostiza Salazar","Inflorescencia; Rama o tallo"]
["Xochiapulco","http://www.balsas-nahuatl.org/DEMCA-Images/Xochiapulco","30747o_IMG_2109_ed-cr-300nr_mgs.jpg","http://www.balsas-nahuatl.org/DEMCA-Images/Xochiapulco/30747o_IMG_2109_ed-cr-300nr_mgs.jpg","30747","Mariano Gorostiza Salazar","Inflorescencia; Rama o tallo"]
["Xochiapulco","http://www.balsas-nahuatl.org/DEMCA-Images/Xochiapulco","30747o_IMG_2111_ed-300nr_mgs.jpg","http://www.balsas-nahuatl.org/DEMCA-Images/Xochiapulco/30747o_IMG_2111_ed-300nr_mgs.jpg","30747","Mariano Gorostiza Salazar","Inflorescencia; Rama o tallo"]
["Xochiapulco","http://www.balsas-nahuatl.org/DEMCA-Images/Xochiapulco","30748o_IMG_2120_ed-300nr_mgs.jpg","http://www.balsas-nahuatl.org/DEMCA-Images/Xochiapulco/30748o_IMG_2120_ed-300nr_mgs.jpg","30748","Mariano Gorostiza Salazar","Hoja; Inflorescencia; Rama o tallo"]
["Xochiapulco","http://www.balsas-nahuatl.org/DEMCA-Images/Xochiapulco","30748o_IMG_2131_ed-300nr_mgs.jpg","http://www.balsas-nahuatl.org/DEMCA-Images/Xochiapulco/30748o_IMG_2131_ed-300nr_mgs.jpg","30748","Mariano Gorostiza Salazar","Flor; Rama o tallo"]
["Xochiapulco","http://www.balsas-nahuatl.org/DEMCA-Images/Xochiapulco","30748o_IMG_2141_ed-300nr_mgs.jpg","http://www.balsas-nahuatl.org/DEMCA-Images/Xochiapulco/30748o_IMG_2141_ed-300nr_mgs.jpg","30748","Mariano Gorostiza Salazar","Flor"]
["Xochiapulco","http://www.balsas-nahuatl.org/DEMCA-Images/Xochiapulco","30748o_IMG_2145_ed-300nr_mgs.jpg","http://www.balsas-nahuatl.org/DEMCA-Images/Xochiapulco/30748o_IMG_2145_ed-300nr_mgs.jpg","30748","Mariano Gorostiza Salazar","Flor"]
["Xochiapulco","http://www.balsas-nahuatl.org/DEMCA-Images/Xochiapulco","30749o_IMG_2153_ed-cr-300nr_mgs.jpg","http://www.balsas-nahuatl.org/DEMCA-Images/Xochiapulco/30749o_IMG_2153_ed-cr-300nr_mgs.jpg","30749","Mariano Gorostiza Salazar","Hoja; Rama o tallo"]
["Xochiapulco","http://www.balsas-nahuatl.org/DEMCA-Images/Xochiapulco","30749o_IMG_2162_ed-cr-300nr_mgs.jpg","http://www.balsas-nahuatl.org/DEMCA-Images/Xochiapulco/30749o_IMG_2162_ed-cr-300nr_mgs.jpg","30749","Mariano Gorostiza Salazar","Flor; Rama o tallo"]
["Xochiapulco","http://www.balsas-nahuatl.org/DEMCA-Images/Xochiapulco","30749o_IMG_2167_ed-cr-300nr_mgs.jpg","http://www.balsas-nahuatl.org/DEMCA-Images/Xochiapulco/30749o_IMG_2167_ed-cr-300nr_mgs.jpg","30749","Mariano Gorostiza Salazar","Flor; Rama o tallo"]
["Xochiapulco","http://www.balsas-nahuatl.org/DEMCA-Images/Xochiapulco","30750o_IMG_0045_ed-300nr_mgs.jpg","http://www.balsas-nahuatl.org/DEMCA-Images/Xochiapulco/30750o_IMG_0045_ed-300nr_mgs.jpg","30750","Mariano Gorostiza Salazar","Hoja; Inflorescencia; Rama o tallo"]
["Xochiapulco","http://www.balsas-nahuatl.org/DEMCA-Images/Xochiapulco","30750o_IMG_0050_ed-300nr_mgs.jpg","http://www.balsas-nahuatl.org/DEMCA-Images/Xochiapulco/30750o_IMG_0050_ed-300nr_mgs.jpg","30750","Mariano Gorostiza Salazar","Inflorescencia; Rama o tallo"]
["Xochiapulco","http://www.balsas-nahuatl.org/DEMCA-Images/Xochiapulco","30750o_IMG_0054_ed-300nr_mgs.jpg","http://www.balsas-nahuatl.org/DEMCA-Images/Xochiapulco/30750o_IMG_0054_ed-300nr_mgs.jpg","30750","Mariano Gorostiza Salazar","Inflorescencia; Rama o tallo"]
["Xochiapulco","http://www.balsas-nahuatl.org/DEMCA-Images/Xochiapulco","30751o_IMG_0031_ed-300nr_mgs.jpg","http://www.balsas-nahuatl.org/DEMCA-Images/Xochiapulco/30751o_IMG_0031_ed-300nr_mgs.jpg","30751","Mariano Gorostiza Salazar","Hoja; Inflorescencia; Rama o tallo"]
["Xochiapulco","http://www.balsas-nahuatl.org/DEMCA-Images/Xochiapulco","30751o_IMG_0035_ed-cr-300nr_mgs.jpg","http://www.balsas-nahuatl.org/DEMCA-Images/Xochiapulco/30751o_IMG_0035_ed-cr-300nr_mgs.jpg","30751","Mariano Gorostiza Salazar","Inflorescencia; Rama o tallo"]
["Xochiapulco","http://www.balsas-nahuatl.org/DEMCA-Images/Xochiapulco","30751o_IMG_0042_ed-300nr_mgs.jpg","http://www.balsas-nahuatl.org/DEMCA-Images/Xochiapulco/30751o_IMG_0042_ed-300nr_mgs.jpg","30751","Mariano Gorostiza Salazar","Hoja; Rama o tallo"]
["Xochiapulco","http://www.balsas-nahuatl.org/DEMCA-Images/Xochiapulco","30752o_IMG_0067_ed-300nr_mgs.jpg","http://www.balsas-nahuatl.org/DEMCA-Images/Xochiapulco/30752o_IMG_0067_ed-300nr_mgs.jpg","30752","Mariano Gorostiza Salazar","Hoja; Rama o tallo"]
["Xochiapulco","http://www.balsas-nahuatl.org/DEMCA-Images/Xochiapulco","30752o_IMG_0072_ed-cr-300nr_mgs.jpg","http://www.balsas-nahuatl.org/DEMCA-Images/Xochiapulco/30752o_IMG_0072_ed-cr-300nr_mgs.jpg","30752","Mariano Gorostiza Salazar","Flor; Rama o tallo"]
["Xochiapulco","http://www.balsas-nahuatl.org/DEMCA-Images/Xochiapulco","30752o_IMG_0082_ed-cr-300nr_mgs.jpg","http://www.balsas-nahuatl.org/DEMCA-Images/Xochiapulco/30752o_IMG_0082_ed-cr-300nr_mgs.jpg","30752","Mariano Gorostiza Salazar","Fruto; Rama o tallo"]
["Xochiapulco","http://www.balsas-nahuatl.org/DEMCA-Images/Xochiapulco","30753o_IMG_0008_ed-cr-300nr_mgs.jpg","http://www.balsas-nahuatl.org/DEMCA-Images/Xochiapulco/30753o_IMG_0008_ed-cr-300nr_mgs.jpg","30753","Mariano Gorostiza Salazar","Hoja; Inflorescencia; Rama o tallo"]
["Xochiapulco","http://www.balsas-nahuatl.org/DEMCA-Images/Xochiapulco","30753o_IMG_0016_ed-cr-300nr_mgs.jpg","http://www.balsas-nahuatl.org/DEMCA-Images/Xochiapulco/30753o_IMG_0016_ed-cr-300nr_mgs.jpg","30753","Mariano Gorostiza Salazar","Inflorescencia; Rama o tallo"]
["Xochiapulco","http://www.balsas-nahuatl.org/DEMCA-Images/Xochiapulco","30753o_IMG_0021_ed-cr-300nr_mgs.jpg","http://www.balsas-nahuatl.org/DEMCA-Images/Xochiapulco/30753o_IMG_0021_ed-cr-300nr_mgs.jpg","30753","Mariano Gorostiza Salazar","Cáliz; Rama o tallo"]
["Xochiapulco","http://www.balsas-nahuatl.org/DEMCA-Images/Xochiapulco","30754o_IMG_0106_ed-300nr_mgs.jpg","http://www.balsas-nahuatl.org/DEMCA-Images/Xochiapulco/30754o_IMG_0106_ed-300nr_mgs.jpg","30754","Mariano Gorostiza Salazar","Hoja; Rama o tallo"]
["Xochiapulco","http://www.balsas-nahuatl.org/DEMCA-Images/Xochiapulco","30754o_IMG_0113_ed-cr-300nr_mgs.jpg","http://www.balsas-nahuatl.org/DEMCA-Images/Xochiapulco/30754o_IMG_0113_ed-cr-300nr_mgs.jpg","30754","Mariano Gorostiza Salazar","Inflorescencia; Rama o tallo"]
["Xochiapulco","http://www.balsas-nahuatl.org/DEMCA-Images/Xochiapulco","30754o_IMG_0114_ed-cr-300nr_mgs.jpg","http://www.balsas-nahuatl.org/DEMCA-Images/Xochiapulco/30754o_IMG_0114_ed-cr-300nr_mgs.jpg","30754","Mariano Gorostiza Salazar","Flor; Rama o tallo"]
["Xochiapulco","http://www.balsas-nahuatl.org/DEMCA-Images/Xochiapulco","30755o_IMG_0089_ed-300nr_mgs.jpg","http://www.balsas-nahuatl.org/DEMCA-Images/Xochiapulco/30755o_IMG_0089_ed-300nr_mgs.jpg","30755","Mariano Gorostiza Salazar","Hoja; Inflorescencia; Rama o tallo"]
["Xochiapulco","http://www.balsas-nahuatl.org/DEMCA-Images/Xochiapulco","30755o_IMG_0096_ed-300nr_mgs.jpg","http://www.balsas-nahuatl.org/DEMCA-Images/Xochiapulco/30755o_IMG_0096_ed-300nr_mgs.jpg","30755","Mariano Gorostiza Salazar","Hoja; Inflorescencia"]
["Xochiapulco","http://www.balsas-nahuatl.org/DEMCA-Images/Xochiapulco","30755o_IMG_0099_ed-300nr_mgs.jpg","http://www.balsas-nahuatl.org/DEMCA-Images/Xochiapulco/30755o_IMG_0099_ed-300nr_mgs.jpg","30755","Mariano Gorostiza Salazar","Cáliz; Flor"]
["Xochiapulco","http://www.balsas-nahuatl.org/DEMCA-Images/Xochiapulco","30755o_IMG_0103_ed-300nr_mgs.jpg","http://www.balsas-nahuatl.org/DEMCA-Images/Xochiapulco/30755o_IMG_0103_ed-300nr_mgs.jpg","30755","Mariano Gorostiza Salazar","Hoja; Rama o tallo"]
["Xochiapulco","http://www.balsas-nahuatl.org/DEMCA-Images/Xochiapulco","30756o_IMG_0124_ed-300nr_mgs.jpg","http://www.balsas-nahuatl.org/DEMCA-Images/Xochiapulco/30756o_IMG_0124_ed-300nr_mgs.jpg","30756","Mariano Gorostiza Salazar","Hoja; Rama o tallo"]
["Xochiapulco","http://www.balsas-nahuatl.org/DEMCA-Images/Xochiapulco","30756o_IMG_0135_ed-cr-300nr_mgs.jpg","http://www.balsas-nahuatl.org/DEMCA-Images/Xochiapulco/30756o_IMG_0135_ed-cr-300nr_mgs.jpg","30756","Mariano Gorostiza Salazar","Hoja; Inflorescencia"]
["Xochiapulco","http://www.balsas-nahuatl.org/DEMCA-Images/Xochiapulco","30756o_IMG_0140_ed-cr-300nr_mgs.jpg","http://www.balsas-nahuatl.org/DEMCA-Images/Xochiapulco/30756o_IMG_0140_ed-cr-300nr_mgs.jpg","30756","Mariano Gorostiza Salazar","Hoja; Inflorescencia"]
["Xochiapulco","http://www.balsas-nahuatl.org/DEMCA-Images/Xochiapulco","30757o_IMG_0150_ed-300nr_mgs.jpg","http://www.balsas-nahuatl.org/DEMCA-Images/Xochiapulco/30757o_IMG_0150_ed-300nr_mgs.jpg","30757","Mariano Gorostiza Salazar","Hoja; Inflorescencia; Rama o tallo"]
["Xochiapulco","http://www.balsas-nahuatl.org/DEMCA-Images/Xochiapulco","30757o_IMG_0156_ed-300nr_mgs.jpg","http://www.balsas-nahuatl.org/DEMCA-Images/Xochiapulco/30757o_IMG_0156_ed-300nr_mgs.jpg","30757","Mariano Gorostiza Salazar","Hoja; Inflorescencia"]
["Xochiapulco","http://www.balsas-nahuatl.org/DEMCA-Images/Xochiapulco","30757o_IMG_0159_ed-cr-300nr_mgs.jpg","http://www.balsas-nahuatl.org/DEMCA-Images/Xochiapulco/30757o_IMG_0159_ed-cr-300nr_mgs.jpg","30757","Mariano Gorostiza Salazar","Hoja; Inflorescencia"]
["Xochiapulco","http://www.balsas-nahuatl.org/DEMCA-Images/Xochiapulco","30758o_IMG_0166_ed-cr-300nr_mgs.jpg","http://www.balsas-nahuatl.org/DEMCA-Images/Xochiapulco/30758o_IMG_0166_ed-cr-300nr_mgs.jpg","30758","Mariano Gorostiza Salazar","Hoja; Rama o tallo"]
["Xochiapulco","http://www.balsas-nahuatl.org/DEMCA-Images/Xochiapulco","30758o_IMG_0172_ed-cr-300nr_mgs.jpg","http://www.balsas-nahuatl.org/DEMCA-Images/Xochiapulco/30758o_IMG_0172_ed-cr-300nr_mgs.jpg","30758","Mariano Gorostiza Salazar","Flor; Rama o tallo"]
["Xochiapulco","http://www.balsas-nahuatl.org/DEMCA-Images/Xochiapulco","30758o_IMG_0178_ed-cr-300nr_mgs.jpg","http://www.balsas-nahuatl.org/DEMCA-Images/Xochiapulco/30758o_IMG_0178_ed-cr-300nr_mgs.jpg",{"$f":"LEFT(C515,5)","v":"30758"},"Mariano Gorostiza Salazar","Cáliz; Flor"]
["Xochiapulco","http://www.balsas-nahuatl.org/DEMCA-Images/Xochiapulco","30759o_IMG_0181_ed-300nr_mgs.jpg","http://www.balsas-nahuatl.org/DEMCA-Images/Xochiapulco/30759o_IMG_0181_ed-300nr_mgs.jpg","30759","Mariano Gorostiza Salazar","Hoja; Rama o tallo"]
["Xochiapulco","http://www.balsas-nahuatl.org/DEMCA-Images/Xochiapulco","30759o_IMG_0183_ed-cr-300nr_mgs.jpg","http://www.balsas-nahuatl.org/DEMCA-Images/Xochiapulco/30759o_IMG_0183_ed-cr-300nr_mgs.jpg","30759","Mariano Gorostiza Salazar","Fruto; Rama o tallo"]
["Xochiapulco","http://www.balsas-nahuatl.org/DEMCA-Images/Xochiapulco","30759o_IMG_0190_ed-300nr_mgs.jpg","http://www.balsas-nahuatl.org/DEMCA-Images/Xochiapulco/30759o_IMG_0190_ed-300nr_mgs.jpg","30759","Mariano Gorostiza Salazar","Hoja; Rama o tallo"]
["Xochiapulco","http://www.balsas-nahuatl.org/DEMCA-Images/Xochiapulco","30759o_IMG_0192_ed-cr-300nr_mgs.jpg","http://www.balsas-nahuatl.org/DEMCA-Images/Xochiapulco/30759o_IMG_0192_ed-cr-300nr_mgs.jpg","30759","Mariano Gorostiza Salazar","Flor; Rama o tallo"]
["Xochiapulco","http://www.balsas-nahuatl.org/DEMCA-Images/Xochiapulco","30760o_IMG_0238_ed-300nr_mgs.jpg","http://www.balsas-nahuatl.org/DEMCA-Images/Xochiapulco/30760o_IMG_0238_ed-300nr_mgs.jpg","30760","Mariano Gorostiza Salazar","Hoja; Rama o tallo"]
["Xochiapulco","http://www.balsas-nahuatl.org/DEMCA-Images/Xochiapulco","30760o_IMG_0243_ed-cr-300nr_mgs.jpg","http://www.balsas-nahuatl.org/DEMCA-Images/Xochiapulco/30760o_IMG_0243_ed-cr-300nr_mgs.jpg","30760","Mariano Gorostiza Salazar","Flor; Rama o tallo"]
["Xochiapulco","http://www.balsas-nahuatl.org/DEMCA-Images/Xochiapulco","30760o_IMG_0252_ed-cr-300nr_mgs.jpg","http://www.balsas-nahuatl.org/DEMCA-Images/Xochiapulco/30760o_IMG_0252_ed-cr-300nr_mgs.jpg","30760","Mariano Gorostiza Salazar","Cáliz; Flor"]
["Xochiapulco","http://www.balsas-nahuatl.org/DEMCA-Images/Xochiapulco","30760o_IMG_0256_ed-cr-300nr_mgs.jpg","http://www.balsas-nahuatl.org/DEMCA-Images/Xochiapulco/30760o_IMG_0256_ed-cr-300nr_mgs.jpg","30760","Mariano Gorostiza Salazar","Cáliz; Fruto"]
["Xochiapulco","http://www.balsas-nahuatl.org/DEMCA-Images/Xochiapulco","30761o_IMG_0206_ed-300nr_mgs.jpg","http://www.balsas-nahuatl.org/DEMCA-Images/Xochiapulco/30761o_IMG_0206_ed-300nr_mgs.jpg","30761","Mariano Gorostiza Salazar","Hoja; Inflorescencia; Rama o tallo"]
["Xochiapulco","http://www.balsas-nahuatl.org/DEMCA-Images/Xochiapulco","30761o_IMG_0207_ed-cr-300nr_mgs.jpg","http://www.balsas-nahuatl.org/DEMCA-Images/Xochiapulco/30761o_IMG_0207_ed-cr-300nr_mgs.jpg","30761","Mariano Gorostiza Salazar","Inflorescencia; Rama o tallo"]
["Xochiapulco","http://www.balsas-nahuatl.org/DEMCA-Images/Xochiapulco","30761o_IMG_0216_ed-cr-300nr_mgs.jpg","http://www.balsas-nahuatl.org/DEMCA-Images/Xochiapulco/30761o_IMG_0216_ed-cr-300nr_mgs.jpg","30761","Mariano Gorostiza Salazar","Hoja; Rama o tallo"]
["Xochiapulco","http://www.balsas-nahuatl.org/DEMCA-Images/Xochiapulco","30762o_IMG_0222_ed-300nr_mgs.jpg","http://www.balsas-nahuatl.org/DEMCA-Images/Xochiapulco/30762o_IMG_0222_ed-300nr_mgs.jpg","30762","Mariano Gorostiza Salazar","Hoja; Rama o tallo"]
["Xochiapulco","http://www.balsas-nahuatl.org/DEMCA-Images/Xochiapulco","30762o_IMG_0226_ed-300nr_mgs.jpg","http://www.balsas-nahuatl.org/DEMCA-Images/Xochiapulco/30762o_IMG_0226_ed-300nr_mgs.jpg","30762","Mariano Gorostiza Salazar","Hoja; Inflorescencia"]
["Xochiapulco","http://www.balsas-nahuatl.org/DEMCA-Images/Xochiapulco","30763o_IMG_0265_ed-300nr_mgs.jpg","http://www.balsas-nahuatl.org/DEMCA-Images/Xochiapulco/30763o_IMG_0265_ed-300nr_mgs.jpg","30763","Mariano Gorostiza Salazar","Hoja; Inflorescencia; Planta entera"]
["Xochiapulco","http://www.balsas-nahuatl.org/DEMCA-Images/Xochiapulco","30763o_IMG_0267_ed-cr-300nr_mgs.jpg","http://www.balsas-nahuatl.org/DEMCA-Images/Xochiapulco/30763o_IMG_0267_ed-cr-300nr_mgs.jpg","30763","Mariano Gorostiza Salazar","Flor; Rama o tallo"]
["Xochiapulco","http://www.balsas-nahuatl.org/DEMCA-Images/Xochiapulco","30763o_IMG_0272_ed-cr-300nr_mgs.jpg","http://www.balsas-nahuatl.org/DEMCA-Images/Xochiapulco/30763o_IMG_0272_ed-cr-300nr_mgs.jpg","30763","Mariano Gorostiza Salazar","Flor; Rama o tallo"]
["Xochiapulco","http://www.balsas-nahuatl.org/DEMCA-Images/Xochiapulco","30763o_IMG_0276_ed-cr-300nr_mgs.jpg","http://www.balsas-nahuatl.org/DEMCA-Images/Xochiapulco/30763o_IMG_0276_ed-cr-300nr_mgs.jpg","30763","Mariano Gorostiza Salazar","Flor; Rama o tallo"]
["Xochiapulco","http://www.balsas-nahuatl.org/DEMCA-Images/Xochiapulco","30764o_IMG_0306_ed-cr-300nr_mgs.jpg","http://www.balsas-nahuatl.org/DEMCA-Images/Xochiapulco/30764o_IMG_0306_ed-cr-300nr_mgs.jpg","30764","Mariano Gorostiza Salazar","Flor; Hoja; Rama o tallo"]
["Xochiapulco","http://www.balsas-nahuatl.org/DEMCA-Images/Xochiapulco","30764o_IMG_0309_ed-cr-300nr_mgs.jpg","http://www.balsas-nahuatl.org/DEMCA-Images/Xochiapulco/30764o_IMG_0309_ed-cr-300nr_mgs.jpg","30764","Mariano Gorostiza Salazar","Flor; Hoja"]
["Xochiapulco","http://www.balsas-nahuatl.org/DEMCA-Images/Xochiapulco","30764o_IMG_0312_ed-cr-300nr_mgs.jpg","http://www.balsas-nahuatl.org/DEMCA-Images/Xochiapulco/30764o_IMG_0312_ed-cr-300nr_mgs.jpg","30764","Mariano Gorostiza Salazar","Cáliz; Flor"]
["Xochiapulco","http://www.balsas-nahuatl.org/DEMCA-Images/Xochiapulco","30765o_IMG_0316_ed-300nr_mgs.jpg","http://www.balsas-nahuatl.org/DEMCA-Images/Xochiapulco/30765o_IMG_0316_ed-300nr_mgs.jpg","30765","Mariano Gorostiza Salazar","Hoja; Rama o tallo"]
["Xochiapulco","http://www.balsas-nahuatl.org/DEMCA-Images/Xochiapulco","30765o_IMG_0322_ed-cr-300nr_mgs.jpg","http://www.balsas-nahuatl.org/DEMCA-Images/Xochiapulco/30765o_IMG_0322_ed-cr-300nr_mgs.jpg","30765","Mariano Gorostiza Salazar","Flor; Hoja; Rama o tallo"]
["Xochiapulco","http://www.balsas-nahuatl.org/DEMCA-Images/Xochiapulco","30765o_IMG_0325_ed-cr-300nr_mgs.jpg","http://www.balsas-nahuatl.org/DEMCA-Images/Xochiapulco/30765o_IMG_0325_ed-cr-300nr_mgs.jpg","30765","Mariano Gorostiza Salazar","Cáliz; Flor; Rama o tallo"]
["Xochiapulco","http://www.balsas-nahuatl.org/DEMCA-Images/Xochiapulco","30766o_IMG_0281_ed-300nr_mgs.jpg","http://www.balsas-nahuatl.org/DEMCA-Images/Xochiapulco/30766o_IMG_0281_ed-300nr_mgs.jpg","30766","Mariano Gorostiza Salazar","Hoja; Rama o tallo"]
["Xochiapulco","http://www.balsas-nahuatl.org/DEMCA-Images/Xochiapulco","30766o_IMG_0288_ed-cr-300nr_mgs.jpg","http://www.balsas-nahuatl.org/DEMCA-Images/Xochiapulco/30766o_IMG_0288_ed-cr-300nr_mgs.jpg","30766","Mariano Gorostiza Salazar","Rama o tallo"]
["Xochiapulco","http://www.balsas-nahuatl.org/DEMCA-Images/Xochiapulco","30766o_IMG_0297_ed-300nr_mgs.jpg","http://www.balsas-nahuatl.org/DEMCA-Images/Xochiapulco/30766o_IMG_0297_ed-300nr_mgs.jpg","30766","Mariano Gorostiza Salazar","Hoja"]
["Xochiapulco","http://www.balsas-nahuatl.org/DEMCA-Images/Xochiapulco","30766o_IMG_0331_ed-300nr_mgs.jpg","http://www.balsas-nahuatl.org/DEMCA-Images/Xochiapulco/30766o_IMG_0331_ed-300nr_mgs.jpg","30766","Mariano Gorostiza Salazar","Cáliz; Flor"]
["Xochiapulco","http://www.balsas-nahuatl.org/DEMCA-Images/Xochiapulco","30766o_IMG_0337_ed-300nr_mgs.jpg","http://www.balsas-nahuatl.org/DEMCA-Images/Xochiapulco/30766o_IMG_0337_ed-300nr_mgs.jpg","30766","Mariano Gorostiza Salazar","Cáliz; Flor"]
["Xochiapulco","http://www.balsas-nahuatl.org/DEMCA-Images/Xochiapulco","30767o_IMG_0350_ed-cr-300nr_mgs.jpg","http://www.balsas-nahuatl.org/DEMCA-Images/Xochiapulco/30767o_IMG_0350_ed-cr-300nr_mgs.jpg","30767","Mariano Gorostiza Salazar","Hoja; Rama o tallo"]
["Xochiapulco","http://www.balsas-nahuatl.org/DEMCA-Images/Xochiapulco","30767o_IMG_0354_ed-cr-300nr_mgs.jpg","http://www.balsas-nahuatl.org/DEMCA-Images/Xochiapulco/30767o_IMG_0354_ed-cr-300nr_mgs.jpg","30767","Mariano Gorostiza Salazar","Fruto; Rama o tallo"]
["Xochiapulco","http://www.balsas-nahuatl.org/DEMCA-Images/Xochiapulco","30767o_IMG_0355_ed-cr-300nr_mgs.jpg","http://www.balsas-nahuatl.org/DEMCA-Images/Xochiapulco/30767o_IMG_0355_ed-cr-300nr_mgs.jpg","30767","Mariano Gorostiza Salazar","Hoja; Rama o tallo"]
["Xochiapulco","http://www.balsas-nahuatl.org/DEMCA-Images/Xochiapulco","30768o_IMG_0379_ed-300nr_mgs.jpg","http://www.balsas-nahuatl.org/DEMCA-Images/Xochiapulco/30768o_IMG_0379_ed-300nr_mgs.jpg","30768","Mariano Gorostiza Salazar","Hoja; Rama o tallo"]
["Xochiapulco","http://www.balsas-nahuatl.org/DEMCA-Images/Xochiapulco","30768o_IMG_0390_ed-300nr_mgs.jpg","http://www.balsas-nahuatl.org/DEMCA-Images/Xochiapulco/30768o_IMG_0390_ed-300nr_mgs.jpg","30768","Mariano Gorostiza Salazar","Flor; Rama o tallo"]
["Xochiapulco","http://www.balsas-nahuatl.org/DEMCA-Images/Xochiapulco","30768o_IMG_0394_ed-cr-300nr_mgs.jpg","http://www.balsas-nahuatl.org/DEMCA-Images/Xochiapulco/30768o_IMG_0394_ed-cr-300nr_mgs.jpg","30768","Mariano Gorostiza Salazar","Flor; Hoja"]
["Xochiapulco","http://www.balsas-nahuatl.org/DEMCA-Images/Xochiapulco","30769o_IMG_0358_ed-300nr_mgs.jpg","http://www.balsas-nahuatl.org/DEMCA-Images/Xochiapulco/30769o_IMG_0358_ed-300nr_mgs.jpg","30769","Mariano Gorostiza Salazar","Hoja; Rama o tallo"]
["Xochiapulco","http://www.balsas-nahuatl.org/DEMCA-Images/Xochiapulco","30769o_IMG_0360_ed-300nr_mgs.jpg","http://www.balsas-nahuatl.org/DEMCA-Images/Xochiapulco/30769o_IMG_0360_ed-300nr_mgs.jpg","30769","Mariano Gorostiza Salazar","Flor; Rama o tallo"]
["Xochiapulco","http://www.balsas-nahuatl.org/DEMCA-Images/Xochiapulco","30769o_IMG_0364_ed-cr-300nr_mgs.jpg","http://www.balsas-nahuatl.org/DEMCA-Images/Xochiapulco/30769o_IMG_0364_ed-cr-300nr_mgs.jpg","30769","Mariano Gorostiza Salazar","Fruto; Rama o tallo"]
["Xochiapulco","http://www.balsas-nahuatl.org/DEMCA-Images/Xochiapulco","30769o_IMG_0368_ed-cr-300nr_mgs.jpg","http://www.balsas-nahuatl.org/DEMCA-Images/Xochiapulco/30769o_IMG_0368_ed-cr-300nr_mgs.jpg","30769","Mariano Gorostiza Salazar","Cáliz; Flor"]
["Xochiapulco","http://www.balsas-nahuatl.org/DEMCA-Images/Xochiapulco","30770o_IMG_0400_ed-300nr_mgs.jpg","http://www.balsas-nahuatl.org/DEMCA-Images/Xochiapulco/30770o_IMG_0400_ed-300nr_mgs.jpg","30770","Mariano Gorostiza Salazar","Hoja; Inflorescencia; Rama o tallo"]
["Xochiapulco","http://www.balsas-nahuatl.org/DEMCA-Images/Xochiapulco","30770o_IMG_0407_ed-300nr_mgs.jpg","http://www.balsas-nahuatl.org/DEMCA-Images/Xochiapulco/30770o_IMG_0407_ed-300nr_mgs.jpg","30770","Mariano Gorostiza Salazar","Inflorescencia; Rama o tallo"]
["Xochiapulco","http://www.balsas-nahuatl.org/DEMCA-Images/Xochiapulco","30770o_IMG_0410_ed-cr-300nr_mgs.jpg","http://www.balsas-nahuatl.org/DEMCA-Images/Xochiapulco/30770o_IMG_0410_ed-cr-300nr_mgs.jpg","30770","Mariano Gorostiza Salazar","Inflorescencia; Rama o tallo"]
["Xochiapulco","http://www.balsas-nahuatl.org/DEMCA-Images/Xochiapulco","30771o_IMG_0414_ed-300nr_mgs.jpg","http://www.balsas-nahuatl.org/DEMCA-Images/Xochiapulco/30771o_IMG_0414_ed-300nr_mgs.jpg","30771","Mariano Gorostiza Salazar","Hoja; Rama o tallo"]
["Xochiapulco","http://www.balsas-nahuatl.org/DEMCA-Images/Xochiapulco","30771o_IMG_0420_ed-300nr_mgs.jpg","http://www.balsas-nahuatl.org/DEMCA-Images/Xochiapulco/30771o_IMG_0420_ed-300nr_mgs.jpg","30771","Mariano Gorostiza Salazar","Inflorescencia; Rama o tallo"]
["Xochiapulco","http://www.balsas-nahuatl.org/DEMCA-Images/Xochiapulco","30771o_IMG_0425_ed-cr-300nr_mgs.jpg","http://www.balsas-nahuatl.org/DEMCA-Images/Xochiapulco/30771o_IMG_0425_ed-cr-300nr_mgs.jpg","30771","Mariano Gorostiza Salazar","Inflorescencia; Rama o tallo"]
["Xochiapulco","http://www.balsas-nahuatl.org/DEMCA-Images/Xochiapulco","30772o_IMG_0436_ed-cr-300nr_mgs.jpg","http://www.balsas-nahuatl.org/DEMCA-Images/Xochiapulco/30772o_IMG_0436_ed-cr-300nr_mgs.jpg","30772","Mariano Gorostiza Salazar","Hoja; Rama o tallo"]
["Xochiapulco","http://www.balsas-nahuatl.org/DEMCA-Images/Xochiapulco","30772o_IMG_0442_ed-300nr_mgs.jpg","http://www.balsas-nahuatl.org/DEMCA-Images/Xochiapulco/30772o_IMG_0442_ed-300nr_mgs.jpg","30772","Mariano Gorostiza Salazar","Hoja; Rama o tallo"]
["Xochiapulco","http://www.balsas-nahuatl.org/DEMCA-Images/Xochiapulco","30772o_IMG_0451_ed-cr-300nr_mgs.jpg","http://www.balsas-nahuatl.org/DEMCA-Images/Xochiapulco/30772o_IMG_0451_ed-cr-300nr_mgs.jpg","30772","Mariano Gorostiza Salazar","Flor; Rama o tallo"]
["Xochiapulco","http://www.balsas-nahuatl.org/DEMCA-Images/Xochiapulco","30772o_IMG_0460_ed-cr-300nr_mgs.jpg","http://www.balsas-nahuatl.org/DEMCA-Images/Xochiapulco/30772o_IMG_0460_ed-cr-300nr_mgs.jpg","30772","Mariano Gorostiza Salazar","Cáliz; Rama o tallo"]
["Xochiapulco","http://www.balsas-nahuatl.org/DEMCA-Images/Xochiapulco","30773o_IMG_0467_ed-300nr_mgs.jpg","http://www.balsas-nahuatl.org/DEMCA-Images/Xochiapulco/30773o_IMG_0467_ed-300nr_mgs.jpg","30773","Mariano Gorostiza Salazar","Hoja; Rama o tallo"]
["Xochiapulco","http://www.balsas-nahuatl.org/DEMCA-Images/Xochiapulco","30773o_IMG_0475_ed-300nr_mgs.jpg","http://www.balsas-nahuatl.org/DEMCA-Images/Xochiapulco/30773o_IMG_0475_ed-300nr_mgs.jpg","30773","Mariano Gorostiza Salazar","Hoja; Inflorescencia; Rama o tallo"]
["Xochiapulco","http://www.balsas-nahuatl.org/DEMCA-Images/Xochiapulco","30773o_IMG_0476_ed-cr-300nr_mgs.jpg","http://www.balsas-nahuatl.org/DEMCA-Images/Xochiapulco/30773o_IMG_0476_ed-cr-300nr_mgs.jpg","30773","Mariano Gorostiza Salazar","Cáliz; Flor; Hoja"]
["Xochiapulco","http://www.balsas-nahuatl.org/DEMCA-Images/Xochiapulco","30774o_IMG_0481_ed-300nr_mgs.jpg","http://www.balsas-nahuatl.org/DEMCA-Images/Xochiapulco/30774o_IMG_0481_ed-300nr_mgs.jpg","30774","Mariano Gorostiza Salazar","Flor; Hoja; Rama o tallo"]
["Xochiapulco","http://www.balsas-nahuatl.org/DEMCA-Images/Xochiapulco","30774o_IMG_0491_ed-300nr_mgs.jpg","http://www.balsas-nahuatl.org/DEMCA-Images/Xochiapulco/30774o_IMG_0491_ed-300nr_mgs.jpg","30774","Mariano Gorostiza Salazar","Flor; Hoja"]
["Xochiapulco","http://www.balsas-nahuatl.org/DEMCA-Images/Xochiapulco","30774o_IMG_0493_ed-300nr_mgs.jpg","http://www.balsas-nahuatl.org/DEMCA-Images/Xochiapulco/30774o_IMG_0493_ed-300nr_mgs.jpg","30774","Mariano Gorostiza Salazar","Flor; Hoja; Rama o tallo"]
["Xochiapulco","http://www.balsas-nahuatl.org/DEMCA-Images/Xochiapulco","30775o_IMG_0502_ed-300nr_mgs.jpg","http://www.balsas-nahuatl.org/DEMCA-Images/Xochiapulco/30775o_IMG_0502_ed-300nr_mgs.jpg","30775","Mariano Gorostiza Salazar","Flor; Hoja; Rama o tallo"]
["Xochiapulco","http://www.balsas-nahuatl.org/DEMCA-Images/Xochiapulco","30775o_IMG_0505_ed-cr-300nr_mgs.jpg","http://www.balsas-nahuatl.org/DEMCA-Images/Xochiapulco/30775o_IMG_0505_ed-cr-300nr_mgs.jpg","30775","Mariano Gorostiza Salazar","Flor; Rama o tallo"]
["Xochiapulco","http://www.balsas-nahuatl.org/DEMCA-Images/Xochiapulco","30775o_IMG_0508_ed-300nr_mgs.jpg","http://www.balsas-nahuatl.org/DEMCA-Images/Xochiapulco/30775o_IMG_0508_ed-300nr_mgs.jpg","30775","Mariano Gorostiza Salazar","Cáliz; Flor; Rama o tallo"]
["Xochiapulco","http://www.balsas-nahuatl.org/DEMCA-Images/Xochiapulco","30776o_IMG_0517_ed-300nr_mgs.jpg","http://www.balsas-nahuatl.org/DEMCA-Images/Xochiapulco/30776o_IMG_0517_ed-300nr_mgs.jpg","30776","Mariano Gorostiza Salazar","Hoja; Inflorescencia; Rama o tallo"]
["Xochiapulco","http://www.balsas-nahuatl.org/DEMCA-Images/Xochiapulco","30776o_IMG_0527_ed-cr-300nr_mgs.jpg","http://www.balsas-nahuatl.org/DEMCA-Images/Xochiapulco/30776o_IMG_0527_ed-cr-300nr_mgs.jpg","30776","Mariano Gorostiza Salazar","Hoja; Inflorescencia"]
["Xochiapulco","http://www.balsas-nahuatl.org/DEMCA-Images/Xochiapulco","30776o_IMG_0531_ed-cr-300nr_mgs.jpg","http://www.balsas-nahuatl.org/DEMCA-Images/Xochiapulco/30776o_IMG_0531_ed-cr-300nr_mgs.jpg","30776","Mariano Gorostiza Salazar","Hoja; Inflorescencia"]
["Xochiapulco","http://www.balsas-nahuatl.org/DEMCA-Images/Xochiapulco","30777o_IMG_0536_ed-cr-300nr_mgs.jpg","http://www.balsas-nahuatl.org/DEMCA-Images/Xochiapulco/30777o_IMG_0536_ed-cr-300nr_mgs.jpg","30777","Mariano Gorostiza Salazar","Flor; Hoja"]
["Xochiapulco","http://www.balsas-nahuatl.org/DEMCA-Images/Xochiapulco","30777o_IMG_0540_ed-cr-300nr_mgs.jpg","http://www.balsas-nahuatl.org/DEMCA-Images/Xochiapulco/30777o_IMG_0540_ed-cr-300nr_mgs.jpg","30777","Mariano Gorostiza Salazar","Flor; Hoja; Rama o tallo"]
["Xochiapulco","http://www.balsas-nahuatl.org/DEMCA-Images/Xochiapulco","30777o_IMG_0546_ed-cr-300nr_mgs.jpg","http://www.balsas-nahuatl.org/DEMCA-Images/Xochiapulco/30777o_IMG_0546_ed-cr-300nr_mgs.jpg","30777","Mariano Gorostiza Salazar","Cáliz; Flor; Hoja"]
["Xochiapulco","http://www.balsas-nahuatl.org/DEMCA-Images/Xochiapulco","30778o_IMG_0556_ed-300nr_mgs.jpg","http://www.balsas-nahuatl.org/DEMCA-Images/Xochiapulco/30778o_IMG_0556_ed-300nr_mgs.jpg",{"$f":"LEFT(C579,5)","v":"30778"},"Mariano Gorostiza Salazar","Flor; Hoja; Planta entera"]
["Xochiapulco","http://www.balsas-nahuatl.org/DEMCA-Images/Xochiapulco","30778o_IMG_0560_ed-cr-300nr_mgs.jpg","http://www.balsas-nahuatl.org/DEMCA-Images/Xochiapulco/30778o_IMG_0560_ed-cr-300nr_mgs.jpg","30778","Mariano Gorostiza Salazar","Cáliz; Flor"]
["Xochiapulco","http://www.balsas-nahuatl.org/DEMCA-Images/Xochiapulco","30779o_IMG_0600_ed-300nr_mgs.jpg","http://www.balsas-nahuatl.org/DEMCA-Images/Xochiapulco/30779o_IMG_0600_ed-300nr_mgs.jpg","30779","Mariano Gorostiza Salazar","Hoja; Rama o tallo"]
["Xochiapulco","http://www.balsas-nahuatl.org/DEMCA-Images/Xochiapulco","30779o_IMG_0611_ed-300nr_mgs.jpg","http://www.balsas-nahuatl.org/DEMCA-Images/Xochiapulco/30779o_IMG_0611_ed-300nr_mgs.jpg","30779","Mariano Gorostiza Salazar","Hoja; Rama o tallo"]
["Xochiapulco","http://www.balsas-nahuatl.org/DEMCA-Images/Xochiapulco","30779o_IMG_0618_ed-cr-300nr_mgs.jpg","http://www.balsas-nahuatl.org/DEMCA-Images/Xochiapulco/30779o_IMG_0618_ed-cr-300nr_mgs.jpg","30779","Mariano Gorostiza Salazar","Hoja; Rama o tallo"]
["Xochiapulco","http://www.balsas-nahuatl.org/DEMCA-Images/Xochiapulco","30780o_IMG_0577_ed-300nr_mgs.jpg","http://www.balsas-nahuatl.org/DEMCA-Images/Xochiapulco/30780o_IMG_0577_ed-300nr_mgs.jpg","30780","Mariano Gorostiza Salazar","Hoja; Inflorescencia; Rama o tallo"]
["Xochiapulco","http://www.balsas-nahuatl.org/DEMCA-Images/Xochiapulco","30780o_IMG_0580_ed-300nr_mgs.jpg","http://www.balsas-nahuatl.org/DEMCA-Images/Xochiapulco/30780o_IMG_0580_ed-300nr_mgs.jpg","30780","Mariano Gorostiza Salazar","Inflorescencia; Rama o tallo"]
["Xochiapulco","http://www.balsas-nahuatl.org/DEMCA-Images/Xochiapulco","30780o_IMG_0581_ed-300nr_mgs.jpg","http://www.balsas-nahuatl.org/DEMCA-Images/Xochiapulco/30780o_IMG_0581_ed-300nr_mgs.jpg","30780","Mariano Gorostiza Salazar","Hoja; Rama o tallo"]
["Xochiapulco","http://www.balsas-nahuatl.org/DEMCA-Images/Xochiapulco","30781o_IMG_0621_ed-300nr_mgs.jpg","http://www.balsas-nahuatl.org/DEMCA-Images/Xochiapulco/30781o_IMG_0621_ed-300nr_mgs.jpg","30781","Mariano Gorostiza Salazar","Hoja; Rama o tallo"]
["Xochiapulco","http://www.balsas-nahuatl.org/DEMCA-Images/Xochiapulco","30781o_IMG_0625_ed-cr-300nr_mgs.jpg","http://www.balsas-nahuatl.org/DEMCA-Images/Xochiapulco/30781o_IMG_0625_ed-cr-300nr_mgs.jpg","30781","Mariano Gorostiza Salazar","Flor; Rama o tallo"]
["Xochiapulco","http://www.balsas-nahuatl.org/DEMCA-Images/Xochiapulco","30781o_IMG_0631_ed-300nr_mgs.jpg","http://www.balsas-nahuatl.org/DEMCA-Images/Xochiapulco/30781o_IMG_0631_ed-300nr_mgs.jpg","30781","Mariano Gorostiza Salazar","Flor; Hoja"]
["Xochiapulco","http://www.balsas-nahuatl.org/DEMCA-Images/Xochiapulco","30781o_IMG_0635_ed-300nr_mgs.jpg","http://www.balsas-nahuatl.org/DEMCA-Images/Xochiapulco/30781o_IMG_0635_ed-300nr_mgs.jpg","30781","Mariano Gorostiza Salazar","Hoja; Rama o tallo"]
["Xochiapulco","http://www.balsas-nahuatl.org/DEMCA-Images/Xochiapulco","30781o_IMG_0636_ed-300nr_mgs.jpg","http://www.balsas-nahuatl.org/DEMCA-Images/Xochiapulco/30781o_IMG_0636_ed-300nr_mgs.jpg","30781","Mariano Gorostiza Salazar","Flor; Rama o tallo"]
["Xochiapulco","http://www.balsas-nahuatl.org/DEMCA-Images/Xochiapulco","30782o_IMG_0642_ed-300nr_mgs.jpg","http://www.balsas-nahuatl.org/DEMCA-Images/Xochiapulco/30782o_IMG_0642_ed-300nr_mgs.jpg","30782","Mariano Gorostiza Salazar","Hoja; Rama o tallo"]
["Xochiapulco","http://www.balsas-nahuatl.org/DEMCA-Images/Xochiapulco","30782o_IMG_0650_ed-cr-300nr_mgs.jpg","http://www.balsas-nahuatl.org/DEMCA-Images/Xochiapulco/30782o_IMG_0650_ed-cr-300nr_mgs.jpg","30782","Mariano Gorostiza Salazar","Cáliz; Inflorescencia"]
["Xochiapulco","http://www.balsas-nahuatl.org/DEMCA-Images/Xochiapulco","30782o_IMG_0654_ed-cr-300nr_mgs.jpg","http://www.balsas-nahuatl.org/DEMCA-Images/Xochiapulco/30782o_IMG_0654_ed-cr-300nr_mgs.jpg","30782","Mariano Gorostiza Salazar","Inflorescencia; Rama o tallo"]
["Xochiapulco","http://www.balsas-nahuatl.org/DEMCA-Images/Xochiapulco","30782o_IMG_0655_ed-cr-300nr_mgs.jpg","http://www.balsas-nahuatl.org/DEMCA-Images/Xochiapulco/30782o_IMG_0655_ed-cr-300nr_mgs.jpg","30782","Mariano Gorostiza Salazar","Inflorescencia; Rama o tallo"]
["Xochiapulco","http://www.balsas-nahuatl.org/DEMCA-Images/Xochiapulco","30782o_IMG_0659_ed-300nr_mgs.jpg","http://www.balsas-nahuatl.org/DEMCA-Images/Xochiapulco/30782o_IMG_0659_ed-300nr_mgs.jpg","30782","Mariano Gorostiza Salazar","Hoja; Rama o tallo"]
["Xochiapulco","http://www.balsas-nahuatl.org/DEMCA-Images/Xochiapulco","30783o_IMG_0662_ed-300nr_mgs.jpg","http://www.balsas-nahuatl.org/DEMCA-Images/Xochiapulco/30783o_IMG_0662_ed-300nr_mgs.jpg","30783","Mariano Gorostiza Salazar","Flor; Hoja; Rama o tallo"]
["Xochiapulco","http://www.balsas-nahuatl.org/DEMCA-Images/Xochiapulco","30783o_IMG_0667_ed-cr-300nr_mgs.jpg","http://www.balsas-nahuatl.org/DEMCA-Images/Xochiapulco/30783o_IMG_0667_ed-cr-300nr_mgs.jpg","30783","Mariano Gorostiza Salazar","Cáliz; Flor; Rama o tallo"]
["Xochiapulco","http://www.balsas-nahuatl.org/DEMCA-Images/Xochiapulco","30783o_IMG_0673_ed-300nr_mgs.jpg","http://www.balsas-nahuatl.org/DEMCA-Images/Xochiapulco/30783o_IMG_0673_ed-300nr_mgs.jpg","30783","Mariano Gorostiza Salazar","Cáliz; Flor; Hoja"]
["Xochiapulco","http://www.balsas-nahuatl.org/DEMCA-Images/Xochiapulco","30783o_IMG_0682_ed-cr-300nr_mgs.jpg","http://www.balsas-nahuatl.org/DEMCA-Images/Xochiapulco/30783o_IMG_0682_ed-cr-300nr_mgs.jpg","30783","Mariano Gorostiza Salazar","Flor; Rama o tallo"]